Body_Code,Body_Name,Service,Posting Date,GL Code,GL Code Desc,Doc Number,Doc Net Amount,Supplier Name
http://statistics.data.gov.uk/id/local-authority/38,Oxfordshire County Council,CITY AGENCY SERVICES/STAFFING,24/04/2023,5500,Payments to Other Local Authorities,2201104264,"-121,561.00",Oxford City Council
http://statistics.data.gov.uk/id/local-authority/38,Oxfordshire County Council,LD Continuing Care - Sup at Home - U65,12/04/2023,5688,,3111406611,"-87,716.16",Elysium Neurological Services (Badb
http://statistics.data.gov.uk/id/local-authority/38,Oxfordshire County Council,Continuing Care - Care Homes - 65+,12/04/2023,5687,,3111407828,"-77,324.96",Cedar Court Care Home
http://statistics.data.gov.uk/id/local-authority/38,Oxfordshire County Council,COMM DRAWDOWN FUNDNG,20/04/2023,8102,Payments to main contractor,2201103151,"-59,383.36",Milestone Infrastructure Limited
http://statistics.data.gov.uk/id/local-authority/38,Oxfordshire County Council,COMM DRAWDOWN FUNDNG,20/04/2023,8102,Payments to main contractor,2201103154,"-58,810.84",Milestone Infrastructure Limited
http://statistics.data.gov.uk/id/local-authority/38,Oxfordshire County Council,NURSERY ED FUND,28/04/2023,5537,Payments to Other Establishments,3111417303,"-47,101.97",Banbury School Day Nurse
http://statistics.data.gov.uk/id/local-authority/38,Oxfordshire County Council,Post Reablement Block,25/04/2023,5699,,3111415361,"-46,199.51",All Care GB Ltd
http://statistics.data.gov.uk/id/local-authority/38,Oxfordshire County Council,Support at Home 65+ Physical Support,12/04/2023,5685,B*Cycle tracks,3111407898,"-40,567.38",Heathfield House Nursing Home
http://statistics.data.gov.uk/id/local-authority/38,Oxfordshire County Council,Interim Funding  - Care Homes - Over 65,12/04/2023,5687,,3111407468,"-26,285.71",LAWTON GROUP LTD
http://statistics.data.gov.uk/id/local-authority/38,Oxfordshire County Council,Support at Home U65 Learning Disability,12/04/2023,5688,,3111405773,"-25,144.80",Community Integrated Care
http://statistics.data.gov.uk/id/local-authority/38,Oxfordshire County Council,Support at Home 65+ Physical Support,12/04/2023,5686,,3111408147,"-23,366.31",Orders of St John
http://statistics.data.gov.uk/id/local-authority/38,Oxfordshire County Council,Care Homes - Under 65 Leaning Disability,12/04/2023,5686,,3111406879,"-22,782.66",Choice Ltd
http://statistics.data.gov.uk/id/local-authority/38,Oxfordshire County Council,OCC Discharge Funding Allocation,12/04/2023,5687,,3111407601,"-22,657.15",Green Gates NH (BUPA)
http://statistics.data.gov.uk/id/local-authority/38,Oxfordshire County Council,Support at Home U65 Learning Disability,12/04/2023,5688,,3111406395,"-18,770.36",The Brandon Trust
http://statistics.data.gov.uk/id/local-authority/38,Oxfordshire County Council,YP PATHWAY,27/04/2023,5604,,3111417104,"-16,162.83",Response Organisation
http://statistics.data.gov.uk/id/local-authority/38,Oxfordshire County Council,Mainstream Res,26/04/2023,5558,,3111416493,"-16,117.68",Calcot Services For Children
http://statistics.data.gov.uk/id/local-authority/38,Oxfordshire County Council,Post Reablement Block,25/04/2023,5699,,3111415442,"-14,726.70",Eleanor Nursing & Social Care Ltd
http://statistics.data.gov.uk/id/local-authority/38,Oxfordshire County Council,CONCESSIONARY FARES,14/04/2023,4342,Staff Use of Public Transport,2201101103,"-14,320.41",Stagecoach Services Ltd
http://statistics.data.gov.uk/id/local-authority/38,Oxfordshire County Council,PLACEMENTS- RELEVANT,20/04/2023,5558,,3111411839,"-13,617.32",Tendercare Management Ltd
http://statistics.data.gov.uk/id/local-authority/38,Oxfordshire County Council,Continuing Care - Care Homes - 65+,12/04/2023,5687,,3111405446,"-13,457.14",ACER HEALTHCARE LTD
http://statistics.data.gov.uk/id/local-authority/38,Oxfordshire County Council,Support at Home 65+ Physical Support,28/04/2023,5696,,3111417270,"-12,030.34",Orders of St John Care Trust
http://statistics.data.gov.uk/id/local-authority/38,Oxfordshire County Council,Support at Home U65 MH OBC Contract,12/04/2023,5688,,3111406718,"-10,941.94",Holmleigh Care Homes Ltd
http://statistics.data.gov.uk/id/local-authority/38,Oxfordshire County Council,Support at Home U65 Learning Disability,12/04/2023,5537,Payments to Other Establishments,3111407418,"-10,584.94",RMET
http://statistics.data.gov.uk/id/local-authority/38,Oxfordshire County Council,Support at Home U65 Learning Disability,12/04/2023,5688,,3111406951,"-10,082.06",UNITED RESPONSE
http://statistics.data.gov.uk/id/local-authority/38,Oxfordshire County Council,P&S OPERATIONAL REV,06/04/2023,4940,Other Services,2201100144,"-10,079.01",Atkins Limited
http://statistics.data.gov.uk/id/local-authority/38,Oxfordshire County Council,Care Homes - Under 65 Leaning Disability,19/04/2023,5686,,3111411484,"-9,733.76",Devon & Cornwall Autistics
http://statistics.data.gov.uk/id/local-authority/38,Oxfordshire County Council,SODC P&D INCOME,17/04/2023,5526,Payments to Private Contractors,2201101246,"-9,653.22",CONDUENT PUBLIC SECTOR UK LIMITED
http://statistics.data.gov.uk/id/local-authority/38,Oxfordshire County Council,SM DISABILITIES,13/04/2023,5520,Payments to Voluntary bodies,2201100836,"-9,627.93",Ideal Complex Care Ltd
http://statistics.data.gov.uk/id/local-authority/38,Oxfordshire County Council,Family Solutions Plus Non-staff - North,24/04/2023,4940,Other Services,2201104296,"-9,494.70",BRIGHT HORIZONS FAMILY SOLUTIONS LT
http://statistics.data.gov.uk/id/local-authority/38,Oxfordshire County Council,Funded Nursing Care  - Over 65,12/04/2023,5692,,3111409228,"-9,353.77",Tall Trees
http://statistics.data.gov.uk/id/local-authority/38,Oxfordshire County Council,CHC Fast Track - Care Homes - Over 65,12/04/2023,5687,,3111409318,"-9,321.43",The Grange Care Centre
http://statistics.data.gov.uk/id/local-authority/38,Oxfordshire County Council,CHC Fast Track - Sup at Homes - Over 65,13/04/2023,5961,B*Other Dept SLA's Current,3111409892,"-8,960.00",Oxford Private Care
http://statistics.data.gov.uk/id/local-authority/38,Oxfordshire County Council,Support at Home 65+ Physical Support,12/04/2023,5687,,3111408010,"-8,928.64",Orders of St John
http://statistics.data.gov.uk/id/local-authority/38,Oxfordshire County Council,Care Homes - Under 65 Physical Sypport,12/04/2023,5686,,3111408908,"-8,582.51",Richardson Mews Limited
http://statistics.data.gov.uk/id/local-authority/38,Oxfordshire County Council,Continuing Care - Care Homes - 65+,12/04/2023,5687,,3111408816,"-8,485.71",Oxford Beaumont
http://statistics.data.gov.uk/id/local-authority/38,Oxfordshire County Council,Support at Home 65+ Learning Disability,12/04/2023,5690,,3111407360,"-7,202.60",The Camden Society
http://statistics.data.gov.uk/id/local-authority/38,Oxfordshire County Council,Funded Nursing Care  - Over 65,12/04/2023,5692,,3111406126,"-7,202.10",Bridge House
http://statistics.data.gov.uk/id/local-authority/38,Oxfordshire County Council,Care Homes - Over 65 Physical Sypport,12/04/2023,5687,,3111407635,"-7,089.07",Green Pastures Christian NH
http://statistics.data.gov.uk/id/local-authority/38,Oxfordshire County Council,ENV & RES EFF STAFF,04/04/2023,5668,Technical and Professional Consultant F,2201099462,"-6,903.17",FAITHFUL & GOULD
http://statistics.data.gov.uk/id/local-authority/38,Oxfordshire County Council,Holiday Activities & Food Grant,27/04/2023,4641,Catering Provisions,2201105616,"-6,720.00",The Barn Boxing & Fitness Ltd
http://statistics.data.gov.uk/id/local-authority/38,Oxfordshire County Council,Support at Home U65 Learning Disability,12/04/2023,7064,B* Registration Of Old Pers Homes,3111406854,"-6,709.07",Autism at Kingwood Limited
http://statistics.data.gov.uk/id/local-authority/38,Oxfordshire County Council,LEGAL BUDGET,04/04/2023,5251,Legal Costs,2201099680,"-6,480.00",MEWA LLP
http://statistics.data.gov.uk/id/local-authority/38,Oxfordshire County Council,CHC Fast Track - Care Homes - Over 65,12/04/2023,5687,,3111408981,"-6,458.57",SANCTUARY CARE PROPERTY (2) LTD
http://statistics.data.gov.uk/id/local-authority/38,Oxfordshire County Council,Care Homes - Under 65 Physical Sypport,12/04/2023,5687,,3111407217,"-6,320.64",Fewcott Healthcare Ltd
http://statistics.data.gov.uk/id/local-authority/38,Oxfordshire County Council,LD Continuing Care - Sup at Home - U65,12/04/2023,5688,,3111406184,"-6,288.06",SEEABILITY
http://statistics.data.gov.uk/id/local-authority/38,Oxfordshire County Council,Post Reablement Block,25/04/2023,5699,,3111415419,"-5,931.90",Care Outlook Ltd
http://statistics.data.gov.uk/id/local-authority/38,Oxfordshire County Council,CHC Fast Track - Care Homes - Over 65,12/04/2023,5687,,3111409665,"-5,892.86",MARIA MALLABAND CARE GROUP
http://statistics.data.gov.uk/id/local-authority/38,Oxfordshire County Council,T&I Management,06/04/2023,2040,Agency Staff,2201100155,"-5,886.76",Campbell Reith Hill
http://statistics.data.gov.uk/id/local-authority/38,Oxfordshire County Council,Support at Home 65+ Physical Support,12/04/2023,5685,B*Cycle tracks,3111409042,"-5,634.68",Barchester Healthcare Homes Ltd
http://statistics.data.gov.uk/id/local-authority/38,Oxfordshire County Council,CHC Fast Track - Care Homes - Over 65,12/04/2023,5687,,3111409191,"-5,566.00",St Lukes Nursing Home (Oxford)
http://statistics.data.gov.uk/id/local-authority/38,Oxfordshire County Council,COMM DRAWDOWN FUNDNG,05/04/2023,8102,Payments to main contractor,2201099738,"-5,545.75",VolkerHighways
http://statistics.data.gov.uk/id/local-authority/38,Oxfordshire County Council,Funded Nursing Care  - Over 65,12/04/2023,5692,,3111407437,"-5,289.51",Freeland House
http://statistics.data.gov.uk/id/local-authority/38,Oxfordshire County Council,CHC Fast Track - Care Homes - Over 65,12/04/2023,5687,,3111407556,"-5,211.43",GCH (St Katherines) Ltd
http://statistics.data.gov.uk/id/local-authority/38,Oxfordshire County Council,CHC Fast Track - Care Homes - Under 65,12/04/2023,5687,,3111408843,"-5,185.71",Oxford Beaumont
http://statistics.data.gov.uk/id/local-authority/38,Oxfordshire County Council,Holiday Activities & Food Grant,27/04/2023,4641,Catering Provisions,2201105618,"-5,173.00",Thomley Activity Centre
http://statistics.data.gov.uk/id/local-authority/38,Oxfordshire County Council,CHC Fast Track - Care Homes - Over 65,12/04/2023,5687,,3111409702,"-5,122.04",MARIA MALLABAND CARE GROUP
http://statistics.data.gov.uk/id/local-authority/38,Oxfordshire County Council,CHC Fast Track - Care Homes - Over 65,12/04/2023,5687,,3111408952,"-4,871.43",Rushcourt Nursing Home
http://statistics.data.gov.uk/id/local-authority/38,Oxfordshire County Council,Youth Justice & Exploitation,04/04/2023,4940,Other Services,2201099507,"-4,866.60",Improved Futures
http://statistics.data.gov.uk/id/local-authority/38,Oxfordshire County Council,CHC Fast Track - Sup at Homes - Over 65,13/04/2023,5961,B*Other Dept SLA's Current,3111409912,"-4,560.41",TOPKARE LIMITED
http://statistics.data.gov.uk/id/local-authority/38,Oxfordshire County Council,CHC Fast Track - Care Homes - Over 65,12/04/2023,5687,,3111408482,"-4,532.97",Orders of St John
http://statistics.data.gov.uk/id/local-authority/38,Oxfordshire County Council,Mainstream Res,05/04/2023,5558,,3111400292,"-4,428.57",Florinee Homes Ltd
http://statistics.data.gov.uk/id/local-authority/38,Oxfordshire County Council,Care Homes - Over 65 Physical Sypport,12/04/2023,5686,,3111408427,"-4,423.72",OSJ  - Old Station House
http://statistics.data.gov.uk/id/local-authority/38,Oxfordshire County Council,CHC Fast Track - Care Homes - Over 65,12/04/2023,5687,,3111409236,"-4,350.00",Tall Trees
http://statistics.data.gov.uk/id/local-authority/38,Oxfordshire County Council,CHC Fast Track - Sup at Homes - Over 65,13/04/2023,5961,B*Other Dept SLA's Current,3111409894,"-4,346.30",Oxford Private Care
http://statistics.data.gov.uk/id/local-authority/38,Oxfordshire County Council,Support at Home 65+ Memory & Cognition,12/04/2023,5686,,3111408222,"-4,285.72",Kirlena House
http://statistics.data.gov.uk/id/local-authority/38,Oxfordshire County Council,Funded Nursing Care  - Over 65,12/04/2023,5692,,3111407408,"-4,273.44",Freeland House
http://statistics.data.gov.uk/id/local-authority/38,Oxfordshire County Council,CHC Fast Track - Sup at Homes - Over 65,13/04/2023,5961,B*Other Dept SLA's Current,3111409913,"-4,119.08",TOPKARE LIMITED
http://statistics.data.gov.uk/id/local-authority/38,Oxfordshire County Council,CHC Fast Track - Care Homes - Over 65,12/04/2023,5687,,3111407766,"-4,071.43",Cedar Court Care Home
http://statistics.data.gov.uk/id/local-authority/38,Oxfordshire County Council,Care Homes - Over 65 Memory & Cognition,12/04/2023,5687,,3111409223,"-4,071.43",Tall Trees
http://statistics.data.gov.uk/id/local-authority/38,Oxfordshire County Council,Care Homes - Over 65 Memory & Cognition,12/04/2023,5685,B*Cycle tracks,3111408025,"-4,022.10",Orders of St John
http://statistics.data.gov.uk/id/local-authority/38,Oxfordshire County Council,Funded Nursing Care  - Over 65,12/04/2023,5692,,3111405394,"-3,944.72",Abbey Crest Nursing Home
http://statistics.data.gov.uk/id/local-authority/38,Oxfordshire County Council,CHC Fast Track - Care Homes - Over 65,12/04/2023,5687,,3111409749,"-3,885.71",Caring Homes Healthcare Group Ltd
http://statistics.data.gov.uk/id/local-authority/38,Oxfordshire County Council,Funded Nursing Care  - Over 65,12/04/2023,5692,,3111405429,"-3,884.95",Abbey Crest Nursing Home
http://statistics.data.gov.uk/id/local-authority/38,Oxfordshire County Council,Care Homes - Over 65 Memory & Cognition,12/04/2023,5687,,3111407338,"-3,771.43",Freeland House
http://statistics.data.gov.uk/id/local-authority/38,Oxfordshire County Council,Support at Home 65+ Memory & Cognition,12/04/2023,5687,,3111407356,"-3,714.29",Freeland House
http://statistics.data.gov.uk/id/local-authority/38,Oxfordshire County Council,Funded Nursing Care  - Over 65,12/04/2023,5692,,3111407612,"-3,645.87",Green Gates NH (BUPA)
http://statistics.data.gov.uk/id/local-authority/38,Oxfordshire County Council,CHC Fast Track - Care Homes - Over 65,12/04/2023,5687,,3111408592,"-3,642.86",Middletown Grange Care Home
http://statistics.data.gov.uk/id/local-authority/38,Oxfordshire County Council,Care Homes - Over 65 Physical Sypport,12/04/2023,5685,B*Cycle tracks,3111406251,"-3,574.96",METHODIST HOMES
http://statistics.data.gov.uk/id/local-authority/38,Oxfordshire County Council,Funded Nursing Care  - Over 65,12/04/2023,5692,,3111409601,"-3,436.69",Wardington House Nursing Home
http://statistics.data.gov.uk/id/local-authority/38,Oxfordshire County Council,Care Homes - Over 65 Physical Sypport,12/04/2023,5686,,3111408979,"-3,428.57",SANCTUARY CARE PROPERTY (2) LTD
http://statistics.data.gov.uk/id/local-authority/38,Oxfordshire County Council,NURSERY ED FUND,25/04/2023,5537,Payments to Other Establishments,3111413072,"-3,393.00",Marcham Little Angels
http://statistics.data.gov.uk/id/local-authority/38,Oxfordshire County Council,Support at Home 65+ Physical Support,25/04/2023,5699,,3111416063,"-3,349.50",Healthcare Evolution Ltd
http://statistics.data.gov.uk/id/local-authority/38,Oxfordshire County Council,NURSERY ED FUND,25/04/2023,5537,Payments to Other Establishments,3111413057,"-3,340.80",Millbrook Primary School
http://statistics.data.gov.uk/id/local-authority/38,Oxfordshire County Council,FOSTERING MAIN,18/04/2023,5548,B*Fostering - Special Rates & Plus Amou,3111410836,"-3,205.71",Redacted Personal Data
http://statistics.data.gov.uk/id/local-authority/38,Oxfordshire County Council,FOSTERING MAIN,18/04/2023,5548,B*Fostering - Special Rates & Plus Amou,3111410837,"-3,205.71",Redacted Personal Data
http://statistics.data.gov.uk/id/local-authority/38,Oxfordshire County Council,Continuing Care - Care Homes - 65+,12/04/2023,5687,,3111407457,"-3,178.83",The Old Vicarage
http://statistics.data.gov.uk/id/local-authority/38,Oxfordshire County Council,OCC Discharge Funding Allocation,12/04/2023,5687,,3111407465,"-3,000.00",LAWTON GROUP LTD
http://statistics.data.gov.uk/id/local-authority/38,Oxfordshire County Council,Care Homes - Over 65 Physical Sypport,12/04/2023,5686,,3111409144,"-2,985.00",St Johns Residential Home
http://statistics.data.gov.uk/id/local-authority/38,Oxfordshire County Council,COMM DRAWDOWN FUNDNG,13/04/2023,8510,Other expenses,2201100951,"-2,940.00",Asite
http://statistics.data.gov.uk/id/local-authority/38,Oxfordshire County Council,Support at Home U65 Learning Disability,12/04/2023,5688,,3111406238,"-2,824.14",Style Acre
http://statistics.data.gov.uk/id/local-authority/38,Oxfordshire County Council,OCC Discharge Funding Allocation,12/04/2023,5687,,3111406574,"-2,785.71",Chacombe Park Care Home
http://statistics.data.gov.uk/id/local-authority/38,Oxfordshire County Council,Funded Nursing Care  - Over 65,12/04/2023,5692,,3111409593,"-2,779.23",Wardington House Nursing Home
http://statistics.data.gov.uk/id/local-authority/38,Oxfordshire County Council,Funded Nursing Care  - Over 65,12/04/2023,5692,,3111407377,"-2,749.35",Freeland House
http://statistics.data.gov.uk/id/local-authority/38,Oxfordshire County Council,FOSTERING MAIN,25/04/2023,5549,B*Fostering Allowance - Regulation 38,3111414100,"-2,703.00",Redacted Personal Data
http://statistics.data.gov.uk/id/local-authority/38,Oxfordshire County Council,WANTAGE REC CENTRE,04/04/2023,5500,Payments to Other Local Authorities,2201099611,"-2,694.11",South Oxfordshire District Council
http://statistics.data.gov.uk/id/local-authority/38,Oxfordshire County Council,Care Homes - Over 65 Physical Sypport,12/04/2023,5687,,3111408996,"-2,647.32",SANCTUARY CARE PROPERTY (2) LTD
http://statistics.data.gov.uk/id/local-authority/38,Oxfordshire County Council,Funded Nursing Care  - Over 65,12/04/2023,5692,,3111407280,"-2,629.81",Freeland House
http://statistics.data.gov.uk/id/local-authority/38,Oxfordshire County Council,Care Homes - Over 65 Physical Sypport,12/04/2023,5687,,3111405723,"-2,597.26",Banbury Heights Nursing Home
http://statistics.data.gov.uk/id/local-authority/38,Oxfordshire County Council,Staff Travel Benefits,19/04/2023,4340,Staff and Volunteer Travel Expenses - General,3111411786,"-2,566.40",First Great Western Ltd
http://statistics.data.gov.uk/id/local-authority/38,Oxfordshire County Council,Funded Nursing Care  - Over 65,12/04/2023,5692,,3111405404,"-2,540.16",Abbey Crest Nursing Home
http://statistics.data.gov.uk/id/local-authority/38,Oxfordshire County Council,Care Homes - Over 65 Physical Sypport,12/04/2023,5687,,3111408614,"-2,537.45",Middletown Grange Care Home
http://statistics.data.gov.uk/id/local-authority/38,Oxfordshire County Council,CHC Fast Track - Sup at Homes - Over 65,04/04/2023,5691,,3111400428,"-2,481.32",Bluebird Care (Oxford South & West)
http://statistics.data.gov.uk/id/local-authority/38,Oxfordshire County Council,Care Homes - Over 65 Memory & Cognition,12/04/2023,5687,,3111407891,"-2,421.33",Orders of St John
http://statistics.data.gov.uk/id/local-authority/38,Oxfordshire County Council,UNIFORMED SALARIES,03/04/2023,2019,Staff - Pensions,2201099207,"-2,413.93",Local Government Association
http://statistics.data.gov.uk/id/local-authority/38,Oxfordshire County Council,Care Homes - Over 65 Memory & Cognition,12/04/2023,5686,,3111408594,"-2,400.00",Middletown Grange Care Home
http://statistics.data.gov.uk/id/local-authority/38,Oxfordshire County Council,Continuing Care - Care Homes - Under 65,12/04/2023,5687,,3111408729,"-2,400.00",MOP Healthcare Ltd
http://statistics.data.gov.uk/id/local-authority/38,Oxfordshire County Council,Care Homes - Over 65 Memory & Cognition,12/04/2023,5687,,3111406581,"-2,314.29",Chacombe Park Care Home
http://statistics.data.gov.uk/id/local-authority/38,Oxfordshire County Council,Care Homes - Over 65 Physical Sypport,12/04/2023,5687,,3111405438,"-2,312.50",Abbey Crest Nursing Home
http://statistics.data.gov.uk/id/local-authority/38,Oxfordshire County Council,Support at Home 65+ Physical Support,12/04/2023,5685,B*Cycle tracks,3111407890,"-2,150.42",Heathfield House Nursing Home
http://statistics.data.gov.uk/id/local-authority/38,Oxfordshire County Council,Support at Home 65+ Physical Support,25/04/2023,5699,,3111415430,"-2,142.00",Calvary Care Ltd
http://statistics.data.gov.uk/id/local-authority/38,Oxfordshire County Council,Care Homes - Over 65 Physical Sypport,12/04/2023,5687,,3111408804,"-2,118.66",Orders of St John
http://statistics.data.gov.uk/id/local-authority/38,Oxfordshire County Council,Care Homes - Over 65 Leaning Disability,12/04/2023,5685,B*Cycle tracks,3111407944,"-2,075.64",Heathfield House Nursing Home
http://statistics.data.gov.uk/id/local-authority/38,Oxfordshire County Council,Care Homes - Over 65 Memory & Cognition,12/04/2023,5686,,3111408657,"-2,041.71",Orders of St John
http://statistics.data.gov.uk/id/local-authority/38,Oxfordshire County Council,Care Homes - Over 65 Physical Sypport,12/04/2023,5687,,3111405428,"-2,030.84",Abbey Crest Nursing Home
http://statistics.data.gov.uk/id/local-authority/38,Oxfordshire County Council,Independent Foster,26/04/2023,5559,,3111416516,"-1,996.50",Children First Fostering Agency Ltd
http://statistics.data.gov.uk/id/local-authority/38,Oxfordshire County Council,Continuing Care - Care Homes - 65+,12/04/2023,5687,,3111409297,"-1,986.48",The Cotswold Home
http://statistics.data.gov.uk/id/local-authority/38,Oxfordshire County Council,CHC Fast Track - Care Homes - Over 65,12/04/2023,5687,,3111409019,"-1,928.57",Barchester Healthcare Homes Ltd
http://statistics.data.gov.uk/id/local-authority/38,Oxfordshire County Council,Care Homes - Over 65 Physical Sypport,12/04/2023,5686,,3111408990,"-1,907.55",SANCTUARY CARE PROPERTY (2) LTD
http://statistics.data.gov.uk/id/local-authority/38,Oxfordshire County Council,Support at Home 65+ Memory & Cognition,12/04/2023,5687,,3111408377,"-1,836.71",Orders of St John
http://statistics.data.gov.uk/id/local-authority/38,Oxfordshire County Council,CHC Fast Track - Care Homes - Over 65,12/04/2023,5687,,3111409694,"-1,828.57",MARIA MALLABAND CARE GROUP
http://statistics.data.gov.uk/id/local-authority/38,Oxfordshire County Council,Care Homes - Over 65 Physical Sypport,12/04/2023,5686,,3111408014,"-1,814.86",Orders of St John
http://statistics.data.gov.uk/id/local-authority/38,Oxfordshire County Council,LORD WILLIAM'S  THAM,14/04/2023,3257,,3111410258,"-1,789.86",Kennedys Law LLP
http://statistics.data.gov.uk/id/local-authority/38,Oxfordshire County Council,Care Homes - Over 65 Memory & Cognition,12/04/2023,5685,B*Cycle tracks,3111409312,"-1,772.43",The Grange Care Centre
http://statistics.data.gov.uk/id/local-authority/38,Oxfordshire County Council,COUNTY HALL,24/04/2023,4122,Other premises related costs,2201104380,"-1,766.78",Nationwide Business Relocations Ltd
http://statistics.data.gov.uk/id/local-authority/38,Oxfordshire County Council,CHC Fast Track - Sup at Homes - Over 65,13/04/2023,5961,B*Other Dept SLA's Current,3111409914,"-1,702.00",CaringPlus Healthcare Services Ltd
http://statistics.data.gov.uk/id/local-authority/38,Oxfordshire County Council,CHC Fast Track - Sup at Homes - Over 65,13/04/2023,5961,B*Other Dept SLA's Current,3111409925,"-1,702.00",CaringPlus Healthcare Services Ltd
http://statistics.data.gov.uk/id/local-authority/38,Oxfordshire County Council,Care Homes - Over 65 Physical Sypport,12/04/2023,5687,,3111407822,"-1,661.50",Cedar Court Care Home
http://statistics.data.gov.uk/id/local-authority/38,Oxfordshire County Council,NURSERY ED FUND,25/04/2023,5537,Payments to Other Establishments,3111413061,"-1,599.06",Wantage Preschool
http://statistics.data.gov.uk/id/local-authority/38,Oxfordshire County Council,Funded Nursing Care  - Over 65,12/04/2023,5692,,3111408921,"-1,583.86",Richmond Letcombe Regis
http://statistics.data.gov.uk/id/local-authority/38,Oxfordshire County Council,Community Support Service Central costs,18/04/2023,4270,HTM / Other Vehicle - Hire Charges,2201101525,"-1,576.11",London Hire
http://statistics.data.gov.uk/id/local-authority/38,Oxfordshire County Council,FOSTERING MAIN,17/04/2023,5573,,3111410321,"-1,564.29",Redacted Personal Data
http://statistics.data.gov.uk/id/local-authority/38,Oxfordshire County Council,CHC Fast Track - Care Homes - Over 65,12/04/2023,5687,,3111407921,"-1,560.00",Orders of St John
http://statistics.data.gov.uk/id/local-authority/38,Oxfordshire County Council,COUNTY PRINT FINSHRS,19/04/2023,4861,Hired and Contracted Services,2201102352,"-1,550.00",British Printing Industries Fed
http://statistics.data.gov.uk/id/local-authority/38,Oxfordshire County Council,Funded Nursing Care  - Over 65,12/04/2023,5692,,3111409384,"-1,524.10",Four Seasons (Headington) Ltd
http://statistics.data.gov.uk/id/local-authority/38,Oxfordshire County Council,Care Homes - Over 65 Physical Sypport,12/04/2023,5687,,3111407906,"-1,513.33",Orders of St John
http://statistics.data.gov.uk/id/local-authority/38,Oxfordshire County Council,Support at Home 65+ Physical Support,25/04/2023,5699,,3111415683,"-1,512.00",CaringPlus Healthcare Services Ltd
http://statistics.data.gov.uk/id/local-authority/38,Oxfordshire County Council,Care Homes - Over 65 Physical Sypport,12/04/2023,5686,,3111408194,"-1,474.57",Orders of St John
http://statistics.data.gov.uk/id/local-authority/38,Oxfordshire County Council,Care Homes - Over 65 Physical Sypport,12/04/2023,5687,,3111408058,"-1,461.34",Huntercombe Hall Ltd
http://statistics.data.gov.uk/id/local-authority/38,Oxfordshire County Council,Care Homes - Over 65 Physical Sypport,12/04/2023,5687,,3111409348,"-1,428.57",The Grange Care Centre
http://statistics.data.gov.uk/id/local-authority/38,Oxfordshire County Council,CHC Fast Track - Sup at Homes - Over 65,25/04/2023,5691,,3111413046,"-1,400.00",Q1 Care
http://statistics.data.gov.uk/id/local-authority/38,Oxfordshire County Council,ICT Operations & Maintenance,26/04/2023,5072,Telephone - Equipment,2201105127,"-1,389.90",8 * 8 UK Limited
http://statistics.data.gov.uk/id/local-authority/38,Oxfordshire County Council,FOSTERING MAIN,18/04/2023,5549,B*Fostering Allowance - Regulation 38,3111410936,"-1,389.15",Redacted Personal Data
http://statistics.data.gov.uk/id/local-authority/38,Oxfordshire County Council,Support at Home 65+ Memory & Cognition,12/04/2023,5696,,3111405279,"-1,354.47",All Care GB Ltd
http://statistics.data.gov.uk/id/local-authority/38,Oxfordshire County Council,Care Homes - Over 65 Memory & Cognition,12/04/2023,5687,,3111409024,"-1,308.00",Barchester Healthcare Homes Ltd
http://statistics.data.gov.uk/id/local-authority/38,Oxfordshire County Council,Support at Home U65 Learning Disability,12/04/2023,5690,,3111407173,"-1,287.90",ADVANCE HOUSING & SUPPORT LTD
http://statistics.data.gov.uk/id/local-authority/38,Oxfordshire County Council,Continuing Care - Care Homes - 65+,12/04/2023,5687,,3111405835,"-1,282.29",Beech Haven Care Home
http://statistics.data.gov.uk/id/local-authority/38,Oxfordshire County Council,SEN Additional Funding,26/04/2023,5537,Payments to Other Establishments,3111416585,"-1,268.31",The Warriner Multi Academy Trust
http://statistics.data.gov.uk/id/local-authority/38,Oxfordshire County Council,Funded Nursing Care  - Over 65,12/04/2023,5692,,3111409569,"-1,255.14",Wardington House Nursing Home
http://statistics.data.gov.uk/id/local-authority/38,Oxfordshire County Council,Support at Home 65+ Physical Support,25/04/2023,5699,,3111415787,"-1,236.04",Home Helpers Care Ltd
http://statistics.data.gov.uk/id/local-authority/38,Oxfordshire County Council,COMM DRAWDOWN FUNDNG,25/04/2023,8102,Payments to main contractor,2201104915,"-1,229.61",Milestone Infrastructure Limited
http://statistics.data.gov.uk/id/local-authority/38,Oxfordshire County Council,School Improvement Grant,05/04/2023,5380,"Author, Speaker and Lecturer Fees",2201099839,"-1,210.68",Hampshire County Council
http://statistics.data.gov.uk/id/local-authority/38,Oxfordshire County Council,Care Homes - Over 65 Mental Health,12/04/2023,5687,,3111409355,"-1,200.00",Four Seasons (Headington) Ltd
http://statistics.data.gov.uk/id/local-authority/38,Oxfordshire County Council,Funded Nursing Care  - Over 65,12/04/2023,5692,,3111407611,"-1,195.37",Green Gates NH (BUPA)
http://statistics.data.gov.uk/id/local-authority/38,Oxfordshire County Council,Support at Home U65 Physical Support,25/04/2023,5699,,3111415532,"-1,190.70",Care Outlook Ltd
http://statistics.data.gov.uk/id/local-authority/38,Oxfordshire County Council,NURSERY ED FUND,26/04/2023,5537,Payments to Other Establishments,3111417466,"-1,138.20",Rainbow Pre-School
http://statistics.data.gov.uk/id/local-authority/38,Oxfordshire County Council,Care Homes - Over 65 Memory & Cognition,12/04/2023,5686,,3111408486,"-1,134.29",Orders of St John
http://statistics.data.gov.uk/id/local-authority/38,Oxfordshire County Council,CHC Fast Track - Care Homes - Over 65,12/04/2023,5687,,3111408667,"-1,114.29",Mill House Nursing Home
http://statistics.data.gov.uk/id/local-authority/38,Oxfordshire County Council,Support at Home U65 Physical Support,25/04/2023,5689,,3111414742,"-1,096.20",Home Helpers Care Ltd
http://statistics.data.gov.uk/id/local-authority/38,Oxfordshire County Council,Support at Home U65 Physical Support,25/04/2023,5699,,3111415265,"-1,083.60",BBC CARE SERVICE LIMITED
http://statistics.data.gov.uk/id/local-authority/38,Oxfordshire County Council,SEN TRANSPORT,18/04/2023,4322,"Season Tickets - Bus, Rail & Ferry",3111410575,"-1,082.00",Redline Buses Limited
http://statistics.data.gov.uk/id/local-authority/38,Oxfordshire County Council,Support at Home 65+ Physical Support,25/04/2023,5699,,3111415562,"-1,058.40",Care Outlook Ltd
http://statistics.data.gov.uk/id/local-authority/38,Oxfordshire County Council,NURSERY ED FUND,25/04/2023,5537,Payments to Other Establishments,3111413056,"-1,044.00",Banbury School Day Nurse
http://statistics.data.gov.uk/id/local-authority/38,Oxfordshire County Council,TRANSPORT GENERAL,20/04/2023,4270,HTM / Other Vehicle - Hire Charges,2201103467,"-1,036.00",DAYS Fleet
http://statistics.data.gov.uk/id/local-authority/38,Oxfordshire County Council,Care Homes - Over 65 Physical Sypport,12/04/2023,5687,,3111408454,"-1,028.57",Meadow View Nursing Home
http://statistics.data.gov.uk/id/local-authority/38,Oxfordshire County Council,Support at Home 65+ Memory & Cognition,12/04/2023,5686,,3111408180,"-1,020.86",Orders of St John
http://statistics.data.gov.uk/id/local-authority/38,Oxfordshire County Council,Hospital Discharge and Reablement,25/04/2023,5699,,3111415690,"-1,017.60",Day and Nightcare Assistance
http://statistics.data.gov.uk/id/local-authority/38,Oxfordshire County Council,Witney Move on Home,26/04/2023,2040,Agency Staff,2201105115,"-1,006.00",Completely Care Ltd
http://statistics.data.gov.uk/id/local-authority/38,Oxfordshire County Council,Continuing Care - Care Homes - 65+,12/04/2023,5687,,3111406584,-922.68,Chacombe Park Care Home
http://statistics.data.gov.uk/id/local-authority/38,Oxfordshire County Council,Care Homes - Over 65 Memory & Cognition,12/04/2023,5687,,3111405568,-920.7,Acacia Lodge Care Home
http://statistics.data.gov.uk/id/local-authority/38,Oxfordshire County Council,,24/04/2023,1320,Childcare Vouchers A/C,3111412836,-919.46,Childcare Vouchers Ltd
http://statistics.data.gov.uk/id/local-authority/38,Oxfordshire County Council,NURSERY ED FUND,25/04/2023,5537,Payments to Other Establishments,3111413047,-913.5,The Old Station Nursery
http://statistics.data.gov.uk/id/local-authority/38,Oxfordshire County Council,Care Homes - Over 65 Physical Sypport,12/04/2023,5686,,3111408459,-907.43,OSJ  - Old Station House
http://statistics.data.gov.uk/id/local-authority/38,Oxfordshire County Council,Care Homes - Over 65 Physical Sypport,12/04/2023,5687,,3111408561,-880.78,Orders of St John
http://statistics.data.gov.uk/id/local-authority/38,Oxfordshire County Council,COMM DRAWDOWN FUNDNG,25/04/2023,8511,Legal Fees & expenses,2201104963,-877.5,Bevan Brittan LLP
http://statistics.data.gov.uk/id/local-authority/38,Oxfordshire County Council,PLACEMENTS- RELEVANT,27/04/2023,5785,Client Lodgings and Accommodation,3111417109,-829.68,Response Organisation
http://statistics.data.gov.uk/id/local-authority/38,Oxfordshire County Council,Support at Home 65+ Memory & Cognition,25/04/2023,5699,,3111415718,-806.4,Direct Link Care Ltd
http://statistics.data.gov.uk/id/local-authority/38,Oxfordshire County Council,Support at Home 65+ Memory & Cognition,12/04/2023,5686,,3111408365,-794,Orders of St John
http://statistics.data.gov.uk/id/local-authority/38,Oxfordshire County Council,Support at Home 65+ Memory & Cognition,25/04/2023,5699,,3111415828,-769.25,Mega Resources Ltd
http://statistics.data.gov.uk/id/local-authority/38,Oxfordshire County Council,Support at Home 65+ Physical Support,25/04/2023,5699,,3111415528,-768.27,Care Outlook Ltd
http://statistics.data.gov.uk/id/local-authority/38,Oxfordshire County Council,CHC Fast Track - Care Homes - Over 65,12/04/2023,5687,,3111406544,-750,Chacombe Park Care Home
http://statistics.data.gov.uk/id/local-authority/38,Oxfordshire County Council,Support at Home 65+ Physical Support,25/04/2023,5699,,3111415543,-743.4,Care Outlook Ltd
http://statistics.data.gov.uk/id/local-authority/38,Oxfordshire County Council,FLEET COSTS,24/04/2023,4270,HTM / Other Vehicle - Hire Charges,2201104206,-739.83,Oxford Direct Services Trading Ltd
http://statistics.data.gov.uk/id/local-authority/38,Oxfordshire County Council,Funded Nursing Care  - Over 65,12/04/2023,5692,,3111408404,-717.22,Orders of St John
http://statistics.data.gov.uk/id/local-authority/38,Oxfordshire County Council,Care Homes - Over 65 Physical Sypport,12/04/2023,5686,,3111406164,-714.29,Brook House Residential
http://statistics.data.gov.uk/id/local-authority/38,Oxfordshire County Council,Support at Home U65 MH OBC Contract,25/04/2023,5689,,3111415002,-713.04,Response Organisation
http://statistics.data.gov.uk/id/local-authority/38,Oxfordshire County Council,Care Homes - Over 65 Physical Sypport,12/04/2023,5687,,3111409046,-708.55,Barchester Healthcare Homes Ltd
http://statistics.data.gov.uk/id/local-authority/38,Oxfordshire County Council,Support at Home U65 Memory & Cognition,12/04/2023,5696,,3111405267,-697.04,All Care GB Ltd
http://statistics.data.gov.uk/id/local-authority/38,Oxfordshire County Council,LD Continuing Care - Sup at Home - U65,28/04/2023,5691,,3111417398,-692.9,Paterson Recruitment
http://statistics.data.gov.uk/id/local-authority/38,Oxfordshire County Council,Support at Home U65 Memory & Cognition,12/04/2023,5686,,3111408698,-680.57,Orders of St John
http://statistics.data.gov.uk/id/local-authority/38,Oxfordshire County Council,Care Homes - Over 65 Physical Sypport,12/04/2023,5686,,3111408512,-680.57,OSJ Contract - Stirlings
http://statistics.data.gov.uk/id/local-authority/38,Oxfordshire County Council,Support at Home U65 Learning Disability,12/04/2023,5690,,3111407239,-675.66,Autism at Kingwood Limited
http://statistics.data.gov.uk/id/local-authority/38,Oxfordshire County Council,Care Homes - Over 65 Physical Sypport,12/04/2023,5687,,3111407963,-657.64,Heathfield House Nursing Home
http://statistics.data.gov.uk/id/local-authority/38,Oxfordshire County Council,Funded Nursing Care  - Over 65,12/04/2023,5692,,3111406114,-657.45,Bridge House
http://statistics.data.gov.uk/id/local-authority/38,Oxfordshire County Council,NURSERY ED FUND,25/04/2023,5537,Payments to Other Establishments,3111413070,-652.5,West Kidlington Primary &NurserySch
http://statistics.data.gov.uk/id/local-authority/38,Oxfordshire County Council,Support at Home 65+ Physical Support,25/04/2023,5699,,3111415554,-642.6,Care Outlook Ltd
http://statistics.data.gov.uk/id/local-authority/38,Oxfordshire County Council,TRAINING MANAGEMENT,01/04/2023,4685,Clothing and Uniforms,2201099417,-636.44,BRISTOL UNIFORMS LTD
http://statistics.data.gov.uk/id/local-authority/38,Oxfordshire County Council,Funded Nursing Care  - Over 65,12/04/2023,5692,,3111409115,-627.57,Stowford House
http://statistics.data.gov.uk/id/local-authority/38,Oxfordshire County Council,YP PATHWAY,27/04/2023,5785,Client Lodgings and Accommodation,3111417103,-623.2,Response Organisation
http://statistics.data.gov.uk/id/local-authority/38,Oxfordshire County Council,UASC 16&17,26/04/2023,5663,B*Birthday Allowance,9300059761,-619.62,OCC SS Oxford City Div 1 Bank
http://statistics.data.gov.uk/id/local-authority/38,Oxfordshire County Council,Support at Home 65+ Physical Support,25/04/2023,5699,,3111415560,-617.4,Care Outlook Ltd
http://statistics.data.gov.uk/id/local-authority/38,Oxfordshire County Council,LEAVING CARE NORTH,05/04/2023,4407,Equipment,9300059623,-585.5,OCC SS Banbury Area Off Cash
http://statistics.data.gov.uk/id/local-authority/38,Oxfordshire County Council,Funded Nursing Care  - Over 65,12/04/2023,5692,,3111407648,-578.77,Green Pastures Christian NH
http://statistics.data.gov.uk/id/local-authority/38,Oxfordshire County Council,Family Solutions Plus Non-staff - North,05/04/2023,5227,Other Transport Arrangements,9300059624,-564.1,OCC SS Banbury Area Off Cash
http://statistics.data.gov.uk/id/local-authority/38,Oxfordshire County Council,Support at Home 65+ Physical Support,25/04/2023,5699,,3111415901,-548.1,PLL Care Services
http://statistics.data.gov.uk/id/local-authority/38,Oxfordshire County Council,Funded Nursing Care  - Over 65,12/04/2023,5692,,3111407721,-537.92,HAMBERLEY CARE 2 LIMITED
http://statistics.data.gov.uk/id/local-authority/38,Oxfordshire County Council,2 YEAR OLD FUNDING,25/04/2023,5537,Payments to Other Establishments,3111413049,-530.1,Clanfield Pre-School
http://statistics.data.gov.uk/id/local-authority/38,Oxfordshire County Council,COMM DRAWDOWN FUNDNG,20/04/2023,8102,Payments to main contractor,2201103126,-529.47,Milestone Infrastructure Limited
http://statistics.data.gov.uk/id/local-authority/38,Oxfordshire County Council,Support at Home U65 Physical Support,25/04/2023,5699,,3111415424,-529.2,Calvary Care Ltd
http://statistics.data.gov.uk/id/local-authority/38,Oxfordshire County Council,Support at Home 65+ Physical Support,25/04/2023,5699,,3111415531,-529.2,Care Outlook Ltd
http://statistics.data.gov.uk/id/local-authority/38,Oxfordshire County Council,Support at Home 65+ Physical Support,25/04/2023,5699,,3111415585,-529.2,Care Outlook Ltd
http://statistics.data.gov.uk/id/local-authority/38,Oxfordshire County Council,Support at Home 65+ Physical Support,25/04/2023,5699,,3111415907,-529.2,PLL Care Services
http://statistics.data.gov.uk/id/local-authority/38,Oxfordshire County Council,MAINSTREAM-SECONDARY,27/04/2023,4322,"Season Tickets - Bus, Rail & Ferry",3111417145,-526.25,Oxford Bus Company Ltd
http://statistics.data.gov.uk/id/local-authority/38,Oxfordshire County Council,NURSERY ED FUND,25/04/2023,5537,Payments to Other Establishments,3111413075,-522,Buds That Blossom
http://statistics.data.gov.uk/id/local-authority/38,Oxfordshire County Council,NURSERY ED FUND,25/04/2023,5537,Payments to Other Establishments,3111413076,-522,Kids Planet Jack Straws Lane Day Nu
http://statistics.data.gov.uk/id/local-authority/38,Oxfordshire County Council,NURSERY ED FUND,25/04/2023,5537,Payments to Other Establishments,3111413059,-522,St Christophers Primary School -
http://statistics.data.gov.uk/id/local-authority/38,Oxfordshire County Council,NURSERY ED FUND,25/04/2023,5537,Payments to Other Establishments,3111413053,-522,Woodcote Pre-School Group
http://statistics.data.gov.uk/id/local-authority/38,Oxfordshire County Council,Funded Nursing Care  - Over 65,12/04/2023,5692,,3111405432,-508.03,Abbey Crest Nursing Home
http://statistics.data.gov.uk/id/local-authority/38,Oxfordshire County Council,Planned Maintenance,20/04/2023,3787,Premises Repairs,2201103468,500,Ambiflex Ltd
http://statistics.data.gov.uk/id/local-authority/38,Oxfordshire County Council,MEADOWBROOK TRANSPT,27/04/2023,4330,Transport to School Activities,3111417067,500,Cherwell Cars
http://statistics.data.gov.uk/id/local-authority/38,Oxfordshire County Council,LAC PUPIL PREMIUM,20/04/2023,5537,Payments to Other Establishments,3111412054,500,Chilworth House School
http://statistics.data.gov.uk/id/local-authority/38,Oxfordshire County Council,Support at Home 65+ Physical Support,05/04/2023,4070,Cleaning services,2201099730,500,D F Williams Cleaning Services Ltd
http://statistics.data.gov.uk/id/local-authority/38,Oxfordshire County Council,Support at Home U65 Learning Disability,11/04/2023,5227,Other Transport Arrangements,3111401451,500,Her Ride Limited
http://statistics.data.gov.uk/id/local-authority/38,Oxfordshire County Council,LDD AFTER SCHOOL,11/04/2023,4330,Transport to School Activities,3111401493,500,Her Ride Limited
http://statistics.data.gov.uk/id/local-authority/38,Oxfordshire County Council,Virtual School Post 16 PPP,19/04/2023,5380,"Author, Speaker and Lecturer Fees",2201102356,500,IN-SPIRE SOUNDS CIC
http://statistics.data.gov.uk/id/local-authority/38,Oxfordshire County Council,LAC PUPIL PREMIUM,20/04/2023,5537,Payments to Other Establishments,3111412072,500,Redacted Personal Data
http://statistics.data.gov.uk/id/local-authority/38,Oxfordshire County Council,Support at Home U65 Learning Disability,11/04/2023,5227,Other Transport Arrangements,3111403559,500,Lightway Services Ltd
http://statistics.data.gov.uk/id/local-authority/38,Oxfordshire County Council,LAC PUPIL PREMIUM,20/04/2023,5537,Payments to Other Establishments,3111412066,500,Lord Williams's School
http://statistics.data.gov.uk/id/local-authority/38,Oxfordshire County Council,SEN Miscellaneous Expenditure,06/04/2023,4859,Medical and Counselling Fees,3111401414,500,Lucy Colcombe Speech Therapy
http://statistics.data.gov.uk/id/local-authority/38,Oxfordshire County Council,Co-Production Team,06/04/2023,5186,Licences,3111400976,500,OCC One Time Vendor
http://statistics.data.gov.uk/id/local-authority/38,Oxfordshire County Council,LEGAL BUDGET,25/04/2023,5251,Legal Costs,3111413576,500,OCC One Time Vendor
http://statistics.data.gov.uk/id/local-authority/38,Oxfordshire County Council,L&D CORE PROGRAMME,25/04/2023,3105,Training related expenditure,3111413579,500,OCC One Time Vendor
http://statistics.data.gov.uk/id/local-authority/38,Oxfordshire County Council,HIGHWAYS GENERAL,28/04/2023,5055,Insurance Costs,3111417304,500,OCC One Time Vendor
http://statistics.data.gov.uk/id/local-authority/38,Oxfordshire County Council,COMMUNITY & ROAD SAFETY,25/04/2023,4625,"Newspapers, Periodicals and Publications",2201104545,500,Orange-Learning Limited
http://statistics.data.gov.uk/id/local-authority/38,Oxfordshire County Council,EDUCATION APPEALS,04/04/2023,3942,Hire of Accommodation and Facilities,2201099653,500,Oxford Diocesan Board of Education
http://statistics.data.gov.uk/id/local-authority/38,Oxfordshire County Council,Support at Home U65 Learning Disability,13/04/2023,5227,Other Transport Arrangements,3111409871,500,Oxon Transport Services Ltd
http://statistics.data.gov.uk/id/local-authority/38,Oxfordshire County Council,LDD AFTER SCHOOL,21/04/2023,4330,Transport to School Activities,3111412437,500,Oxon Transport Services Ltd
http://statistics.data.gov.uk/id/local-authority/38,Oxfordshire County Council,LAC PUPIL PREMIUM,20/04/2023,5537,Payments to Other Establishments,3111412063,500,St Birinus School
http://statistics.data.gov.uk/id/local-authority/38,Oxfordshire County Council,Management Recharges,19/04/2023,3100,Educational and Vocational Training,2201102253,500,The Cherrycroft Practice Limited
http://statistics.data.gov.uk/id/local-authority/38,Oxfordshire County Council,Support at Home U65 Learning Disability,19/04/2023,5227,Other Transport Arrangements,3111411796,500,Vine Community Services Ltd T/A
http://statistics.data.gov.uk/id/local-authority/38,Oxfordshire County Council,Family Solutions Plus Non-staff - North,03/04/2023,5365,Non-Staff Subsistence and Expenses,3500094466,500,Redacted Personal Data
http://statistics.data.gov.uk/id/local-authority/38,Oxfordshire County Council,SM DISABILITIES,26/04/2023,5554,Childrens' Social Care - Direct Payments,3111416275,500.74,Purple Conversation Com In Co (DP)
http://statistics.data.gov.uk/id/local-authority/38,Oxfordshire County Council,Support at Home U65 Physical Support,12/04/2023,5899,Social Care - Direct Payments,3111404423,501.56,Purple Conversation Com In Co (DP)
http://statistics.data.gov.uk/id/local-authority/38,Oxfordshire County Council,Property Cleaning,17/04/2023,4210,Vehicles and Plant - Repairs and Main,2201101424,501.87,Flex-E-Rent
http://statistics.data.gov.uk/id/local-authority/38,Oxfordshire County Council,LANDLORD & TENANT,28/04/2023,4001,Uniform Business Rates,3500095247,502,West Oxfordshire District Council
http://statistics.data.gov.uk/id/local-authority/38,Oxfordshire County Council,LANDLORD & TENANT,28/04/2023,4001,Uniform Business Rates,3500095251,502,West Oxfordshire District Council
http://statistics.data.gov.uk/id/local-authority/38,Oxfordshire County Council,LEAVING CARE CITY 1,12/04/2023,5227,Other Transport Arrangements,9300059637,502.96,OCC SS Oxford City Div 1 Cash
http://statistics.data.gov.uk/id/local-authority/38,Oxfordshire County Council,FOSTERING MAIN,04/04/2023,5227,Other Transport Arrangements,3111399889,503.29,Redacted Personal Data
http://statistics.data.gov.uk/id/local-authority/38,Oxfordshire County Council,LANDLORD & TENANT,01/04/2023,4001,Uniform Business Rates,3500094384,503.43,West Oxfordshire District Council
http://statistics.data.gov.uk/id/local-authority/38,Oxfordshire County Council,LANDLORD & TENANT,01/04/2023,4001,Uniform Business Rates,3500094388,503.43,West Oxfordshire District Council
http://statistics.data.gov.uk/id/local-authority/38,Oxfordshire County Council,FLEET OPERATIONS,20/04/2023,4210,Vehicles and Plant - Repairs and Main,2201103288,503.5,AWP Body Repairs
http://statistics.data.gov.uk/id/local-authority/38,Oxfordshire County Council,Support at Home 65+ Learning Disability,25/04/2023,5699,,3111415257,503.77,BBC CARE SERVICE LIMITED
http://statistics.data.gov.uk/id/local-authority/38,Oxfordshire County Council,Support at Home 65+ Physical Support,19/04/2023,5693,,3111411548,504,Clark Care Services
http://statistics.data.gov.uk/id/local-authority/38,Oxfordshire County Council,Support at Home U65 Physical Support,19/04/2023,5693,,3111411562,504,HEALTHCARE ACCESS LTD
http://statistics.data.gov.uk/id/local-authority/38,Oxfordshire County Council,Support at Home U65 HFA,26/04/2023,5697,,3111416424,504,Reable Health Ltd
http://statistics.data.gov.uk/id/local-authority/38,Oxfordshire County Council,OXF. EMPLOYMENT SERV,17/04/2023,3942,Hire of Accommodation and Facilities,2201101191,504,Seacourt Hall
http://statistics.data.gov.uk/id/local-authority/38,Oxfordshire County Council,Support at Home U65 Learning Disability,12/04/2023,5690,,3111405344,504,Style Acre
http://statistics.data.gov.uk/id/local-authority/38,Oxfordshire County Council,Support at Home U65 Learning Disability,14/04/2023,5697,,3111410162,504,Trinity Carers Services Ltd
http://statistics.data.gov.uk/id/local-authority/38,Oxfordshire County Council,Support at Home U65 Learning Disability,12/04/2023,5690,,3111405213,504,Turnstyle
http://statistics.data.gov.uk/id/local-authority/38,Oxfordshire County Council,FOSTERING MAIN,11/04/2023,5549,B*Fostering Allowance - Regulation 38,3111403241,504.29,Redacted Personal Data
http://statistics.data.gov.uk/id/local-authority/38,Oxfordshire County Council,COMM DRAWDOWN FUNDNG,24/04/2023,8103,Payments to sub contractor,2201104200,505,Ecoconsult Ltd
http://statistics.data.gov.uk/id/local-authority/38,Oxfordshire County Council,Support at Home 65+ Physical Support,25/04/2023,5699,,3111415512,505.01,Care Outlook Ltd
http://statistics.data.gov.uk/id/local-authority/38,Oxfordshire County Council,POST 16 SEN,05/04/2023,4320,Pupil / Client Travel Reimbursement,3111400625,505.12,Redacted Personal Data
http://statistics.data.gov.uk/id/local-authority/38,Oxfordshire County Council,FOSTERING MAIN,04/04/2023,5227,Other Transport Arrangements,3111399968,505.16,Redacted Personal Data
http://statistics.data.gov.uk/id/local-authority/38,Oxfordshire County Council,FPT SOUTH/VALE,04/04/2023,4940,Other Services,3111400071,505.47,Redacted Personal Data
http://statistics.data.gov.uk/id/local-authority/38,Oxfordshire County Council,Property Cleaning,27/04/2023,4070,Cleaning services,2201105895,505.71,Parker Contract Cleaning
http://statistics.data.gov.uk/id/local-authority/38,Oxfordshire County Council,Independent Foster,26/04/2023,5559,,3111416575,506,Swiis Foster Care
http://statistics.data.gov.uk/id/local-authority/38,Oxfordshire County Council,Support at Home 65+ Physical Support,25/04/2023,5693,,3111414967,506.73,Premier Personal Care
http://statistics.data.gov.uk/id/local-authority/38,Oxfordshire County Council,Support at Home U65 Physical Support,28/04/2023,5696,,3111417255,506.76,Orders of St John Care Trust
http://statistics.data.gov.uk/id/local-authority/38,Oxfordshire County Council,CHC Fast Track - Sup at Home - Under 65,26/04/2023,5691,,3111416649,507,Rynes Healthcare Ltd
http://statistics.data.gov.uk/id/local-authority/38,Oxfordshire County Council,Support at Home U65 Learning Disability,12/04/2023,5899,Social Care - Direct Payments,3111404417,507.24,Purple Conversation Com In Co (DP)
http://statistics.data.gov.uk/id/local-authority/38,Oxfordshire County Council,Funded Nursing Care  - Over 65,12/04/2023,5692,,3111405441,508.03,Abbey Crest Nursing Home
http://statistics.data.gov.uk/id/local-authority/38,Oxfordshire County Council,Support at Home 65+ Physical Support,25/04/2023,5696,,3111415103,508.18,All Care GB Ltd
http://statistics.data.gov.uk/id/local-authority/38,Oxfordshire County Council,Support at Home 65+ Physical Support,25/04/2023,5699,,3111416041,508.2,Ringstead Healthcare Limited
http://statistics.data.gov.uk/id/local-authority/38,Oxfordshire County Council,FOSTERING MAIN,18/04/2023,5227,Other Transport Arrangements,3111411159,508.22,Redacted Personal Data
http://statistics.data.gov.uk/id/local-authority/38,Oxfordshire County Council,Vegetation Mgmt,25/04/2023,5526,Payments to Private Contractors,3111413592,508.24,OCC One Time Vendor
http://statistics.data.gov.uk/id/local-authority/38,Oxfordshire County Council,FPT NORTH,25/04/2023,4940,Other Services,3111413661,508.54,Redacted Personal Data
http://statistics.data.gov.uk/id/local-authority/38,Oxfordshire County Council,Support at Home 65+ Physical Support,25/04/2023,5689,,3111414719,508.66,Greigcare Home Service
http://statistics.data.gov.uk/id/local-authority/38,Oxfordshire County Council,UASC 16&17,25/04/2023,5663,B*Birthday Allowance,9300059749,509,OCC SS Oxford City Div 1 Cash
http://statistics.data.gov.uk/id/local-authority/38,Oxfordshire County Council,OCCUPATIONAL HEALTH,06/04/2023,4859,Medical and Counselling Fees,2201100051,509,People Asset Management
http://statistics.data.gov.uk/id/local-authority/38,Oxfordshire County Council,Support at Home U65 HFA,12/04/2023,5899,Social Care - Direct Payments,3111404166,509.36,Redacted Personal Data
http://statistics.data.gov.uk/id/local-authority/38,Oxfordshire County Council,Reactive Maintenance,19/04/2023,3787,Premises Repairs,2201102708,510,Ambiflex Ltd
http://statistics.data.gov.uk/id/local-authority/38,Oxfordshire County Council,ON ST PARK OXFD P&D,25/04/2023,4861,Hired and Contracted Services,2201104592,510,Flowbird Smart City
http://statistics.data.gov.uk/id/local-authority/38,Oxfordshire County Council,ON ST PARK OXFD P&D,25/04/2023,4861,Hired and Contracted Services,2201104635,510,Flowbird Smart City
http://statistics.data.gov.uk/id/local-authority/38,Oxfordshire County Council,FAM GRP CONFERENCES,20/04/2023,4940,Other Services,2201103438,510,Mrs Laurie Smith
http://statistics.data.gov.uk/id/local-authority/38,Oxfordshire County Council,Family Solutions Plus Non-staff - North,13/04/2023,5227,Other Transport Arrangements,3111409858,510,Oxon Transport Services Ltd
http://statistics.data.gov.uk/id/local-authority/38,Oxfordshire County Council,Support at Home U65 Learning Disability,12/04/2023,5690,,3111405184,510.32,MacIntyre Care (Womaston)
http://statistics.data.gov.uk/id/local-authority/38,Oxfordshire County Council,LANDLORD & TENANT,28/04/2023,4001,Uniform Business Rates,3500095269,511,South Oxfordshire District Council
http://statistics.data.gov.uk/id/local-authority/38,Oxfordshire County Council,Support at Home U65 Physical Support,12/04/2023,5690,,3111407212,511.07,ADVANCE HOUSING & SUPPORT LTD
http://statistics.data.gov.uk/id/local-authority/38,Oxfordshire County Council,Support at Home 65+ Learning Disability,12/04/2023,5690,,3111407327,511.07,Style Acre
http://statistics.data.gov.uk/id/local-authority/38,Oxfordshire County Council,Support at Home U65 Physical Support,12/04/2023,5899,Social Care - Direct Payments,3111404087,511.28,Redacted Personal Data
http://statistics.data.gov.uk/id/local-authority/38,Oxfordshire County Council,Support at Home U65 Learning Disability,12/04/2023,5899,Social Care - Direct Payments,3111404308,511.96,Purple Conversation Com In Co (DP)
http://statistics.data.gov.uk/id/local-authority/38,Oxfordshire County Council,Support at Home 65+ Other /Soc Isolation,12/04/2023,5693,,3111405084,512,Redacted Personal Data
http://statistics.data.gov.uk/id/local-authority/38,Oxfordshire County Council,Support at Home U65 Learning Disability,12/04/2023,5899,Social Care - Direct Payments,3111403932,512.96,Redacted Personal Data
http://statistics.data.gov.uk/id/local-authority/38,Oxfordshire County Council,Support at Home 65+ Physical Support,12/04/2023,5899,Social Care - Direct Payments,3111404766,513.2,Purple Conversation Com In Co (DP)
http://statistics.data.gov.uk/id/local-authority/38,Oxfordshire County Council,Support at Home U65 Learning Disability,12/04/2023,5690,,3111405166,513.86,The Laurels (Witney)
http://statistics.data.gov.uk/id/local-authority/38,Oxfordshire County Council,SHARED LIVES,12/04/2023,5555,Payments to Carers,3111405925,514.35,Redacted Personal Data
http://statistics.data.gov.uk/id/local-authority/38,Oxfordshire County Council,Support at Home U65 Learning Disability,12/04/2023,5690,,3111405348,515.14,Style Acre
http://statistics.data.gov.uk/id/local-authority/38,Oxfordshire County Council,LANDLORD & TENANT,01/04/2023,4001,Uniform Business Rates,3500094398,515.75,South Oxfordshire District Council
http://statistics.data.gov.uk/id/local-authority/38,Oxfordshire County Council,SEN TRANSPORT,05/04/2023,4320,Pupil / Client Travel Reimbursement,3111400549,515.76,Redacted Personal Data
http://statistics.data.gov.uk/id/local-authority/38,Oxfordshire County Council,POST 16 SEN,05/04/2023,4320,Pupil / Client Travel Reimbursement,3111400629,515.76,Redacted Personal Data
http://statistics.data.gov.uk/id/local-authority/38,Oxfordshire County Council,POST 16 SEN,05/04/2023,4320,Pupil / Client Travel Reimbursement,3111400501,515.76,Redacted Personal Data
http://statistics.data.gov.uk/id/local-authority/38,Oxfordshire County Council,CHC Fast Track - Sup at Homes - Over 65,21/04/2023,5691,,3111412689,516,FiNN Homecare Ltd
http://statistics.data.gov.uk/id/local-authority/38,Oxfordshire County Council,Delegated Health Tasks  - Under 65,21/04/2023,5691,,3111412712,516,FiNN Homecare Ltd
http://statistics.data.gov.uk/id/local-authority/38,Oxfordshire County Council,Delegated Health Tasks  - Over 65,28/04/2023,5691,,3111417433,516,FiNN Homecare Ltd
http://statistics.data.gov.uk/id/local-authority/38,Oxfordshire County Council,LEGAL BUDGET,05/04/2023,5251,Legal Costs,2201099914,516.1,JKS Independent Social Work Service
http://statistics.data.gov.uk/id/local-authority/38,Oxfordshire County Council,LEAVING CARE SOUTH,26/04/2023,5572,,9300059759,516.65,OCC SS Oxford City Div 1 Cash
http://statistics.data.gov.uk/id/local-authority/38,Oxfordshire County Council,Reactive Maintenance,11/04/2023,4122,Other premises related costs,2201100362,517.17,Ecolab Ltd (Pest Division)
http://statistics.data.gov.uk/id/local-authority/38,Oxfordshire County Council,FPT NORTH,18/04/2023,4685,Clothing and Uniforms,3111411264,517.43,Redacted Personal Data
http://statistics.data.gov.uk/id/local-authority/38,Oxfordshire County Council,Support at Home U65 Learning Disability,12/04/2023,5899,Social Care - Direct Payments,3111404713,517.48,Purple Conversation Com In Co (DP)
http://statistics.data.gov.uk/id/local-authority/38,Oxfordshire County Council,Support at Home U65 Learning Disability,25/04/2023,5682,,3111414375,517.66,The Brandon Trust
http://statistics.data.gov.uk/id/local-authority/38,Oxfordshire County Council,Support at Home 65+ Learning Disability,25/04/2023,5682,,3111414398,517.66,The Brandon Trust
http://statistics.data.gov.uk/id/local-authority/38,Oxfordshire County Council,Vegetation Mgmt,28/04/2023,5526,Payments to Private Contractors,3111417537,517.98,OCC One Time Vendor
http://statistics.data.gov.uk/id/local-authority/38,Oxfordshire County Council,Swindon Adoption Support Fund,01/04/2023,4861,Hired and Contracted Services,2201102796,519.12,Clifton Children's Society
http://statistics.data.gov.uk/id/local-authority/38,Oxfordshire County Council,SM DISABILITIES,26/04/2023,5554,Childrens' Social Care - Direct Payments,3111416274,519.12,Purple Conversation Com In Co (DP)
http://statistics.data.gov.uk/id/local-authority/38,Oxfordshire County Council,Children in Care Non-staffing - North,13/04/2023,5665,B*Fostering Project Care Fee,9300059645,519.75,OCC SS Witney Area Off Cash
http://statistics.data.gov.uk/id/local-authority/38,Oxfordshire County Council,Support at Home 65+ Memory & Cognition,12/04/2023,5899,Social Care - Direct Payments,3111404813,519.96,Purple Conversation Com In Co (DP)
http://statistics.data.gov.uk/id/local-authority/38,Oxfordshire County Council,Family Solutions Plus Non-staff - South,28/04/2023,5227,Other Transport Arrangements,3111417508,520,Cherwell Cars
http://statistics.data.gov.uk/id/local-authority/38,Oxfordshire County Council,Support at Home U65 Learning Disability,19/04/2023,5227,Other Transport Arrangements,3111411773,520,Go Green Taxis
http://statistics.data.gov.uk/id/local-authority/38,Oxfordshire County Council,Reading Adoption Support Fund,12/04/2023,4861,Hired and Contracted Services,2201100639,520,The Cherrycroft Practice Limited
http://statistics.data.gov.uk/id/local-authority/38,Oxfordshire County Council,Vegetation Mgmt,20/04/2023,5526,Payments to Private Contractors,3111412249,520.19,OCC One Time Vendor
http://statistics.data.gov.uk/id/local-authority/38,Oxfordshire County Council,ECH Central Costs,12/04/2023,5696,,3111406016,520.29,BPHA Limited
http://statistics.data.gov.uk/id/local-authority/38,Oxfordshire County Council,Support at Home U65 HFA,12/04/2023,5899,Social Care - Direct Payments,3111403776,520.84,Redacted Personal Data
http://statistics.data.gov.uk/id/local-authority/38,Oxfordshire County Council,Support at Home U65 Physical Support,12/04/2023,5899,Social Care - Direct Payments,3111404526,521.2,Purple Conversation Com In Co (DP)
http://statistics.data.gov.uk/id/local-authority/38,Oxfordshire County Council,Support at Home U65 Physical Support,25/04/2023,5699,,3111415780,521.47,Home Helpers Care Ltd
http://statistics.data.gov.uk/id/local-authority/38,Oxfordshire County Council,Community Support Service Wantage,27/04/2023,2040,Agency Staff,2201105996,521.7,Completely Care Ltd
http://statistics.data.gov.uk/id/local-authority/38,Oxfordshire County Council,NURSERY ED FUND,26/04/2023,5537,Payments to Other Establishments,3111417467,522,Benson Children & Family Services
http://statistics.data.gov.uk/id/local-authority/38,Oxfordshire County Council,FLEET MAINTENANCE,12/04/2023,4495,IT Software,2201100548,522,C Track UK
http://statistics.data.gov.uk/id/local-authority/38,Oxfordshire County Council,Vegetation Mgmt,19/04/2023,5526,Payments to Private Contractors,3111411766,522.4,OCC One Time Vendor
http://statistics.data.gov.uk/id/local-authority/38,Oxfordshire County Council,Support at Home 65+ Physical Support,25/04/2023,5699,,3111415774,522.51,Home Helpers Care Ltd
http://statistics.data.gov.uk/id/local-authority/38,Oxfordshire County Council,Support at Home 65+ Physical Support,25/04/2023,5699,,3111415776,522.51,Home Helpers Care Ltd
http://statistics.data.gov.uk/id/local-authority/38,Oxfordshire County Council,Support at Home U65 Learning Disability,12/04/2023,5690,,3111405263,522.86,Style Acre
http://statistics.data.gov.uk/id/local-authority/38,Oxfordshire County Council,CONTRACT MANAGEMENT,01/04/2023,4001,Uniform Business Rates,3500094287,523.5,Cherwell District Council
http://statistics.data.gov.uk/id/local-authority/38,Oxfordshire County Council,Support at Home U65 Learning Disability,12/04/2023,5899,Social Care - Direct Payments,3111404560,523.56,Purple Conversation Com In Co (DP)
http://statistics.data.gov.uk/id/local-authority/38,Oxfordshire County Council,FOSTERING MAIN,18/04/2023,5549,B*Fostering Allowance - Regulation 38,3111411234,523.9,Redacted Personal Data
http://statistics.data.gov.uk/id/local-authority/38,Oxfordshire County Council,CONTRACT MANAGEMENT,28/04/2023,4001,Uniform Business Rates,3500095147,524,Cherwell District Council
http://statistics.data.gov.uk/id/local-authority/38,Oxfordshire County Council,Family Solutions Plus Non-staff - North,17/04/2023,4940,Other Services,2201101182,524.2,Bright Horizons
http://statistics.data.gov.uk/id/local-authority/38,Oxfordshire County Council,Property Cleaning,19/04/2023,4070,Cleaning services,2201102766,524.44,Parker Contract Cleaning
http://statistics.data.gov.uk/id/local-authority/38,Oxfordshire County Council,SM DISABILITIES,26/04/2023,5554,Childrens' Social Care - Direct Payments,3111416245,524.56,Purple Conversation Com In Co (DP)
http://statistics.data.gov.uk/id/local-authority/38,Oxfordshire County Council,SEN TRANSPORT,19/04/2023,4320,Pupil / Client Travel Reimbursement,3111411777,524.7,Redacted Personal Data
http://statistics.data.gov.uk/id/local-authority/38,Oxfordshire County Council,LOOKED AFTER CITY 1,11/04/2023,4685,Clothing and Uniforms,9300059633,524.84,OCC SS Oxford City Div 1 Cash
http://statistics.data.gov.uk/id/local-authority/38,Oxfordshire County Council,TRANSPORT COSTS,05/04/2023,5227,Other Transport Arrangements,3111400711,525,Go Green Taxis
http://statistics.data.gov.uk/id/local-authority/38,Oxfordshire County Council,Support at Home U65 Learning Disability,12/04/2023,5899,Social Care - Direct Payments,3111403880,525.4,Redacted Personal Data
http://statistics.data.gov.uk/id/local-authority/38,Oxfordshire County Council,Support at Home U65 Physical Support,26/04/2023,5693,,3111416366,525.73,BE WELL CARE LTD
http://statistics.data.gov.uk/id/local-authority/38,Oxfordshire County Council,FOSTERING MAIN,11/04/2023,5549,B*Fostering Allowance - Regulation 38,3111402828,525.9,Redacted Personal Data
http://statistics.data.gov.uk/id/local-authority/38,Oxfordshire County Council,Support at Home 65+ Physical Support,28/04/2023,5696,,3111417261,526.23,Orders of St John Care Trust
http://statistics.data.gov.uk/id/local-authority/38,Oxfordshire County Council,COUNTY PRINT FINSHRS,18/04/2023,4706,Stationery and other office consumables,2201101601,526.91,Lexon Group
http://statistics.data.gov.uk/id/local-authority/38,Oxfordshire County Council,FAM GRP CONFERENCES,28/04/2023,4940,Other Services,2201106446,526.96,Jessica Howards
http://statistics.data.gov.uk/id/local-authority/38,Oxfordshire County Council,FOSTERING MAIN,04/04/2023,5549,B*Fostering Allowance - Regulation 38,3111399966,527.15,Redacted Personal Data
http://statistics.data.gov.uk/id/local-authority/38,Oxfordshire County Council,Support at Home 65+ Physical Support,12/04/2023,5899,Social Care - Direct Payments,3111404557,527.56,Purple Conversation Com In Co (DP)
http://statistics.data.gov.uk/id/local-authority/38,Oxfordshire County Council,NURSERY ED FUND,25/04/2023,5537,Payments to Other Establishments,3111413078,527.62,Katie Rebecca Hoare Childminder
http://statistics.data.gov.uk/id/local-authority/38,Oxfordshire County Council,Vegetation Mgmt,17/04/2023,5526,Payments to Private Contractors,3111410305,527.75,Ascott-under-Wychwood Parish Counci
http://statistics.data.gov.uk/id/local-authority/38,Oxfordshire County Council,SHARED LIVES,12/04/2023,5555,Payments to Carers,3111405963,527.88,Redacted Personal Data
http://statistics.data.gov.uk/id/local-authority/38,Oxfordshire County Council,Family Solutions Plus Non-staff - North,19/04/2023,5227,Other Transport Arrangements,3111411817,528,Bicester Cars UK Ltd
http://statistics.data.gov.uk/id/local-authority/38,Oxfordshire County Council,Family Solutions Plus Non-staff - North,13/04/2023,5227,Other Transport Arrangements,3111410033,528,Unitaxi Ltd
http://statistics.data.gov.uk/id/local-authority/38,Oxfordshire County Council,Support at Home U65 Physical Support,14/04/2023,5693,,3111410153,528.4,Helping Hands
http://statistics.data.gov.uk/id/local-authority/38,Oxfordshire County Council,Support at Home U65 Learning Disability,11/04/2023,5899,Social Care - Direct Payments,3111402007,528.69,Redacted Personal Data
http://statistics.data.gov.uk/id/local-authority/38,Oxfordshire County Council,Vegetation Mgmt,11/04/2023,5526,Payments to Private Contractors,3111401467,528.8,Little Milton Parish Council
http://statistics.data.gov.uk/id/local-authority/38,Oxfordshire County Council,FOSTERING MAIN,04/04/2023,5549,B*Fostering Allowance - Regulation 38,3111399737,529,Redacted Personal Data
http://statistics.data.gov.uk/id/local-authority/38,Oxfordshire County Council,FOSTERING MAIN,11/04/2023,5549,B*Fostering Allowance - Regulation 38,3111402970,529,Redacted Personal Data
http://statistics.data.gov.uk/id/local-authority/38,Oxfordshire County Council,FOSTERING MAIN,18/04/2023,5549,B*Fostering Allowance - Regulation 38,3111411123,529,Redacted Personal Data
http://statistics.data.gov.uk/id/local-authority/38,Oxfordshire County Council,FOSTERING MAIN,25/04/2023,5549,B*Fostering Allowance - Regulation 38,3111413790,529,Redacted Personal Data
http://statistics.data.gov.uk/id/local-authority/38,Oxfordshire County Council,Support at Home U65 Memory & Cognition,12/04/2023,5899,Social Care - Direct Payments,3111404688,529,Purple Conversation Com In Co (DP)
http://statistics.data.gov.uk/id/local-authority/38,Oxfordshire County Council,Support at Home 65+ Physical Support,19/04/2023,5693,,3111411574,529.2,JMC Care Solutions Limited
http://statistics.data.gov.uk/id/local-authority/38,Oxfordshire County Council,Support at Home U65 Physical Support,19/04/2023,5693,,3111411675,529.2,SureCare Oxfordshire
http://statistics.data.gov.uk/id/local-authority/38,Oxfordshire County Council,FLEET MAINTENANCE,26/04/2023,4220,Vehicle Workshop Spares and Consumables,2201105452,529.41,Forge Garage
http://statistics.data.gov.uk/id/local-authority/38,Oxfordshire County Council,Support at Home 65+ Physical Support,25/04/2023,5699,,3111415908,529.94,PLL Care Services
http://statistics.data.gov.uk/id/local-authority/38,Oxfordshire County Council,TRANSPORT COSTS,05/04/2023,5227,Other Transport Arrangements,3111400705,530,Go Green Taxis
http://statistics.data.gov.uk/id/local-authority/38,Oxfordshire County Council,TRAINING MANAGEMENT,12/04/2023,3100,Educational and Vocational Training,2201100634,530,Premier Partnership
http://statistics.data.gov.uk/id/local-authority/38,Oxfordshire County Council,Support at Home U65 HFA,11/04/2023,5899,Social Care - Direct Payments,3111401524,530.27,Connection Support (Oxford)
http://statistics.data.gov.uk/id/local-authority/38,Oxfordshire County Council,Support at Home U65 Physical Support,03/04/2023,5696,,3111398579,530.72,Orders of St John Care Trust
http://statistics.data.gov.uk/id/local-authority/38,Oxfordshire County Council,Support at Home 65+ Physical Support,25/04/2023,5696,,3111415190,531.21,Radis Community Care
http://statistics.data.gov.uk/id/local-authority/38,Oxfordshire County Council,Support at Home U65 Other /Soc Isolation,12/04/2023,5899,Social Care - Direct Payments,3111404792,531.28,Purple Conversation Com In Co (DP)
http://statistics.data.gov.uk/id/local-authority/38,Oxfordshire County Council,Support at Home U65 Learning Disability,12/04/2023,5899,Social Care - Direct Payments,3111403611,531.48,Redacted Personal Data
http://statistics.data.gov.uk/id/local-authority/38,Oxfordshire County Council,SM DISABILITIES,26/04/2023,5554,Childrens' Social Care - Direct Payments,3111416156,531.52,Connection Support (Oxford)
http://statistics.data.gov.uk/id/local-authority/38,Oxfordshire County Council,Delegated Health Tasks  - Over 65,24/04/2023,5691,,3111412945,532,Prime Social Care Services Ltd
http://statistics.data.gov.uk/id/local-authority/38,Oxfordshire County Council,Community Support Service Bicester,20/04/2023,2040,Agency Staff,2201103242,532.8,Completely Care Ltd
http://statistics.data.gov.uk/id/local-authority/38,Oxfordshire County Council,FOSTERING MAIN,18/04/2023,5227,Other Transport Arrangements,3111411381,532.83,Redacted Personal Data
http://statistics.data.gov.uk/id/local-authority/38,Oxfordshire County Council,,13/04/2023,1448,Blackfield Inc & Exp A/c,3111410075,533.94,OCC One Time Vendor
http://statistics.data.gov.uk/id/local-authority/38,Oxfordshire County Council,SEN TRANSPORT,05/04/2023,4320,Pupil / Client Travel Reimbursement,3111400552,534.18,Redacted Personal Data
http://statistics.data.gov.uk/id/local-authority/38,Oxfordshire County Council,FOSTERING MAIN,04/04/2023,5541,B*Foster Parents,3111399960,535,Redacted Personal Data
http://statistics.data.gov.uk/id/local-authority/38,Oxfordshire County Council,FOSTERING MAIN,11/04/2023,5541,B*Foster Parents,3111403185,535,Redacted Personal Data
http://statistics.data.gov.uk/id/local-authority/38,Oxfordshire County Council,FOSTERING MAIN,18/04/2023,5541,B*Foster Parents,3111411329,535,Redacted Personal Data
http://statistics.data.gov.uk/id/local-authority/38,Oxfordshire County Council,FOSTERING MAIN,25/04/2023,5541,B*Foster Parents,3111413979,535,Redacted Personal Data
http://statistics.data.gov.uk/id/local-authority/38,Oxfordshire County Council,FOSTERING MAIN,18/04/2023,5548,B*Fostering - Special Rates & Plus Amou,3111411383,535.57,Redacted Personal Data
http://statistics.data.gov.uk/id/local-authority/38,Oxfordshire County Council,Support at Home U65 Learning Disability,11/04/2023,5899,Social Care - Direct Payments,3111402558,535.65,Purple Conversation Com In Co (DP)
http://statistics.data.gov.uk/id/local-authority/38,Oxfordshire County Council,Support at Home U65 Other /Soc Isolation,12/04/2023,5690,,3111407214,535.71,Headway Oxford
http://statistics.data.gov.uk/id/local-authority/38,Oxfordshire County Council,Support at Home 65+ Memory & Cognition,25/04/2023,5699,,3111415202,535.84,Adult Transition Services Ltd (ATrS
http://statistics.data.gov.uk/id/local-authority/38,Oxfordshire County Council,Support at Home 65+ Physical Support,25/04/2023,5693,,3111414808,535.84,My Carer Ltd
http://statistics.data.gov.uk/id/local-authority/38,Oxfordshire County Council,Planned Maintenance,13/04/2023,4477,Catering Equipment,2201100842,536.03,Whitco Catering & Bakery Equipment
http://statistics.data.gov.uk/id/local-authority/38,Oxfordshire County Council,2 YEAR OLD FUNDING,25/04/2023,5537,Payments to Other Establishments,3111413381,536.54,Kimberley Johns
http://statistics.data.gov.uk/id/local-authority/38,Oxfordshire County Council,SEN TRANSPORT,05/04/2023,4320,Pupil / Client Travel Reimbursement,3111400518,536.69,Redacted Personal Data
http://statistics.data.gov.uk/id/local-authority/38,Oxfordshire County Council,FOSTERING MAIN,25/04/2023,5549,B*Fostering Allowance - Regulation 38,3111413679,536.9,Redacted Personal Data
http://statistics.data.gov.uk/id/local-authority/38,Oxfordshire County Council,Support at Home U65 Physical Support,25/04/2023,5698,,3111414769,537.28,KCARE NURSING AGENCY
http://statistics.data.gov.uk/id/local-authority/38,Oxfordshire County Council,FLEET OPERATIONS,20/04/2023,4210,Vehicles and Plant - Repairs and Main,2201103283,537.5,AWP Body Repairs
http://statistics.data.gov.uk/id/local-authority/38,Oxfordshire County Council,Support at Home U65 MH OBC Contract,12/04/2023,5899,Social Care - Direct Payments,3111403586,537.56,Redacted Personal Data
http://statistics.data.gov.uk/id/local-authority/38,Oxfordshire County Council,Support at Home 65+ Mental Health,11/04/2023,5899,Social Care - Direct Payments,3111402712,537.63,Rosekel Resourcing Ltd
http://statistics.data.gov.uk/id/local-authority/38,Oxfordshire County Council,FOSTERING MAIN,04/04/2023,5227,Other Transport Arrangements,3111400074,537.94,Redacted Personal Data
http://statistics.data.gov.uk/id/local-authority/38,Oxfordshire County Council,Support at Home U65 Physical Support,25/04/2023,5699,,3111415727,538.05,Enable Health Ltd
http://statistics.data.gov.uk/id/local-authority/38,Oxfordshire County Council,CONCESSIONARY FARES,20/04/2023,5781,Payments to Transport Operators,2201103259,538.45,Fast and Last Mile CIC
http://statistics.data.gov.uk/id/local-authority/38,Oxfordshire County Council,Support at Home 65+ Physical Support,25/04/2023,5698,,3111414899,538.45,Oxfordshire Crossroads
http://statistics.data.gov.uk/id/local-authority/38,Oxfordshire County Council,LEAVING CARE NORTH,12/04/2023,4407,Equipment,9300059639,538.5,OCC SS Oxford City Div 1 Cash
http://statistics.data.gov.uk/id/local-authority/38,Oxfordshire County Council,FOSTERING MAIN,11/04/2023,5532,B*Fostering - Loan Equipment,3111403109,538.72,Redacted Personal Data
http://statistics.data.gov.uk/id/local-authority/38,Oxfordshire County Council,Vegetation Mgmt,06/04/2023,5526,Payments to Private Contractors,3111400952,538.94,Claydon with Clattercote Parish Cou
http://statistics.data.gov.uk/id/local-authority/38,Oxfordshire County Council,FOSTERING MAIN,04/04/2023,5549,B*Fostering Allowance - Regulation 38,3111399950,539,Redacted Personal Data
http://statistics.data.gov.uk/id/local-authority/38,Oxfordshire County Council,FOSTERING MAIN,11/04/2023,5549,B*Fostering Allowance - Regulation 38,3111403175,539,Redacted Personal Data
http://statistics.data.gov.uk/id/local-authority/38,Oxfordshire County Council,FOSTERING MAIN,18/04/2023,5549,B*Fostering Allowance - Regulation 38,3111411321,539,Redacted Personal Data
http://statistics.data.gov.uk/id/local-authority/38,Oxfordshire County Council,FOSTERING MAIN,25/04/2023,5549,B*Fostering Allowance - Regulation 38,3111413971,539,Redacted Personal Data
http://statistics.data.gov.uk/id/local-authority/38,Oxfordshire County Council,Support at Home U65 Memory & Cognition,12/04/2023,5899,Social Care - Direct Payments,3111404454,539.68,Purple Conversation Com In Co (DP)
http://statistics.data.gov.uk/id/local-authority/38,Oxfordshire County Council,Support at Home U65 Learning Disability,19/04/2023,5227,Other Transport Arrangements,3111411753,539.82,The Oxfordshire Taxi Company Ltd T/
http://statistics.data.gov.uk/id/local-authority/38,Oxfordshire County Council,SEN TRANSPORT,11/04/2023,5227,Other Transport Arrangements,3111401500,540,Her Ride Limited
http://statistics.data.gov.uk/id/local-authority/38,Oxfordshire County Council,Family Solutions Plus Non-staff - North,11/04/2023,5227,Other Transport Arrangements,3111403524,540,Her Ride Limited
http://statistics.data.gov.uk/id/local-authority/38,Oxfordshire County Council,Community Support Service - Abingdon,13/04/2023,5227,Other Transport Arrangements,3111409832,540,Oxon Transport Services Ltd
http://statistics.data.gov.uk/id/local-authority/38,Oxfordshire County Council,RESOURCE EFFICIENCY,04/04/2023,4665,Catering,2201099379,540,Waste2Taste CIC
http://statistics.data.gov.uk/id/local-authority/38,Oxfordshire County Council,SM DISABILITIES,26/04/2023,5554,Childrens' Social Care - Direct Payments,3111416172,540.07,Redacted Personal Data
http://statistics.data.gov.uk/id/local-authority/38,Oxfordshire County Council,,20/04/2023,1448,Blackfield Inc & Exp A/c,3111412260,540.1,OCC One Time Vendor
http://statistics.data.gov.uk/id/local-authority/38,Oxfordshire County Council,Support at Home U65 Learning Disability,03/04/2023,5696,,3111398536,540.46,Orders of St John Care Trust
http://statistics.data.gov.uk/id/local-authority/38,Oxfordshire County Council,Support at Home U65 Learning Disability,04/04/2023,5899,Social Care - Direct Payments,3111399347,540.63,Purple Conversation Com In Co (DP)
http://statistics.data.gov.uk/id/local-authority/38,Oxfordshire County Council,Support at Home U65 Learning Disability,25/04/2023,5696,,3111415223,540.89,Radis Community Care
http://statistics.data.gov.uk/id/local-authority/38,Oxfordshire County Council,Support at Home U65 Learning Disability,06/04/2023,5227,Other Transport Arrangements,3111400808,541,Schon Executive Cars Ltd
http://statistics.data.gov.uk/id/local-authority/38,Oxfordshire County Council,CHC Fast Track - Sup at Homes - Over 65,06/04/2023,5691,,3111401048,541,We Care (TJ) LTD
http://statistics.data.gov.uk/id/local-authority/38,Oxfordshire County Council,Family Solutions Plus Non-staff - North,05/04/2023,5227,Other Transport Arrangements,3111400343,541.25,24 Seven Cars (Oxford) Ltd
http://statistics.data.gov.uk/id/local-authority/38,Oxfordshire County Council,SHARED LIVES,12/04/2023,5555,Payments to Carers,3111406155,541.44,Redacted Personal Data
http://statistics.data.gov.uk/id/local-authority/38,Oxfordshire County Council,Support at Home U65 HFA,12/04/2023,5899,Social Care - Direct Payments,3111404072,541.52,Redacted Personal Data
http://statistics.data.gov.uk/id/local-authority/38,Oxfordshire County Council,Support at Home 65+ Physical Support,19/04/2023,5693,,3111411613,541.66,Pioneering Care Bicester Limited
http://statistics.data.gov.uk/id/local-authority/38,Oxfordshire County Council,Support at Home U65 Learning Disability,12/04/2023,5690,,3111407337,541.67,The Camden Society
http://statistics.data.gov.uk/id/local-authority/38,Oxfordshire County Council,FLEET COSTS,04/04/2023,4270,HTM / Other Vehicle - Hire Charges,2201099601,541.88,Go Plant Fleet Services
http://statistics.data.gov.uk/id/local-authority/38,Oxfordshire County Council,FOSTERING MAIN,04/04/2023,5545,B*Fostering Enhancements - Level 2,3111399673,542,Redacted Personal Data
http://statistics.data.gov.uk/id/local-authority/38,Oxfordshire County Council,FOSTERING MAIN,11/04/2023,5545,B*Fostering Enhancements - Level 2,3111402902,542,Redacted Personal Data
http://statistics.data.gov.uk/id/local-authority/38,Oxfordshire County Council,FOSTERING MAIN,18/04/2023,5545,B*Fostering Enhancements - Level 2,3111411039,542,Redacted Personal Data
http://statistics.data.gov.uk/id/local-authority/38,Oxfordshire County Council,FOSTERING MAIN,25/04/2023,5545,B*Fostering Enhancements - Level 2,3111413727,542,Redacted Personal Data
http://statistics.data.gov.uk/id/local-authority/38,Oxfordshire County Council,Support at Home 65+ Physical Support,25/04/2023,5699,,3111415140,542.08,Abi-Support Ltd
http://statistics.data.gov.uk/id/local-authority/38,Oxfordshire County Council,Vegetation Mgmt,17/04/2023,5526,Payments to Private Contractors,3111410298,542.64,OCC One Time Vendor
http://statistics.data.gov.uk/id/local-authority/38,Oxfordshire County Council,FOSTERING MAIN,04/04/2023,5549,B*Fostering Allowance - Regulation 38,3111399964,542.86,Redacted Personal Data
http://statistics.data.gov.uk/id/local-authority/38,Oxfordshire County Council,UASC 16&17,28/04/2023,5665,B*Fostering Project Care Fee,9300059818,543.2,OCC SS Oxford City Div 1 Cash
http://statistics.data.gov.uk/id/local-authority/38,Oxfordshire County Council,Oxfordshire Adoption Support Fund,21/04/2023,4861,Hired and Contracted Services,2201103585,544,The Owl Centre Ltd
http://statistics.data.gov.uk/id/local-authority/38,Oxfordshire County Council,Support at Home U65 Physical Support,25/04/2023,5689,,3111414783,544.26,My Carer Ltd
http://statistics.data.gov.uk/id/local-authority/38,Oxfordshire County Council,Support at Home U65 MH OBC Contract,12/04/2023,5899,Social Care - Direct Payments,3111404638,544.32,Purple Conversation Com In Co (DP)
http://statistics.data.gov.uk/id/local-authority/38,Oxfordshire County Council,Support at Home U65 MH OBC Contract,12/04/2023,5899,Social Care - Direct Payments,3111404650,544.32,Purple Conversation Com In Co (DP)
http://statistics.data.gov.uk/id/local-authority/38,Oxfordshire County Council,Support at Home 65+ Memory & Cognition,12/04/2023,5690,,3111405138,544.63,Daybreak Oxford
http://statistics.data.gov.uk/id/local-authority/38,Oxfordshire County Council,Support at Home 65+ Memory & Cognition,12/04/2023,5690,,3111405139,544.63,Daybreak Oxford
http://statistics.data.gov.uk/id/local-authority/38,Oxfordshire County Council,,06/04/2023,1325,Attachment of Earnings,3111400840,544.78,DWP DEPT MANAGEMENT
http://statistics.data.gov.uk/id/local-authority/38,Oxfordshire County Council,Catering Management Soft FM,16/04/2023,4665,Catering,2201101120,545,Whitco Catering & Bakery Equipment
http://statistics.data.gov.uk/id/local-authority/38,Oxfordshire County Council,Support at Home U65 Other /Soc Isolation,12/04/2023,5693,,3111405094,545.16,MacIntyre Care (Womaston)
http://statistics.data.gov.uk/id/local-authority/38,Oxfordshire County Council,Support at Home U65 Physical Support,28/04/2023,5696,,3111417237,545.22,Orders of St John Care Trust
http://statistics.data.gov.uk/id/local-authority/38,Oxfordshire County Council,Support at Home 65+ Learning Disability,28/04/2023,5696,,3111417244,545.22,Orders of St John Care Trust
http://statistics.data.gov.uk/id/local-authority/38,Oxfordshire County Council,Support at Home 65+ Physical Support,03/04/2023,5696,,3111398582,545.33,Orders of St John Care Trust
http://statistics.data.gov.uk/id/local-authority/38,Oxfordshire County Council,Support at Home 65+ Physical Support,03/04/2023,5696,,3111398594,545.33,Orders of St John Care Trust
http://statistics.data.gov.uk/id/local-authority/38,Oxfordshire County Council,Support at Home U65 Physical Support,03/04/2023,5696,,3111398607,545.33,Orders of St John Care Trust
http://statistics.data.gov.uk/id/local-authority/38,Oxfordshire County Council,Support at Home U65 MH OBC Contract,12/04/2023,5690,,3111407263,545.66,Autism at Kingwood Limited
http://statistics.data.gov.uk/id/local-authority/38,Oxfordshire County Council,Support at Home U65 Learning Disability,12/04/2023,5690,,3111407277,545.66,MacIntyre Care (Womaston)
http://statistics.data.gov.uk/id/local-authority/38,Oxfordshire County Council,FOSTERING MAIN,04/04/2023,5541,B*Foster Parents,3111399727,546,Redacted Personal Data
http://statistics.data.gov.uk/id/local-authority/38,Oxfordshire County Council,FOSTERING MAIN,04/04/2023,5541,B*Foster Parents,3111399729,546,Redacted Personal Data
http://statistics.data.gov.uk/id/local-authority/38,Oxfordshire County Council,FOSTERING MAIN,11/04/2023,5541,B*Foster Parents,3111402960,546,Redacted Personal Data
http://statistics.data.gov.uk/id/local-authority/38,Oxfordshire County Council,FOSTERING MAIN,11/04/2023,5541,B*Foster Parents,3111402962,546,Redacted Personal Data
http://statistics.data.gov.uk/id/local-authority/38,Oxfordshire County Council,FOSTERING MAIN,18/04/2023,5541,B*Foster Parents,3111411115,546,Redacted Personal Data
http://statistics.data.gov.uk/id/local-authority/38,Oxfordshire County Council,FOSTERING MAIN,25/04/2023,5541,B*Foster Parents,3111413779,546,Redacted Personal Data
http://statistics.data.gov.uk/id/local-authority/38,Oxfordshire County Council,FOSTERING MAIN,25/04/2023,5541,B*Foster Parents,3111413781,546,Redacted Personal Data
http://statistics.data.gov.uk/id/local-authority/38,Oxfordshire County Council,Support at Home 65+ Physical Support,25/04/2023,5699,,3111415294,546.44,Bridges Home Care Ltd
http://statistics.data.gov.uk/id/local-authority/38,Oxfordshire County Council,VOIDS/VACANCY COSTS,12/04/2023,3945,Rent,3111409779,546.51,Cherwell District Council
http://statistics.data.gov.uk/id/local-authority/38,Oxfordshire County Council,VOIDS/VACANCY COSTS,12/04/2023,3945,Rent,3111409780,546.51,Cherwell District Council
http://statistics.data.gov.uk/id/local-authority/38,Oxfordshire County Council,Support at Home U65 Physical Support,28/04/2023,5696,,3111417294,546.58,Orders of St John Care Trust
http://statistics.data.gov.uk/id/local-authority/38,Oxfordshire County Council,Support at Home 65+ Memory & Cognition,25/04/2023,5699,,3111415481,546.71,Care Hearted Ltd
http://statistics.data.gov.uk/id/local-authority/38,Oxfordshire County Council,Support at Home 65+ Physical Support,25/04/2023,5699,,3111415870,547.36,Pechiv Ltd
http://statistics.data.gov.uk/id/local-authority/38,Oxfordshire County Council,Support at Home 65+ Physical Support,25/04/2023,5699,,3111415881,547.36,Pechiv Ltd
http://statistics.data.gov.uk/id/local-authority/38,Oxfordshire County Council,Support at Home 65+ Physical Support,28/04/2023,5696,,3111417196,547.57,Orders of St John Care Trust
http://statistics.data.gov.uk/id/local-authority/38,Oxfordshire County Council,Support at Home 65+ Physical Support,25/04/2023,5689,,3111414914,549.02,PLL Care Services
http://statistics.data.gov.uk/id/local-authority/38,Oxfordshire County Council,Support at Home 65+ Physical Support,25/04/2023,5689,,3111414924,549.02,PLL Care Services
http://statistics.data.gov.uk/id/local-authority/38,Oxfordshire County Council,A.M.H.P. SERVICE,12/04/2023,4859,Medical and Counselling Fees,2201100676,549.29,Kent County Council
http://statistics.data.gov.uk/id/local-authority/38,Oxfordshire County Council,Support at Home U65 Other /Soc Isolation,12/04/2023,5899,Social Care - Direct Payments,3111403826,549.36,Redacted Personal Data
http://statistics.data.gov.uk/id/local-authority/38,Oxfordshire County Council,Support at Home 65+ Memory & Cognition,12/04/2023,5899,Social Care - Direct Payments,3111404158,549.36,Redacted Personal Data
http://statistics.data.gov.uk/id/local-authority/38,Oxfordshire County Council,TRADING STANDARDS,03/04/2023,4820,Sampling and Testing,2201099242,549.44,Hampshire County Council
http://statistics.data.gov.uk/id/local-authority/38,Oxfordshire County Council,Support at Home 65+ Learning Disability,12/04/2023,5690,,3111407232,549.51,HF TRUST Ltd
http://statistics.data.gov.uk/id/local-authority/38,Oxfordshire County Council,Homes for Ukraine - Guests,27/04/2023,5896,Adult Social Care - Other Transfer Pay,3500095109,550,Redacted Personal Data
http://statistics.data.gov.uk/id/local-authority/38,Oxfordshire County Council,Homes for Ukraine - Guests,26/04/2023,5896,Adult Social Care - Other Transfer Pay,3500095024,550,Redacted Personal Data
http://statistics.data.gov.uk/id/local-authority/38,Oxfordshire County Council,Homes for Ukraine - Guests,27/04/2023,5896,Adult Social Care - Other Transfer Pay,3500095108,550,Redacted Personal Data
http://statistics.data.gov.uk/id/local-authority/38,Oxfordshire County Council,Homes for Ukraine - Guests,26/04/2023,5896,Adult Social Care - Other Transfer Pay,3500095087,550,Redacted Personal Data
http://statistics.data.gov.uk/id/local-authority/38,Oxfordshire County Council,Homes for Ukraine - Guests,27/04/2023,5896,Adult Social Care - Other Transfer Pay,3500095125,550,Redacted Personal Data
http://statistics.data.gov.uk/id/local-authority/38,Oxfordshire County Council,Homes for Ukraine - Guests,28/04/2023,5896,Adult Social Care - Other Transfer Pay,3500095315,550,Redacted Personal Data
http://statistics.data.gov.uk/id/local-authority/38,Oxfordshire County Council,"Didcot CC, Park Road",14/04/2023,4477,Catering Equipment,2201100988,550,COOLERAID LTD
http://statistics.data.gov.uk/id/local-authority/38,Oxfordshire County Council,"Didcot CC, Park Road",20/04/2023,4477,Catering Equipment,2201102854,550,COOLERAID LTD
http://statistics.data.gov.uk/id/local-authority/38,Oxfordshire County Council,Homes for Ukraine - Guests,28/04/2023,5896,Adult Social Care - Other Transfer Pay,3500095312,550,Redacted Personal Data
http://statistics.data.gov.uk/id/local-authority/38,Oxfordshire County Council,Homes for Ukraine - Guests,27/04/2023,5896,Adult Social Care - Other Transfer Pay,3500095110,550,Redacted Personal Data
http://statistics.data.gov.uk/id/local-authority/38,Oxfordshire County Council,Homes for Ukraine - Guests,26/04/2023,5896,Adult Social Care - Other Transfer Pay,3500095083,550,Redacted Personal Data
http://statistics.data.gov.uk/id/local-authority/38,Oxfordshire County Council,Homes for Ukraine - Guests,27/04/2023,5896,Adult Social Care - Other Transfer Pay,3500095135,550,Redacted Personal Data
http://statistics.data.gov.uk/id/local-authority/38,Oxfordshire County Council,Homes for Ukraine - Guests,26/04/2023,5896,Adult Social Care - Other Transfer Pay,3500095058,550,Redacted Personal Data
http://statistics.data.gov.uk/id/local-authority/38,Oxfordshire County Council,Homes for Ukraine - Guests,26/04/2023,5896,Adult Social Care - Other Transfer Pay,3500095022,550,Redacted Personal Data
http://statistics.data.gov.uk/id/local-authority/38,Oxfordshire County Council,Homes for Ukraine - Guests,27/04/2023,5896,Adult Social Care - Other Transfer Pay,3500095124,550,Redacted Personal Data
http://statistics.data.gov.uk/id/local-authority/38,Oxfordshire County Council,Homes for Ukraine - Guests,27/04/2023,5896,Adult Social Care - Other Transfer Pay,3500095123,550,Redacted Personal Data
http://statistics.data.gov.uk/id/local-authority/38,Oxfordshire County Council,Homes for Ukraine - Guests,27/04/2023,5896,Adult Social Care - Other Transfer Pay,3500095136,550,Redacted Personal Data
http://statistics.data.gov.uk/id/local-authority/38,Oxfordshire County Council,Homes for Ukraine - Guests,26/04/2023,5896,Adult Social Care - Other Transfer Pay,3500095100,550,Redacted Personal Data
http://statistics.data.gov.uk/id/local-authority/38,Oxfordshire County Council,Homes for Ukraine - Guests,27/04/2023,5896,Adult Social Care - Other Transfer Pay,3500095117,550,Redacted Personal Data
http://statistics.data.gov.uk/id/local-authority/38,Oxfordshire County Council,Homes for Ukraine - Guests,26/04/2023,5896,Adult Social Care - Other Transfer Pay,3500095099,550,Redacted Personal Data
http://statistics.data.gov.uk/id/local-authority/38,Oxfordshire County Council,Homes for Ukraine - Guests,27/04/2023,5896,Adult Social Care - Other Transfer Pay,3500095132,550,Redacted Personal Data
http://statistics.data.gov.uk/id/local-authority/38,Oxfordshire County Council,Homes for Ukraine - Guests,27/04/2023,5896,Adult Social Care - Other Transfer Pay,3500095114,550,Redacted Personal Data
http://statistics.data.gov.uk/id/local-authority/38,Oxfordshire County Council,Homes for Ukraine - Guests,28/04/2023,5896,Adult Social Care - Other Transfer Pay,3500095314,550,Redacted Personal Data
http://statistics.data.gov.uk/id/local-authority/38,Oxfordshire County Council,Homes for Ukraine - Guests,26/04/2023,5896,Adult Social Care - Other Transfer Pay,3500095043,550,Redacted Personal Data
http://statistics.data.gov.uk/id/local-authority/38,Oxfordshire County Council,Homes for Ukraine - Guests,26/04/2023,5896,Adult Social Care - Other Transfer Pay,3500095059,550,Redacted Personal Data
http://statistics.data.gov.uk/id/local-authority/38,Oxfordshire County Council,Homes for Ukraine - Guests,26/04/2023,5896,Adult Social Care - Other Transfer Pay,3500095091,550,Redacted Personal Data
http://statistics.data.gov.uk/id/local-authority/38,Oxfordshire County Council,Homes for Ukraine - Guests,26/04/2023,5896,Adult Social Care - Other Transfer Pay,3500095034,550,Redacted Personal Data
http://statistics.data.gov.uk/id/local-authority/38,Oxfordshire County Council,TRAINING MANAGEMENT,28/04/2023,3100,Educational and Vocational Training,2201106315,550,Police & Crime Comm for W.Midlands
http://statistics.data.gov.uk/id/local-authority/38,Oxfordshire County Council,Homes for Ukraine - Guests,27/04/2023,5896,Adult Social Care - Other Transfer Pay,3500095134,550,Redacted Personal Data
http://statistics.data.gov.uk/id/local-authority/38,Oxfordshire County Council,Homes for Ukraine - Guests,26/04/2023,5896,Adult Social Care - Other Transfer Pay,3500095090,550,Redacted Personal Data
http://statistics.data.gov.uk/id/local-authority/38,Oxfordshire County Council,Homes for Ukraine - Guests,26/04/2023,5896,Adult Social Care - Other Transfer Pay,3500095094,550,Redacted Personal Data
http://statistics.data.gov.uk/id/local-authority/38,Oxfordshire County Council,Homes for Ukraine - Guests,27/04/2023,5896,Adult Social Care - Other Transfer Pay,3500095129,550,Redacted Personal Data
http://statistics.data.gov.uk/id/local-authority/38,Oxfordshire County Council,Homes for Ukraine - Guests,27/04/2023,5896,Adult Social Care - Other Transfer Pay,3500095130,550,Redacted Personal Data
http://statistics.data.gov.uk/id/local-authority/38,Oxfordshire County Council,Homes for Ukraine - Guests,27/04/2023,5896,Adult Social Care - Other Transfer Pay,3500095115,550,Redacted Personal Data
http://statistics.data.gov.uk/id/local-authority/38,Oxfordshire County Council,Homes for Ukraine - Guests,27/04/2023,5896,Adult Social Care - Other Transfer Pay,3500095116,550,Redacted Personal Data
http://statistics.data.gov.uk/id/local-authority/38,Oxfordshire County Council,Homes for Ukraine - Guests,27/04/2023,5896,Adult Social Care - Other Transfer Pay,3500095118,550,Redacted Personal Data
http://statistics.data.gov.uk/id/local-authority/38,Oxfordshire County Council,Homes for Ukraine - Guests,27/04/2023,5896,Adult Social Care - Other Transfer Pay,3500095133,550,Redacted Personal Data
http://statistics.data.gov.uk/id/local-authority/38,Oxfordshire County Council,Homes for Ukraine - Guests,27/04/2023,5896,Adult Social Care - Other Transfer Pay,3500095113,550,Redacted Personal Data
http://statistics.data.gov.uk/id/local-authority/38,Oxfordshire County Council,Homes for Ukraine - Guests,27/04/2023,5896,Adult Social Care - Other Transfer Pay,3500095127,550,Redacted Personal Data
http://statistics.data.gov.uk/id/local-authority/38,Oxfordshire County Council,SEN Early Intervention Team,26/04/2023,5537,Payments to Other Establishments,3111416133,550,The Propeller Academy Trust
http://statistics.data.gov.uk/id/local-authority/38,Oxfordshire County Council,Homes for Ukraine - Guests,27/04/2023,5896,Adult Social Care - Other Transfer Pay,3500095122,550,Redacted Personal Data
http://statistics.data.gov.uk/id/local-authority/38,Oxfordshire County Council,Homes for Ukraine - Guests,27/04/2023,5896,Adult Social Care - Other Transfer Pay,3500095111,550,Redacted Personal Data
http://statistics.data.gov.uk/id/local-authority/38,Oxfordshire County Council,Homes for Ukraine - Guests,27/04/2023,5896,Adult Social Care - Other Transfer Pay,3500095112,550,Redacted Personal Data
http://statistics.data.gov.uk/id/local-authority/38,Oxfordshire County Council,Homes for Ukraine - Guests,26/04/2023,5896,Adult Social Care - Other Transfer Pay,3500095084,550,Redacted Personal Data
http://statistics.data.gov.uk/id/local-authority/38,Oxfordshire County Council,Homes for Ukraine - Guests,27/04/2023,5896,Adult Social Care - Other Transfer Pay,3500095121,550,Redacted Personal Data
http://statistics.data.gov.uk/id/local-authority/38,Oxfordshire County Council,Homes for Ukraine - Guests,26/04/2023,5896,Adult Social Care - Other Transfer Pay,3500095086,550,Redacted Personal Data
http://statistics.data.gov.uk/id/local-authority/38,Oxfordshire County Council,Homes for Ukraine - Guests,27/04/2023,5896,Adult Social Care - Other Transfer Pay,3500095126,550,Redacted Personal Data
http://statistics.data.gov.uk/id/local-authority/38,Oxfordshire County Council,Homes for Ukraine - Guests,27/04/2023,5896,Adult Social Care - Other Transfer Pay,3500095119,550,Redacted Personal Data
http://statistics.data.gov.uk/id/local-authority/38,Oxfordshire County Council,Homes for Ukraine - Guests,26/04/2023,5896,Adult Social Care - Other Transfer Pay,3500095020,550,Redacted Personal Data
http://statistics.data.gov.uk/id/local-authority/38,Oxfordshire County Council,Homes for Ukraine - Guests,27/04/2023,5896,Adult Social Care - Other Transfer Pay,3500095120,550,Redacted Personal Data
http://statistics.data.gov.uk/id/local-authority/38,Oxfordshire County Council,Homes for Ukraine - Guests,27/04/2023,5896,Adult Social Care - Other Transfer Pay,3500095131,550,Redacted Personal Data
http://statistics.data.gov.uk/id/local-authority/38,Oxfordshire County Council,Support at Home 65+ Physical Support,25/04/2023,5698,,3111414765,550.28,KCARE NURSING AGENCY
http://statistics.data.gov.uk/id/local-authority/38,Oxfordshire County Council,Care Homes - Over 65 Physical Sypport,12/04/2023,5686,,3111406735,551.14,Cherwood House Care Centre
http://statistics.data.gov.uk/id/local-authority/38,Oxfordshire County Council,Support at Home U65 Learning Disability,25/04/2023,5682,,3111414362,551.7,The Brandon Trust
http://statistics.data.gov.uk/id/local-authority/38,Oxfordshire County Council,Support at Home U65 MH OBC Contract,11/04/2023,5899,Social Care - Direct Payments,3111402720,551.83,Rosekel Resourcing Ltd
http://statistics.data.gov.uk/id/local-authority/38,Oxfordshire County Council,Continuing Care - Support at Home - U65,24/04/2023,5691,,3111412922,551.97,Paterson Recruitment
http://statistics.data.gov.uk/id/local-authority/38,Oxfordshire County Council,SHORT BREAK ACTIVITIES,23/04/2023,5526,Payments to Private Contractors,2201104169,552,The Gallery Trust
http://statistics.data.gov.uk/id/local-authority/38,Oxfordshire County Council,Delegated Health Tasks  - Over 65,24/04/2023,5691,,3111412963,552.16,Bluebird Care (Oxford South & West)
http://statistics.data.gov.uk/id/local-authority/38,Oxfordshire County Council,SEN TRANSPORT,05/04/2023,4320,Pupil / Client Travel Reimbursement,3111400565,552.6,Redacted Personal Data
http://statistics.data.gov.uk/id/local-authority/38,Oxfordshire County Council,SEN TRANSPORT,17/04/2023,4320,Pupil / Client Travel Reimbursement,3111410515,552.6,Redacted Personal Data
http://statistics.data.gov.uk/id/local-authority/38,Oxfordshire County Council,SEN TRANSPORT,05/04/2023,4320,Pupil / Client Travel Reimbursement,3111400588,552.6,Redacted Personal Data
http://statistics.data.gov.uk/id/local-authority/38,Oxfordshire County Council,DEVELOPMENT MANAGEME,21/04/2023,4790,"Publicity, Promotions and Advertisement",2201104115,552.67,PEOPLESCOUT LIMITED
http://statistics.data.gov.uk/id/local-authority/38,Oxfordshire County Council,Support at Home U65 Physical Support,28/04/2023,5696,,3111417242,553,Orders of St John Care Trust
http://statistics.data.gov.uk/id/local-authority/38,Oxfordshire County Council,Support at Home 65+ Memory & Cognition,25/04/2023,5689,,3111414648,553.42,Elite Care Agency
http://statistics.data.gov.uk/id/local-authority/38,Oxfordshire County Council,Delegated Health Tasks  - Under 65,21/04/2023,5691,,3111412711,553.5,FiNN Homecare Ltd
http://statistics.data.gov.uk/id/local-authority/38,Oxfordshire County Council,Support at Home U65 Physical Support,12/04/2023,5693,,3111405059,554.4,Acquire Care Ltd
http://statistics.data.gov.uk/id/local-authority/38,Oxfordshire County Council,Support at Home 65+ Physical Support,26/04/2023,5693,,3111416368,554.4,Bolff Healthcare Services Ltd
http://statistics.data.gov.uk/id/local-authority/38,Oxfordshire County Council,Support at Home 65+ Physical Support,25/04/2023,5699,,3111415427,554.4,Care Outlook Ltd
http://statistics.data.gov.uk/id/local-authority/38,Oxfordshire County Council,Support at Home 65+ Physical Support,25/04/2023,5689,,3111414792,554.4,My Carer Ltd
http://statistics.data.gov.uk/id/local-authority/38,Oxfordshire County Council,SM DISABILITIES,26/04/2023,5554,Childrens' Social Care - Direct Payments,3111416251,554.5,Purple Conversation Com In Co (DP)
http://statistics.data.gov.uk/id/local-authority/38,Oxfordshire County Council,Vegetation Mgmt,06/04/2023,5526,Payments to Private Contractors,3111400954,554.73,Cuddesdon & Denton Parish Council
http://statistics.data.gov.uk/id/local-authority/38,Oxfordshire County Council,Support at Home 65+ Physical Support,25/04/2023,5689,,3111414918,554.75,PLL Care Services
http://statistics.data.gov.uk/id/local-authority/38,Oxfordshire County Council,Support at Home 65+ Physical Support,25/04/2023,5689,,3111414928,554.75,PLL Care Services
http://statistics.data.gov.uk/id/local-authority/38,Oxfordshire County Council,Support at Home 65+ Physical Support,25/04/2023,5689,,3111414933,554.75,PLL Care Services
http://statistics.data.gov.uk/id/local-authority/38,Oxfordshire County Council,Support at Home U65 Learning Disability,03/04/2023,5696,,3111398563,555.07,Orders of St John Care Trust
http://statistics.data.gov.uk/id/local-authority/38,Oxfordshire County Council,Support at Home U65 MH OBC Contract,03/04/2023,5696,,3111398614,555.07,Orders of St John Care Trust
http://statistics.data.gov.uk/id/local-authority/38,Oxfordshire County Council,FOSTERING MAIN,04/04/2023,5569,,3111400014,555.15,Redacted Personal Data
http://statistics.data.gov.uk/id/local-authority/38,Oxfordshire County Council,SHORT BREAK ACTIVITIES,26/04/2023,5526,Payments to Private Contractors,2201105120,556,The Propeller Academy Trust
http://statistics.data.gov.uk/id/local-authority/38,Oxfordshire County Council,,06/04/2023,1325,Attachment of Earnings,3111400847,556.19,Kingston upon Thame
http://statistics.data.gov.uk/id/local-authority/38,Oxfordshire County Council,Support at Home 65+ Physical Support,26/04/2023,5693,,3111416354,556.4,A CARING HAND LTD
http://statistics.data.gov.uk/id/local-authority/38,Oxfordshire County Council,Support at Home 65+ Physical Support,19/04/2023,5693,,3111411517,556.4,Angel Care Group
http://statistics.data.gov.uk/id/local-authority/38,Oxfordshire County Council,Support at Home 65+ Physical Support,19/04/2023,5693,,3111411632,556.4,Same Ways Care Ltd
http://statistics.data.gov.uk/id/local-authority/38,Oxfordshire County Council,Support at Home U65 MH OBC Contract,25/04/2023,5899,Social Care - Direct Payments,3111415324,556.44,Bridges Home Care Ltd
http://statistics.data.gov.uk/id/local-authority/38,Oxfordshire County Council,Support at Home 65+ Physical Support,25/04/2023,5699,,3111415502,556.44,Care Hearted Ltd
http://statistics.data.gov.uk/id/local-authority/38,Oxfordshire County Council,Support at Home 65+ Physical Support,25/04/2023,5699,,3111415506,556.44,Care Hearted Ltd
http://statistics.data.gov.uk/id/local-authority/38,Oxfordshire County Council,Support at Home 65+ Physical Support,25/04/2023,5699,,3111415432,556.44,Care Outlook Ltd
http://statistics.data.gov.uk/id/local-authority/38,Oxfordshire County Council,Support at Home U65 Physical Support,25/04/2023,5699,,3111415618,556.44,CaringPlus Healthcare Services Ltd
http://statistics.data.gov.uk/id/local-authority/38,Oxfordshire County Council,Support at Home 65+ Physical Support,25/04/2023,5699,,3111415854,556.44,Oxford Private Care
http://statistics.data.gov.uk/id/local-authority/38,Oxfordshire County Council,Support at Home 65+ Physical Support,26/04/2023,5693,,3111416407,556.44,Oxford Private Care
http://statistics.data.gov.uk/id/local-authority/38,Oxfordshire County Council,Support at Home 65+ Physical Support,25/04/2023,5699,,3111415948,556.44,PLL Care Services
http://statistics.data.gov.uk/id/local-authority/38,Oxfordshire County Council,Support at Home 65+ Physical Support,25/04/2023,5699,,3111415950,556.44,PLL Care Services
http://statistics.data.gov.uk/id/local-authority/38,Oxfordshire County Council,Support at Home 65+ Physical Support,19/04/2023,5693,,3111411649,556.44,SureCare Oxfordshire
http://statistics.data.gov.uk/id/local-authority/38,Oxfordshire County Council,Support at Home 65+ Physical Support,25/04/2023,5699,,3111416120,556.44,Xperience Recruitment Ltd
http://statistics.data.gov.uk/id/local-authority/38,Oxfordshire County Council,Support at Home 65+ Physical Support,25/04/2023,5689,,3111414794,556.48,My Carer Ltd
http://statistics.data.gov.uk/id/local-authority/38,Oxfordshire County Council,Support at Home U65 Physical Support,25/04/2023,5689,,3111414446,556.66,Bicester PA and Care LLP
http://statistics.data.gov.uk/id/local-authority/38,Oxfordshire County Council,FAM GRP CONFERENCES,25/04/2023,4940,Other Services,2201104918,556.9,Emma Wood
http://statistics.data.gov.uk/id/local-authority/38,Oxfordshire County Council,RESIDENTIAL TREATMEN,12/04/2023,5686,,2201100507,557.14,WESTERN COUNSELLING SERVICES LTD
http://statistics.data.gov.uk/id/local-authority/38,Oxfordshire County Council,Family Solutions Plus Non-staff - North,26/04/2023,5394,Other Expenses,9300059767,557.4,OCC SS Witney Area Off Cash
http://statistics.data.gov.uk/id/local-authority/38,Oxfordshire County Council,Support at Home 65+ Physical Support,25/04/2023,5689,,3111414797,557.68,My Carer Ltd
http://statistics.data.gov.uk/id/local-authority/38,Oxfordshire County Council,Swindon Adoption Support Fund,12/04/2023,4861,Hired and Contracted Services,2201100649,558,PACT (PARENTS & CHILDREN TOGETHER)
http://statistics.data.gov.uk/id/local-authority/38,Oxfordshire County Council,Support at Home U65 Learning Disability,11/04/2023,5899,Social Care - Direct Payments,3111402486,558.01,Purple Conversation Com In Co (DP)
http://statistics.data.gov.uk/id/local-authority/38,Oxfordshire County Council,Support at Home U65 Learning Disability,12/04/2023,5899,Social Care - Direct Payments,3111404283,558.24,Purple Conversation Com In Co (DP)
http://statistics.data.gov.uk/id/local-authority/38,Oxfordshire County Council,Mainstream Res,17/04/2023,5558,,3111410322,559,Acorn Care & Education Ltd
http://statistics.data.gov.uk/id/local-authority/38,Oxfordshire County Council,Support at Home 65+ Memory & Cognition,25/04/2023,5696,,3111415087,559.73,All Care GB Ltd
http://statistics.data.gov.uk/id/local-authority/38,Oxfordshire County Council,Bracknell Adoption Support Fund,01/04/2023,4861,Hired and Contracted Services,2201100643,560,PACT (PARENTS & CHILDREN TOGETHER)
http://statistics.data.gov.uk/id/local-authority/38,Oxfordshire County Council,Support at Home U65 Learning Disability,12/04/2023,5899,Social Care - Direct Payments,3111403859,560.4,Redacted Personal Data
http://statistics.data.gov.uk/id/local-authority/38,Oxfordshire County Council,Support at Home U65 Learning Disability,12/04/2023,5690,,3111405145,560.57,FIT (Farm Inspiration Trust)
http://statistics.data.gov.uk/id/local-authority/38,Oxfordshire County Council,LANDLORD & TENANT,28/04/2023,4001,Uniform Business Rates,3500095301,561,Vale of White Horse District Counci
http://statistics.data.gov.uk/id/local-authority/38,Oxfordshire County Council,Family Solutions Plus Non-staff - Centra,24/04/2023,5365,Non-Staff Subsistence and Expenses,9300059732,561.1,OCC SS Oxford City Div 1 Cash
http://statistics.data.gov.uk/id/local-authority/38,Oxfordshire County Council,Support at Home U65 Mental Health,12/04/2023,5899,Social Care - Direct Payments,3111404622,562.08,Purple Conversation Com In Co (DP)
http://statistics.data.gov.uk/id/local-authority/38,Oxfordshire County Council,SM DISABILITIES,26/04/2023,5554,Childrens' Social Care - Direct Payments,3111416198,562.43,Redacted Personal Data
http://statistics.data.gov.uk/id/local-authority/38,Oxfordshire County Council,Support at Home 65+ Physical Support,13/04/2023,5227,Other Transport Arrangements,2201100844,562.5,EMC Medical Services Limited
http://statistics.data.gov.uk/id/local-authority/38,Oxfordshire County Council,SM DISABILITIES,26/04/2023,5554,Childrens' Social Care - Direct Payments,3111416270,562.62,Purple Conversation Com In Co (DP)
http://statistics.data.gov.uk/id/local-authority/38,Oxfordshire County Council,Support at Home 65+ Physical Support,25/04/2023,5689,,3111414984,562.66,Prestige Nursing Ltd
http://statistics.data.gov.uk/id/local-authority/38,Oxfordshire County Council,Support at Home U65 Other /Soc Isolation,12/04/2023,5899,Social Care - Direct Payments,3111404562,562.72,Purple Conversation Com In Co (DP)
http://statistics.data.gov.uk/id/local-authority/38,Oxfordshire County Council,LANDLORD & TENANT,28/04/2023,4001,Uniform Business Rates,3500095194,563,Oxford City Council
http://statistics.data.gov.uk/id/local-authority/38,Oxfordshire County Council,Support at Home 65+ Physical Support,25/04/2023,5689,,3111414557,563.14,Day & Night Care Assistance
http://statistics.data.gov.uk/id/local-authority/38,Oxfordshire County Council,Support at Home 65+ Physical Support,25/04/2023,5693,,3111414803,563.44,My Carer Ltd
http://statistics.data.gov.uk/id/local-authority/38,Oxfordshire County Council,Delegated Health Tasks  - Over 65,04/04/2023,5691,,3111400458,563.6,Acquire Care Ltd
http://statistics.data.gov.uk/id/local-authority/38,Oxfordshire County Council,Delegated Health Tasks  - Over 65,04/04/2023,5691,,3111400461,563.6,Acquire Care Ltd
http://statistics.data.gov.uk/id/local-authority/38,Oxfordshire County Council,Delegated Health Tasks  - Over 65,04/04/2023,5691,,3111400462,563.6,Acquire Care Ltd
http://statistics.data.gov.uk/id/local-authority/38,Oxfordshire County Council,Delegated Health Tasks  - Over 65,04/04/2023,5691,,3111400463,563.6,Acquire Care Ltd
http://statistics.data.gov.uk/id/local-authority/38,Oxfordshire County Council,Delegated Health Tasks  - Over 65,04/04/2023,5691,,3111400464,563.6,Acquire Care Ltd
http://statistics.data.gov.uk/id/local-authority/38,Oxfordshire County Council,Delegated Health Tasks  - Over 65,04/04/2023,5691,,3111400465,563.6,Acquire Care Ltd
http://statistics.data.gov.uk/id/local-authority/38,Oxfordshire County Council,Support at Home U65 Learning Disability,14/04/2023,5682,,3111410201,563.71,The Brandon Trust
http://statistics.data.gov.uk/id/local-authority/38,Oxfordshire County Council,Support at Home U65 Learning Disability,25/04/2023,5682,,3111414345,563.71,The Brandon Trust
http://statistics.data.gov.uk/id/local-authority/38,Oxfordshire County Council,Support at Home U65 Learning Disability,12/04/2023,5690,,3111407188,563.86,ADVANCE HOUSING & SUPPORT LTD
http://statistics.data.gov.uk/id/local-authority/38,Oxfordshire County Council,Family Solutions Plus Non-staff - South,13/04/2023,5227,Other Transport Arrangements,3111410035,564,Unitaxi Ltd
http://statistics.data.gov.uk/id/local-authority/38,Oxfordshire County Council,Family Solutions Plus Non-staff - North,05/04/2023,5227,Other Transport Arrangements,9300059617,564.1,OCC SS Banbury Area Off Cash
http://statistics.data.gov.uk/id/local-authority/38,Oxfordshire County Council,Family Solutions Plus Non-staff - North,05/04/2023,5227,Other Transport Arrangements,9300059625,564.1,OCC SS Banbury Area Off Cash
http://statistics.data.gov.uk/id/local-authority/38,Oxfordshire County Council,LANDLORD & TENANT,01/04/2023,4001,Uniform Business Rates,3500094432,564.75,Vale of White Horse District Counci
http://statistics.data.gov.uk/id/local-authority/38,Oxfordshire County Council,Veh Cross-overs,19/04/2023,7192,General Fees and Charges,3111411491,565,OCC One Time Vendor
http://statistics.data.gov.uk/id/local-authority/38,Oxfordshire County Council,LANDLORD & TENANT,01/04/2023,4001,Uniform Business Rates,3500094332,565.46,Oxford City Council
http://statistics.data.gov.uk/id/local-authority/38,Oxfordshire County Council,UASC 16&17,04/04/2023,5549,B*Fostering Allowance - Regulation 38,3111399805,565.9,Redacted Personal Data
http://statistics.data.gov.uk/id/local-authority/38,Oxfordshire County Council,FOSTERING MAIN,25/04/2023,5549,B*Fostering Allowance - Regulation 38,3111413934,565.9,Redacted Personal Data
http://statistics.data.gov.uk/id/local-authority/38,Oxfordshire County Council,Support at Home U65 Physical Support,28/04/2023,5696,,3111417202,566.44,Orders of St John Care Trust
http://statistics.data.gov.uk/id/local-authority/38,Oxfordshire County Council,Support at Home 65+ Mental Health,12/04/2023,5899,Social Care - Direct Payments,3111403587,566.64,Redacted Personal Data
http://statistics.data.gov.uk/id/local-authority/38,Oxfordshire County Council,Support at Home U65 Learning Disability,12/04/2023,5899,Social Care - Direct Payments,3111404254,566.68,Purple Conversation Com In Co (DP)
http://statistics.data.gov.uk/id/local-authority/38,Oxfordshire County Council,Support at Home U65 MH OBC Contract,12/04/2023,5899,Social Care - Direct Payments,3111404821,566.72,Purple Conversation Com In Co (DP)
http://statistics.data.gov.uk/id/local-authority/38,Oxfordshire County Council,Support at Home U65 Physical Support,26/04/2023,5693,,3111416396,567,GET CARE LIMITED
http://statistics.data.gov.uk/id/local-authority/38,Oxfordshire County Council,Support at Home 65+ Physical Support,12/04/2023,5686,,3111408692,567.14,Orders of St John
http://statistics.data.gov.uk/id/local-authority/38,Oxfordshire County Council,Support at Home 65+ Physical Support,12/04/2023,5686,,3111408527,567.14,OSJ Contract - Stirlings
http://statistics.data.gov.uk/id/local-authority/38,Oxfordshire County Council,Support at Home 65+ Learning Disability,12/04/2023,5690,,3111405157,567.26,The Ice Centre
http://statistics.data.gov.uk/id/local-authority/38,Oxfordshire County Council,UASC 16&17,28/04/2023,5665,B*Fostering Project Care Fee,9300059802,567.3,OCC SS Vale of White Horse Cash
http://statistics.data.gov.uk/id/local-authority/38,Oxfordshire County Council,Support at Home U65 HFA,12/04/2023,5899,Social Care - Direct Payments,3111404581,567.4,Purple Conversation Com In Co (DP)
http://statistics.data.gov.uk/id/local-authority/38,Oxfordshire County Council,Support at Home U65 MH OBC Contract,12/04/2023,5899,Social Care - Direct Payments,3111404657,567.4,Purple Conversation Com In Co (DP)
http://statistics.data.gov.uk/id/local-authority/38,Oxfordshire County Council,Support at Home 65+ Learning Disability,12/04/2023,5899,Social Care - Direct Payments,3111404739,567.4,Purple Conversation Com In Co (DP)
http://statistics.data.gov.uk/id/local-authority/38,Oxfordshire County Council,Support at Home U65 Physical Support,12/04/2023,5899,Social Care - Direct Payments,3111404783,567.4,Purple Conversation Com In Co (DP)
http://statistics.data.gov.uk/id/local-authority/38,Oxfordshire County Council,Support at Home U65 Physical Support,21/04/2023,5693,,3111412539,567.8,A CARING HAND LTD
http://statistics.data.gov.uk/id/local-authority/38,Oxfordshire County Council,Support at Home 65+ Physical Support,21/04/2023,5693,,3111412550,567.8,A CARING HAND LTD
http://statistics.data.gov.uk/id/local-authority/38,Oxfordshire County Council,LEAVING CARE NORTH,17/04/2023,4685,Clothing and Uniforms,9300059654,568.15,OCC SS Oxford City Div 1 Cash
http://statistics.data.gov.uk/id/local-authority/38,Oxfordshire County Council,SEN TRANSPORT,13/04/2023,4320,Pupil / Client Travel Reimbursement,3111409921,568.32,Redacted Personal Data
http://statistics.data.gov.uk/id/local-authority/38,Oxfordshire County Council,Support at Home 65+ Physical Support,25/04/2023,5689,,3111414764,568.73,Kare Plus Oxford
http://statistics.data.gov.uk/id/local-authority/38,Oxfordshire County Council,LEGAL BUDGET,21/04/2023,5251,Legal Costs,2201103611,568.77,Dr DBR Bailham
http://statistics.data.gov.uk/id/local-authority/38,Oxfordshire County Council,Delegated Health Tasks  - Over 65,28/04/2023,5691,,3111417387,568.8,SureCare Oxfordshire
http://statistics.data.gov.uk/id/local-authority/38,Oxfordshire County Council,FAM GRP CONFERENCES,03/04/2023,4940,Other Services,2201099310,568.92,Andy Robinson
http://statistics.data.gov.uk/id/local-authority/38,Oxfordshire County Council,LEGAL BUDGET,19/04/2023,5251,Legal Costs,2201102340,569,DNA WORLDWIDE GROUP
http://statistics.data.gov.uk/id/local-authority/38,Oxfordshire County Council,Support at Home U65 Physical Support,25/04/2023,5699,,3111416038,569.2,Ringstead Healthcare Limited
http://statistics.data.gov.uk/id/local-authority/38,Oxfordshire County Council,"Marketing, Communications & Engagement",25/04/2023,4531,Materials,2201104687,570,Bentley Cook Ltd
http://statistics.data.gov.uk/id/local-authority/38,Oxfordshire County Council,CHC Fast Track - Sup at Homes - Over 65,24/04/2023,5691,,3111412949,570,JMC Care Solutions Limited
http://statistics.data.gov.uk/id/local-authority/38,Oxfordshire County Council,OSCB,14/04/2023,3103,Other Training Courses and Qualification,2201101023,570,Reconstruct LTD
http://statistics.data.gov.uk/id/local-authority/38,Oxfordshire County Council,OSCB,14/04/2023,3103,Other Training Courses and Qualification,2201101025,570,Reconstruct LTD
http://statistics.data.gov.uk/id/local-authority/38,Oxfordshire County Council,Support at Home U65 Learning Disability,12/04/2023,5899,Social Care - Direct Payments,3111404354,570.16,Purple Conversation Com In Co (DP)
http://statistics.data.gov.uk/id/local-authority/38,Oxfordshire County Council,Support at Home U65 Learning Disability,12/04/2023,5899,Social Care - Direct Payments,3111404420,570.6,Purple Conversation Com In Co (DP)
http://statistics.data.gov.uk/id/local-authority/38,Oxfordshire County Council,Support at Home 65+ Physical Support,25/04/2023,5699,,3111416078,571.35,The Care Workshop Limited
http://statistics.data.gov.uk/id/local-authority/38,Oxfordshire County Council,TRAINING MANAGEMENT,04/04/2023,3100,Educational and Vocational Training,2201099472,571.5,Ann's Munchies Ltd
http://statistics.data.gov.uk/id/local-authority/38,Oxfordshire County Council,WASTE TREATMENT,01/04/2023,5227,Other Transport Arrangements,2201100222,572,M & M Skip Hire Ltd
http://statistics.data.gov.uk/id/local-authority/38,Oxfordshire County Council,Support at Home 65+ Physical Support,25/04/2023,5696,,3111415193,572.07,Radis Community Care
http://statistics.data.gov.uk/id/local-authority/38,Oxfordshire County Council,Support at Home 65+ Physical Support,25/04/2023,5696,,3111415205,572.07,Radis Community Care
http://statistics.data.gov.uk/id/local-authority/38,Oxfordshire County Council,Support at Home 65+ Physical Support,25/04/2023,5696,,3111415221,572.07,Radis Community Care
http://statistics.data.gov.uk/id/local-authority/38,Oxfordshire County Council,Support at Home U65 Learning Disability,25/04/2023,5696,,3111415259,572.07,Radis Community Care
http://statistics.data.gov.uk/id/local-authority/38,Oxfordshire County Council,Support at Home 65+ Physical Support,25/04/2023,5696,,3111415281,572.07,Radis Community Care
http://statistics.data.gov.uk/id/local-authority/38,Oxfordshire County Council,Support at Home U65 Learning Disability,12/04/2023,5690,,3111407372,572.4,The Camden Society
http://statistics.data.gov.uk/id/local-authority/38,Oxfordshire County Council,Community Support Service - Witney,06/04/2023,4232,Vehicle Fuel,2201100123,572.76,Allstar Business Solutions Ltd
http://statistics.data.gov.uk/id/local-authority/38,Oxfordshire County Council,Vegetation Mgmt,06/04/2023,5526,Payments to Private Contractors,3111400962,573.07,Ardington and Lockinge Parish Counc
http://statistics.data.gov.uk/id/local-authority/38,Oxfordshire County Council,UASC 16&17,04/04/2023,5663,B*Birthday Allowance,9300059614,573.2,OCC SS Oxford City Div 1 Cash
http://statistics.data.gov.uk/id/local-authority/38,Oxfordshire County Council,Support at Home 65+ Physical Support,28/04/2023,5696,,3111417257,573.36,Orders of St John Care Trust
http://statistics.data.gov.uk/id/local-authority/38,Oxfordshire County Council,Support at Home U65 Autism /Abated,12/04/2023,5690,,3111407265,573.86,Autism at Kingwood Limited
http://statistics.data.gov.uk/id/local-authority/38,Oxfordshire County Council,Support at Home 65+ Physical Support,25/04/2023,5699,,3111415371,573.99,All Care GB Ltd
http://statistics.data.gov.uk/id/local-authority/38,Oxfordshire County Council,Support at Home 65+ Physical Support,25/04/2023,5699,,3111415400,573.99,All Care GB Ltd
http://statistics.data.gov.uk/id/local-authority/38,Oxfordshire County Council,HN IN SEC SCHOOLS,20/04/2023,5537,Payments to Other Establishments,3111412007,574,FUTURES INSTITUTE BANBURY
http://statistics.data.gov.uk/id/local-authority/38,Oxfordshire County Council,FOSTERING MAIN,25/04/2023,5394,Other Expenses,3111414132,574.3,Redacted Personal Data
http://statistics.data.gov.uk/id/local-authority/38,Oxfordshire County Council,MAINSTREAM-SECONDARY,27/04/2023,4322,"Season Tickets - Bus, Rail & Ferry",3111417143,574.5,Oxford Bus Company Ltd
http://statistics.data.gov.uk/id/local-authority/38,Oxfordshire County Council,Support at Home U65 Learning Disability,12/04/2023,5690,,3111405242,574.5,Turnstyle
http://statistics.data.gov.uk/id/local-authority/38,Oxfordshire County Council,Reactive Maintenance,25/04/2023,3787,Premises Repairs,2201104821,574.75,H & E Engineers (Maintenance) Ltd
http://statistics.data.gov.uk/id/local-authority/38,Oxfordshire County Council,ICT Operations & Maintenance,13/04/2023,8037,Other In house Fees / Charges,2201100973,575,Low Voltage UK Ltd
http://statistics.data.gov.uk/id/local-authority/38,Oxfordshire County Council,Support at Home 65+ Physical Support,25/04/2023,5699,,3111415344,575.36,Calvary Care Ltd
http://statistics.data.gov.uk/id/local-authority/38,Oxfordshire County Council,UASC 16&17,24/04/2023,5663,B*Birthday Allowance,9300059736,575.5,OCC SS Oxford City Div 1 Cash
http://statistics.data.gov.uk/id/local-authority/38,Oxfordshire County Council,Support at Home 65+ Physical Support,25/04/2023,5689,,3111414751,575.95,Home Helpers Care Ltd
http://statistics.data.gov.uk/id/local-authority/38,Oxfordshire County Council,Support at Home U65 Learning Disability,12/04/2023,5899,Social Care - Direct Payments,3111403923,576.92,Redacted Personal Data
http://statistics.data.gov.uk/id/local-authority/38,Oxfordshire County Council,Support at Home 65+ Physical Support,25/04/2023,5698,,3111414902,578.09,Oxfordshire Crossroads
http://statistics.data.gov.uk/id/local-authority/38,Oxfordshire County Council,Support at Home 65+ Physical Support,25/04/2023,5689,,3111414536,579.54,Caremark (West Oxfordshire & Cherwe
http://statistics.data.gov.uk/id/local-authority/38,Oxfordshire County Council,Support at Home U65 Learning Disability,11/04/2023,5899,Social Care - Direct Payments,3111401560,579.56,Redacted Personal Data
http://statistics.data.gov.uk/id/local-authority/38,Oxfordshire County Council,Support at Home U65 Learning Disability,19/04/2023,5693,,3111411596,579.6,Kwikfix Recruitment Services Ltd
http://statistics.data.gov.uk/id/local-authority/38,Oxfordshire County Council,TREE MAINT OPS,28/04/2023,5526,Payments to Private Contractors,2201106403,580,Climbers Way Tree Care Ltd.
http://statistics.data.gov.uk/id/local-authority/38,Oxfordshire County Council,L&D CORE PROGRAMME,12/04/2023,4615,Drugs and Medical Supplies,2201100636,580,ST JOHN AMBULANCE
http://statistics.data.gov.uk/id/local-authority/38,Oxfordshire County Council,Support at Home U65 Physical Support,12/04/2023,5899,Social Care - Direct Payments,3111404147,580.36,Redacted Personal Data
http://statistics.data.gov.uk/id/local-authority/38,Oxfordshire County Council,CHC Fast Track - Sup at Homes - Over 65,24/04/2023,5691,,3111413011,580.68,FiNN Homecare Ltd
http://statistics.data.gov.uk/id/local-authority/38,Oxfordshire County Council,Care Homes - Over 65 Physical Sypport,12/04/2023,5687,,3111407417,580.71,Freeland House
http://statistics.data.gov.uk/id/local-authority/38,Oxfordshire County Council,SM DISABILITIES,26/04/2023,5554,Childrens' Social Care - Direct Payments,3111416250,580.81,Purple Conversation Com In Co (DP)
http://statistics.data.gov.uk/id/local-authority/38,Oxfordshire County Council,YPSH Int Prop Management,27/04/2023,5785,Client Lodgings and Accommodation,3111417013,580.83,Response Organisation
http://statistics.data.gov.uk/id/local-authority/38,Oxfordshire County Council,YPSH Int Prop Management,27/04/2023,5785,Client Lodgings and Accommodation,3111417012,580.85,Response Organisation
http://statistics.data.gov.uk/id/local-authority/38,Oxfordshire County Council,Support at Home U65 Learning Disability,12/04/2023,5688,,3111405524,580.97,ADVANCE HOUSING & SUPPORT LTD
http://statistics.data.gov.uk/id/local-authority/38,Oxfordshire County Council,Support at Home U65 Learning Disability,12/04/2023,5688,,3111405526,580.97,ADVANCE HOUSING & SUPPORT LTD
http://statistics.data.gov.uk/id/local-authority/38,Oxfordshire County Council,Support at Home U65 Learning Disability,12/04/2023,5688,,3111405528,580.97,ADVANCE HOUSING & SUPPORT LTD
http://statistics.data.gov.uk/id/local-authority/38,Oxfordshire County Council,Support at Home U65 Learning Disability,12/04/2023,5688,,3111405530,580.97,ADVANCE HOUSING & SUPPORT LTD
http://statistics.data.gov.uk/id/local-authority/38,Oxfordshire County Council,Support at Home 65+ Memory & Cognition,25/04/2023,5699,,3111415483,581.64,Care Hearted Ltd
http://statistics.data.gov.uk/id/local-authority/38,Oxfordshire County Council,Support at Home U65 Sensory Support,12/04/2023,5899,Social Care - Direct Payments,3111403907,582.32,Redacted Personal Data
http://statistics.data.gov.uk/id/local-authority/38,Oxfordshire County Council,Reactive Maintenance,19/04/2023,3787,Premises Repairs,2201102276,582.52,Marlowe Fire & Security Ltd
http://statistics.data.gov.uk/id/local-authority/38,Oxfordshire County Council,Planned Maintenance,20/04/2023,3787,Premises Repairs,2201102885,582.52,Marlowe Fire & Security Ltd
http://statistics.data.gov.uk/id/local-authority/38,Oxfordshire County Council,Support at Home U65 MH OBC Contract,05/04/2023,5693,,3111400398,582.76,Henley Care Ltd
http://statistics.data.gov.uk/id/local-authority/38,Oxfordshire County Council,Support at Home U65 Physical Support,12/04/2023,5899,Social Care - Direct Payments,3111404585,582.88,Purple Conversation Com In Co (DP)
http://statistics.data.gov.uk/id/local-authority/38,Oxfordshire County Council,FOSTERING MAIN,18/04/2023,5532,B*Fostering - Loan Equipment,3111411096,583,Redacted Personal Data
http://statistics.data.gov.uk/id/local-authority/38,Oxfordshire County Council,Delegated Health Tasks  - Over 65,04/04/2023,5691,,3111400467,583.1,Acquire Care Ltd
http://statistics.data.gov.uk/id/local-authority/38,Oxfordshire County Council,Support at Home 65+ Physical Support,25/04/2023,5689,,3111414540,583.32,Caremark (West Oxfordshire & Cherwe
http://statistics.data.gov.uk/id/local-authority/38,Oxfordshire County Council,Support at Home U65 Learning Disability,14/04/2023,5682,,3111410193,583.57,The Brandon Trust
http://statistics.data.gov.uk/id/local-authority/38,Oxfordshire County Council,Support at Home U65 Physical Support,25/04/2023,5682,,3111414370,583.57,The Brandon Trust
http://statistics.data.gov.uk/id/local-authority/38,Oxfordshire County Council,Support at Home U65 Learning Disability,12/04/2023,5899,Social Care - Direct Payments,3111403870,583.88,Redacted Personal Data
http://statistics.data.gov.uk/id/local-authority/38,Oxfordshire County Council,Support at Home 65+ Physical Support,25/04/2023,5689,,3111414873,583.92,Oxfordshire Crossroads
http://statistics.data.gov.uk/id/local-authority/38,Oxfordshire County Council,Reading Adoption Support Fund,01/04/2023,4861,Hired and Contracted Services,2201100317,584,PACT (PARENTS & CHILDREN TOGETHER)
http://statistics.data.gov.uk/id/local-authority/38,Oxfordshire County Council,Support at Home 65+ Physical Support,25/04/2023,5699,,3111415139,584.03,Abi-Support Ltd
http://statistics.data.gov.uk/id/local-authority/38,Oxfordshire County Council,Support at Home U65 Mental Health,12/04/2023,5899,Social Care - Direct Payments,3111404619,584.04,Purple Conversation Com In Co (DP)
http://statistics.data.gov.uk/id/local-authority/38,Oxfordshire County Council,Family Solutions Plus Non-staff - North,11/04/2023,5227,Other Transport Arrangements,3111401447,585,D�Arrive Ltd
http://statistics.data.gov.uk/id/local-authority/38,Oxfordshire County Council,ADOPTION ALLOWANCES,04/04/2023,5664,B*Holiday Allowance,3111399941,585.3,Redacted Personal Data
http://statistics.data.gov.uk/id/local-authority/38,Oxfordshire County Council,ADOPTION ALLOWANCES,11/04/2023,5664,B*Holiday Allowance,3111403426,585.3,Redacted Personal Data
http://statistics.data.gov.uk/id/local-authority/38,Oxfordshire County Council,ADOPTION ALLOWANCES,18/04/2023,5664,B*Holiday Allowance,3111411320,585.3,Redacted Personal Data
http://statistics.data.gov.uk/id/local-authority/38,Oxfordshire County Council,ADOPTION ALLOWANCES,25/04/2023,5664,B*Holiday Allowance,3111414281,585.3,Redacted Personal Data
http://statistics.data.gov.uk/id/local-authority/38,Oxfordshire County Council,LEAVING CARE NORTH,05/04/2023,4407,Equipment,9300059616,585.5,OCC SS Banbury Area Off Cash
http://statistics.data.gov.uk/id/local-authority/38,Oxfordshire County Council,LEAVING CARE NORTH,05/04/2023,4407,Equipment,9300059626,585.5,OCC SS Banbury Area Off Cash
http://statistics.data.gov.uk/id/local-authority/38,Oxfordshire County Council,ContrO ASC Payments Control Account,26/04/2023,5554,Childrens' Social Care - Direct Payments,3111416173,585.6,Redacted Personal Data
http://statistics.data.gov.uk/id/local-authority/38,Oxfordshire County Council,HOUSING & IMMIGRATION & SOUTHWARK S17,17/04/2023,5365,Non-Staff Subsistence and Expenses,9300059660,585.65,OCC SS Vale of White Horse Cash
http://statistics.data.gov.uk/id/local-authority/38,Oxfordshire County Council,Support at Home 65+ Physical Support,25/04/2023,5699,,3111415384,585.9,All Care GB Ltd
http://statistics.data.gov.uk/id/local-authority/38,Oxfordshire County Council,TRANSLATION,20/04/2023,5668,Technical and Professional Consultant F,2201103445,587.21,K International PLC
http://statistics.data.gov.uk/id/local-authority/38,Oxfordshire County Council,Support at Home U65 MH OBC Contract,12/04/2023,5899,Social Care - Direct Payments,3111403757,587.36,Redacted Personal Data
http://statistics.data.gov.uk/id/local-authority/38,Oxfordshire County Council,Unregistered Placements,11/04/2023,5227,Other Transport Arrangements,3111401427,587.4,Rossie Young People's Trust
http://statistics.data.gov.uk/id/local-authority/38,Oxfordshire County Council,POST18 UASC DCSF FND,26/04/2023,5663,B*Birthday Allowance,9300059758,587.41,OCC SS Oxford City Div 1 Cash
http://statistics.data.gov.uk/id/local-authority/38,Oxfordshire County Council,COUNTY PRINT FINSHRS,12/04/2023,5091,Postage and Delivery,2201100565,587.74,Whistl
http://statistics.data.gov.uk/id/local-authority/38,Oxfordshire County Council,Delegated Health Tasks  - Over 65,21/04/2023,5691,,3111412729,587.9,George Springall Homecare
http://statistics.data.gov.uk/id/local-authority/38,Oxfordshire County Council,Delegated Health Tasks  - Over 65,21/04/2023,5691,,3111412733,587.9,George Springall Homecare
http://statistics.data.gov.uk/id/local-authority/38,Oxfordshire County Council,AGENCY RESID - DISAB,04/04/2023,5549,B*Fostering Allowance - Regulation 38,3111400102,588,Redacted Personal Data
http://statistics.data.gov.uk/id/local-authority/38,Oxfordshire County Council,AGENCY RESID - DISAB,11/04/2023,5549,B*Fostering Allowance - Regulation 38,3111403354,588,Redacted Personal Data
http://statistics.data.gov.uk/id/local-authority/38,Oxfordshire County Council,AGENCY RESID - DISAB,18/04/2023,5549,B*Fostering Allowance - Regulation 38,3111411472,588,Redacted Personal Data
http://statistics.data.gov.uk/id/local-authority/38,Oxfordshire County Council,AGENCY RESID - DISAB,25/04/2023,5549,B*Fostering Allowance - Regulation 38,3111414141,588,Redacted Personal Data
http://statistics.data.gov.uk/id/local-authority/38,Oxfordshire County Council,AGENCY RESID - DISAB,04/04/2023,5549,B*Fostering Allowance - Regulation 38,3111399837,588,Redacted Personal Data
http://statistics.data.gov.uk/id/local-authority/38,Oxfordshire County Council,AGENCY RESID - DISAB,11/04/2023,5549,B*Fostering Allowance - Regulation 38,3111403067,588,Redacted Personal Data
http://statistics.data.gov.uk/id/local-authority/38,Oxfordshire County Council,AGENCY RESID - DISAB,18/04/2023,5549,B*Fostering Allowance - Regulation 38,3111411222,588,Redacted Personal Data
http://statistics.data.gov.uk/id/local-authority/38,Oxfordshire County Council,AGENCY RESID - DISAB,25/04/2023,5549,B*Fostering Allowance - Regulation 38,3111413882,588,Redacted Personal Data
http://statistics.data.gov.uk/id/local-authority/38,Oxfordshire County Council,FOSTERING MAIN,04/04/2023,5541,B*Foster Parents,3111399761,588,Redacted Personal Data
http://statistics.data.gov.uk/id/local-authority/38,Oxfordshire County Council,FOSTERING MAIN,11/04/2023,5541,B*Foster Parents,3111402996,588,Redacted Personal Data
http://statistics.data.gov.uk/id/local-authority/38,Oxfordshire County Council,,13/04/2023,1448,Blackfield Inc & Exp A/c,3111410052,588.13,OCC One Time Vendor
http://statistics.data.gov.uk/id/local-authority/38,Oxfordshire County Council,Support at Home U65 Learning Disability,12/04/2023,5899,Social Care - Direct Payments,3111404496,588.72,Purple Conversation Com In Co (DP)
http://statistics.data.gov.uk/id/local-authority/38,Oxfordshire County Council,LANDLORD & TENANT,28/04/2023,4001,Uniform Business Rates,3500095257,589,West Oxfordshire District Council
http://statistics.data.gov.uk/id/local-authority/38,Oxfordshire County Council,Delegated Health Tasks  - Over 65,04/04/2023,5691,,3111400466,589.1,Acquire Care Ltd
http://statistics.data.gov.uk/id/local-authority/38,Oxfordshire County Council,Family Solutions Plus Non-staff - North,19/04/2023,4940,Other Services,2201102410,589.34,Complete Childcare Ltd
http://statistics.data.gov.uk/id/local-authority/38,Oxfordshire County Council,Support at Home U65 Learning Disability,14/04/2023,5682,,3111410199,589.42,The Brandon Trust
http://statistics.data.gov.uk/id/local-authority/38,Oxfordshire County Council,Support at Home U65 Learning Disability,25/04/2023,5682,,3111414348,589.42,The Brandon Trust
http://statistics.data.gov.uk/id/local-authority/38,Oxfordshire County Council,SM DISABILITIES,26/04/2023,5554,Childrens' Social Care - Direct Payments,3111416277,589.49,Purple Conversation Com In Co (DP)
http://statistics.data.gov.uk/id/local-authority/38,Oxfordshire County Council,DEVELOPMENT WORK EY PD Group,12/04/2023,3100,Educational and Vocational Training,2201100532,589.5,Abingdon Carousel
http://statistics.data.gov.uk/id/local-authority/38,Oxfordshire County Council,LDD AFTER SCHOOL,14/04/2023,4330,Transport to School Activities,3111410222,590,LINK SHIRES LTD
http://statistics.data.gov.uk/id/local-authority/38,Oxfordshire County Council,Support at Home U65 Physical Support,26/04/2023,5693,,3111416389,590.2,Chamomile Care Ltd
http://statistics.data.gov.uk/id/local-authority/38,Oxfordshire County Council,Support at Home U65 Physical Support,12/04/2023,5899,Social Care - Direct Payments,3111404154,590.8,Redacted Personal Data
http://statistics.data.gov.uk/id/local-authority/38,Oxfordshire County Council,Support at Home U65 Learning Disability,12/04/2023,5690,,3111407348,590.91,The Camden Society
http://statistics.data.gov.uk/id/local-authority/38,Oxfordshire County Council,Support at Home U65 Learning Disability,12/04/2023,5690,,3111407352,590.91,The Camden Society
http://statistics.data.gov.uk/id/local-authority/38,Oxfordshire County Council,Support at Home U65 Learning Disability,12/04/2023,5690,,3111407375,590.91,The Camden Society
http://statistics.data.gov.uk/id/local-authority/38,Oxfordshire County Council,Support at Home U65 Learning Disability,12/04/2023,5690,,3111407378,590.91,The Camden Society
http://statistics.data.gov.uk/id/local-authority/38,Oxfordshire County Council,Support at Home 65+ Physical Support,12/04/2023,5899,Social Care - Direct Payments,3111404532,591.4,Purple Conversation Com In Co (DP)
http://statistics.data.gov.uk/id/local-authority/38,Oxfordshire County Council,Support at Home U65 Learning Disability,12/04/2023,5899,Social Care - Direct Payments,3111403989,591.56,Redacted Personal Data
http://statistics.data.gov.uk/id/local-authority/38,Oxfordshire County Council,,13/04/2023,1448,Blackfield Inc & Exp A/c,3111410072,591.78,OCC One Time Vendor
http://statistics.data.gov.uk/id/local-authority/38,Oxfordshire County Council,Support at Home U65 Memory & Cognition,25/04/2023,5696,,3111415038,592.88,All Care GB Ltd
http://statistics.data.gov.uk/id/local-authority/38,Oxfordshire County Council,Support at Home U65 Mental Health,25/04/2023,5696,,3111415039,592.88,All Care GB Ltd
http://statistics.data.gov.uk/id/local-authority/38,Oxfordshire County Council,Support at Home U65 Physical Support,25/04/2023,5696,,3111415056,592.88,All Care GB Ltd
http://statistics.data.gov.uk/id/local-authority/38,Oxfordshire County Council,Support at Home 65+ Memory & Cognition,25/04/2023,5696,,3111415062,592.88,All Care GB Ltd
http://statistics.data.gov.uk/id/local-authority/38,Oxfordshire County Council,Support at Home 65+ Physical Support,25/04/2023,5696,,3111415082,592.88,All Care GB Ltd
http://statistics.data.gov.uk/id/local-authority/38,Oxfordshire County Council,Support at Home 65+ Physical Support,25/04/2023,5696,,3111415095,592.88,All Care GB Ltd
http://statistics.data.gov.uk/id/local-authority/38,Oxfordshire County Council,Support at Home 65+ Physical Support,25/04/2023,5696,,3111415096,592.88,All Care GB Ltd
http://statistics.data.gov.uk/id/local-authority/38,Oxfordshire County Council,Support at Home 65+ Physical Support,25/04/2023,5696,,3111415101,592.88,All Care GB Ltd
http://statistics.data.gov.uk/id/local-authority/38,Oxfordshire County Council,Support at Home 65+ Physical Support,25/04/2023,5696,,3111415106,592.88,All Care GB Ltd
http://statistics.data.gov.uk/id/local-authority/38,Oxfordshire County Council,Support at Home 65+ Physical Support,12/04/2023,5693,,3111405063,592.88,Care with Care Ltd
http://statistics.data.gov.uk/id/local-authority/38,Oxfordshire County Council,NURSERY ED FUND,25/04/2023,5537,Payments to Other Establishments,3111413283,593.57,Alison Kennet
http://statistics.data.gov.uk/id/local-authority/38,Oxfordshire County Council,NURSERY ED FUND,25/04/2023,5537,Payments to Other Establishments,3111413348,593.57,Helen Rains
http://statistics.data.gov.uk/id/local-authority/38,Oxfordshire County Council,NURSERY ED FUND,25/04/2023,5537,Payments to Other Establishments,3111413497,593.57,Lisa Davies
http://statistics.data.gov.uk/id/local-authority/38,Oxfordshire County Council,NURSERY ED FUND,25/04/2023,5537,Payments to Other Establishments,3111413392,593.57,Rachel Mobbs
http://statistics.data.gov.uk/id/local-authority/38,Oxfordshire County Council,NURSERY ED FUND,25/04/2023,5537,Payments to Other Establishments,3111413340,593.57,Sandra Pallett
http://statistics.data.gov.uk/id/local-authority/38,Oxfordshire County Council,NURSERY ED FUND,25/04/2023,5537,Payments to Other Establishments,3111413298,593.57,Sarah Cooksley
http://statistics.data.gov.uk/id/local-authority/38,Oxfordshire County Council,Support at Home U65 Learning Disability,21/04/2023,5693,,3111412582,594,The Chiltern Centre for Disabled
http://statistics.data.gov.uk/id/local-authority/38,Oxfordshire County Council,Support at Home U65 Physical Support,25/04/2023,5698,,3111414413,594.13,Acquire Care Ltd
http://statistics.data.gov.uk/id/local-authority/38,Oxfordshire County Council,LANDLORD & TENANT,07/04/2023,4001,Uniform Business Rates,3500094607,594.33,West Oxfordshire District Council
http://statistics.data.gov.uk/id/local-authority/38,Oxfordshire County Council,Support at Home U65 Memory & Cognition,12/04/2023,5899,Social Care - Direct Payments,3111404756,594.68,Purple Conversation Com In Co (DP)
http://statistics.data.gov.uk/id/local-authority/38,Oxfordshire County Council,POST 16 SEN,27/04/2023,4330,Transport to School Activities,3111416760,595,BORJAN LTD
http://statistics.data.gov.uk/id/local-authority/38,Oxfordshire County Council,Youth Justice & Exploitation,05/04/2023,4315,Payments for Conveying Children,3111400704,595,Go Green Taxis
http://statistics.data.gov.uk/id/local-authority/38,Oxfordshire County Council,SEN TRANSPORT,13/04/2023,4330,Transport to School Activities,3111409835,595,Oxon Transport Services Ltd
http://statistics.data.gov.uk/id/local-authority/38,Oxfordshire County Council,LDD AFTER SCHOOL,17/04/2023,4330,Transport to School Activities,3111410377,595,STREAMLINE PEPPARD TAXIS LTD
http://statistics.data.gov.uk/id/local-authority/38,Oxfordshire County Council,Support at Home U65 Sensory Support,12/04/2023,5899,Social Care - Direct Payments,3111403904,595.6,Redacted Personal Data
http://statistics.data.gov.uk/id/local-authority/38,Oxfordshire County Council,Reactive Maintenance,19/04/2023,4498,Health and Safety Equipment,2201102273,595.7,Marlowe Fire & Security Ltd
http://statistics.data.gov.uk/id/local-authority/38,Oxfordshire County Council,PROCUREMENT,25/04/2023,4232,Vehicle Fuel,2201104860,595.9,Certas Energy UK Ltd
http://statistics.data.gov.uk/id/local-authority/38,Oxfordshire County Council,Vegetation Mgmt,06/04/2023,5526,Payments to Private Contractors,3111400967,596.14,Buckland Parish Council
http://statistics.data.gov.uk/id/local-authority/38,Oxfordshire County Council,SEN Alternative Provision,25/04/2023,4861,Hired and Contracted Services,3111415575,596.16,Teaching Personnel Ltd
http://statistics.data.gov.uk/id/local-authority/38,Oxfordshire County Council,Support at Home U65 Learning Disability,13/04/2023,5227,Other Transport Arrangements,3111410032,596.8,Unitaxi Ltd
http://statistics.data.gov.uk/id/local-authority/38,Oxfordshire County Council,Support at Home U65 Physical Support,12/04/2023,5899,Social Care - Direct Payments,3111404472,597.04,Purple Conversation Com In Co (DP)
http://statistics.data.gov.uk/id/local-authority/38,Oxfordshire County Council,Support at Home 65+ Physical Support,12/04/2023,5899,Social Care - Direct Payments,3111403814,597.12,Redacted Personal Data
http://statistics.data.gov.uk/id/local-authority/38,Oxfordshire County Council,LANDLORD & TENANT,01/04/2023,4001,Uniform Business Rates,3500094288,598.42,Cherwell District Council
http://statistics.data.gov.uk/id/local-authority/38,Oxfordshire County Council,Support at Home 65+ Physical Support,25/04/2023,5699,,3111415698,598.5,Direct Link Care Ltd
http://statistics.data.gov.uk/id/local-authority/38,Oxfordshire County Council,Delegated Health Tasks  - Over 65,04/04/2023,5691,,3111400460,599.1,Acquire Care Ltd
http://statistics.data.gov.uk/id/local-authority/38,Oxfordshire County Council,Support at Home U65 Physical Support,11/04/2023,5899,Social Care - Direct Payments,3111402275,599.29,Purple Conversation Com In Co (DP)
http://statistics.data.gov.uk/id/local-authority/38,Oxfordshire County Council,Support at Home U65 Learning Disability,12/04/2023,5899,Social Care - Direct Payments,3111403666,599.52,Redacted Personal Data
http://statistics.data.gov.uk/id/local-authority/38,Oxfordshire County Council,Support at Home 65+ Memory & Cognition,25/04/2023,5689,,3111414980,599.73,Prestige Nursing Ltd
http://statistics.data.gov.uk/id/local-authority/38,Oxfordshire County Council,Family Solutions Plus Non-staff - South,06/04/2023,5227,Other Transport Arrangements,3111400835,600,Abingdon Taxis FKN Autotaxis
http://statistics.data.gov.uk/id/local-authority/38,Oxfordshire County Council,Support at Home U65 Physical Support,24/04/2023,5227,Other Transport Arrangements,3111412850,600,BC CARS
http://statistics.data.gov.uk/id/local-authority/38,Oxfordshire County Council,Wokingham Adoption Support Fund,26/04/2023,4861,Hired and Contracted Services,2201105041,600,Clarabella Gray
http://statistics.data.gov.uk/id/local-authority/38,Oxfordshire County Council,Oxfordshire Adoption Support Fund,25/04/2023,4861,Hired and Contracted Services,2201104645,600,Creative Therapy Options
http://statistics.data.gov.uk/id/local-authority/38,Oxfordshire County Council,Swindon Adoption Support Fund,17/04/2023,4861,Hired and Contracted Services,2201101276,600,Dr Vicky Sutton
http://statistics.data.gov.uk/id/local-authority/38,Oxfordshire County Council,Independent Foster,26/04/2023,5559,,3111416552,600,Fostering UK Ltd
http://statistics.data.gov.uk/id/local-authority/38,Oxfordshire County Council,LAC PUPIL PREMIUM,20/04/2023,5537,Payments to Other Establishments,3111412071,600,Glyne Gap School
http://statistics.data.gov.uk/id/local-authority/38,Oxfordshire County Council,TRANSPORT COSTS,05/04/2023,4330,Transport to School Activities,3111400717,600,Go Green Taxis
http://statistics.data.gov.uk/id/local-authority/38,Oxfordshire County Council,West Berkshire Adoption Support Fund,01/04/2023,4861,Hired and Contracted Services,2201102778,600,Heads & Hearts Ltd
http://statistics.data.gov.uk/id/local-authority/38,Oxfordshire County Council,RECRUITMENT+MEDICALS,20/04/2023,4122,Other premises related costs,3111412100,600,OCC One Time Vendor
http://statistics.data.gov.uk/id/local-authority/38,Oxfordshire County Council,SEN TRANSPORT,18/04/2023,4330,Transport to School Activities,3111410579,600,OXFORD BLUE CARS
http://statistics.data.gov.uk/id/local-authority/38,Oxfordshire County Council,Care Packages & Placements- LD - OCC,13/04/2023,5227,Other Transport Arrangements,3111409833,600,Oxon Transport Services Ltd
http://statistics.data.gov.uk/id/local-authority/38,Oxfordshire County Council,Homes for Ukraine - Guests,03/04/2023,5896,Adult Social Care - Other Transfer Pay,3111399298,600,Redacted Personal Data
http://statistics.data.gov.uk/id/local-authority/38,Oxfordshire County Council,L&D CORE PROGRAMME,20/04/2023,3103,Other Training Courses and Qualification,2201103423,600,Premier Partnership
http://statistics.data.gov.uk/id/local-authority/38,Oxfordshire County Council,OSCB,14/04/2023,3103,Other Training Courses and Qualification,2201101022,600,Reconstruct LTD
http://statistics.data.gov.uk/id/local-authority/38,Oxfordshire County Council,OSCB,14/04/2023,3103,Other Training Courses and Qualification,2201101026,600,Reconstruct LTD
http://statistics.data.gov.uk/id/local-authority/38,Oxfordshire County Council,POST18 UASC DCSF FND,27/04/2023,3942,Hire of Accommodation and Facilities,3111416853,600,Redacted Personal Data
http://statistics.data.gov.uk/id/local-authority/38,Oxfordshire County Council,LAC PUPIL PREMIUM,20/04/2023,5537,Payments to Other Establishments,3111412070,600,The Ashcombe School
http://statistics.data.gov.uk/id/local-authority/38,Oxfordshire County Council,Support at Home 65+ Physical Support,25/04/2023,5699,,3111415953,600.27,PLL Care Services
http://statistics.data.gov.uk/id/local-authority/38,Oxfordshire County Council,Support at Home 65+ Memory & Cognition,12/04/2023,5690,,3111405131,600.43,Cholsey Day Centre Trust
http://statistics.data.gov.uk/id/local-authority/38,Oxfordshire County Council,Support at Home U65 MH OBC Contract,12/04/2023,5899,Social Care - Direct Payments,3111404336,600.68,Purple Conversation Com In Co (DP)
http://statistics.data.gov.uk/id/local-authority/38,Oxfordshire County Council,FOSTERING MAIN,25/04/2023,5541,B*Foster Parents,3111413821,601.72,Redacted Personal Data
http://statistics.data.gov.uk/id/local-authority/38,Oxfordshire County Council,Oxfordshire Adoption Support Fund,01/04/2023,4861,Hired and Contracted Services,2201101284,602,TherapySPOT Ltd
http://statistics.data.gov.uk/id/local-authority/38,Oxfordshire County Council,,06/04/2023,1448,Blackfield Inc & Exp A/c,3111400788,602.44,OCC One Time Vendor
http://statistics.data.gov.uk/id/local-authority/38,Oxfordshire County Council,LANDLORD & TENANT,01/04/2023,4001,Uniform Business Rates,3500094323,602.58,Oxford City Council
http://statistics.data.gov.uk/id/local-authority/38,Oxfordshire County Council,Delegated Health Tasks  - Over 65,04/04/2023,5691,,3111400459,602.6,Acquire Care Ltd
http://statistics.data.gov.uk/id/local-authority/38,Oxfordshire County Council,LANDLORD & TENANT,28/04/2023,4001,Uniform Business Rates,3500095148,603,Cherwell District Council
http://statistics.data.gov.uk/id/local-authority/38,Oxfordshire County Council,LANDLORD & TENANT,28/04/2023,4001,Uniform Business Rates,3500095183,603,Oxford City Council
http://statistics.data.gov.uk/id/local-authority/38,Oxfordshire County Council,TREE MAINT OPS,28/04/2023,5526,Payments to Private Contractors,2201106408,603,SORBUS INTERNATIONAL LTD
http://statistics.data.gov.uk/id/local-authority/38,Oxfordshire County Council,FOSTERING MAIN,04/04/2023,5227,Other Transport Arrangements,3111399565,603.48,Redacted Personal Data
http://statistics.data.gov.uk/id/local-authority/38,Oxfordshire County Council,Support at Home U65 Learning Disability,03/04/2023,5696,,3111398527,603.76,Orders of St John Care Trust
http://statistics.data.gov.uk/id/local-authority/38,Oxfordshire County Council,Support at Home U65 Physical Support,25/04/2023,5699,,3111415610,603.92,CaringPlus Healthcare Services Ltd
http://statistics.data.gov.uk/id/local-authority/38,Oxfordshire County Council,LEGAL BUDGET,01/04/2023,5251,Legal Costs,2201101722,604,DNA WORLDWIDE GROUP
http://statistics.data.gov.uk/id/local-authority/38,Oxfordshire County Council,Support at Home U65 HFA,12/04/2023,5688,,3111406842,604.24,The Laurels (Witney)
http://statistics.data.gov.uk/id/local-authority/38,Oxfordshire County Council,Planned Maintenance,26/04/2023,4861,Hired and Contracted Services,2201105454,604.34,Barker & Evans Ltd
http://statistics.data.gov.uk/id/local-authority/38,Oxfordshire County Council,Support at Home 65+ Learning Disability,12/04/2023,5899,Social Care - Direct Payments,3111404393,604.4,Purple Conversation Com In Co (DP)
http://statistics.data.gov.uk/id/local-authority/38,Oxfordshire County Council,Support at Home 65+ Physical Support,25/04/2023,5699,,3111415421,604.8,Care Outlook Ltd
http://statistics.data.gov.uk/id/local-authority/38,Oxfordshire County Council,Support at Home 65+ Memory & Cognition,19/04/2023,5693,,3111411580,604.8,Kwikfix Recruitment Services Ltd
http://statistics.data.gov.uk/id/local-authority/38,Oxfordshire County Council,Care Homes - Over 65 Memory & Cognition,12/04/2023,5687,,3111408079,605.33,Orders of St John
http://statistics.data.gov.uk/id/local-authority/38,Oxfordshire County Council,Support at Home U65 Learning Disability,12/04/2023,5899,Social Care - Direct Payments,3111403877,605.44,Redacted Personal Data
http://statistics.data.gov.uk/id/local-authority/38,Oxfordshire County Council,FLEET COSTS,04/04/2023,4270,HTM / Other Vehicle - Hire Charges,2201099602,606.05,Go Plant Fleet Services
http://statistics.data.gov.uk/id/local-authority/38,Oxfordshire County Council,AAC EQUIPMENT,11/04/2023,4494,Purchase of IT Equipment,2201100232,606.5,Inclusive Technology Ltd
http://statistics.data.gov.uk/id/local-authority/38,Oxfordshire County Council,Support at Home 65+ Memory & Cognition,12/04/2023,5899,Social Care - Direct Payments,3111403723,606.6,Redacted Personal Data
http://statistics.data.gov.uk/id/local-authority/38,Oxfordshire County Council,Support at Home U65 Learning Disability,12/04/2023,5899,Social Care - Direct Payments,3111404115,607.76,Redacted Personal Data
http://statistics.data.gov.uk/id/local-authority/38,Oxfordshire County Council,Support at Home U65 Learning Disability,12/04/2023,5899,Social Care - Direct Payments,3111404464,608.04,Purple Conversation Com In Co (DP)
http://statistics.data.gov.uk/id/local-authority/38,Oxfordshire County Council,Support at Home 65+ Physical Support,25/04/2023,5699,,3111416077,608.52,The Care Workshop Limited
http://statistics.data.gov.uk/id/local-authority/38,Oxfordshire County Council,SEN Miscellaneous Expenditure,17/04/2023,4859,Medical and Counselling Fees,3111410341,608.8,Children in motion Ltd
http://statistics.data.gov.uk/id/local-authority/38,Oxfordshire County Council,Support at Home U65 MH OBC Contract,12/04/2023,5899,Social Care - Direct Payments,3111403841,609.44,Redacted Personal Data
http://statistics.data.gov.uk/id/local-authority/38,Oxfordshire County Council,Support at Home 65+ Memory & Cognition,25/04/2023,5699,,3111415947,609.44,PLL Care Services
http://statistics.data.gov.uk/id/local-authority/38,Oxfordshire County Council,Support at Home U65 MH OBC Contract,12/04/2023,5899,Social Care - Direct Payments,3111403615,609.44,Redacted Personal Data
http://statistics.data.gov.uk/id/local-authority/38,Oxfordshire County Council,Support at Home U65 HFA,04/04/2023,5899,Social Care - Direct Payments,3111399339,609.67,Redacted Personal Data
http://statistics.data.gov.uk/id/local-authority/38,Oxfordshire County Council,Support at Home U65 Learning Disability,27/04/2023,5227,Other Transport Arrangements,3111417060,610,Cherwell Cars
http://statistics.data.gov.uk/id/local-authority/38,Oxfordshire County Council,POST 16 SEN,27/04/2023,4330,Transport to School Activities,3111417061,610,Cherwell Cars
http://statistics.data.gov.uk/id/local-authority/38,Oxfordshire County Council,Delegated Health Tasks  - Over 65,26/04/2023,5691,,3111416668,610.4,Helping Hands
http://statistics.data.gov.uk/id/local-authority/38,Oxfordshire County Council,Support at Home U65 MH OBC Contract,12/04/2023,5899,Social Care - Direct Payments,3111404212,610.4,Redacted Personal Data
http://statistics.data.gov.uk/id/local-authority/38,Oxfordshire County Council,Support at Home U65 Learning Disability,12/04/2023,5899,Social Care - Direct Payments,3111403770,610.4,Redacted Personal Data
http://statistics.data.gov.uk/id/local-authority/38,Oxfordshire County Council,Delegated Health Tasks  - Over 65,04/04/2023,5691,,3111400469,610.6,Acquire Care Ltd
http://statistics.data.gov.uk/id/local-authority/38,Oxfordshire County Council,Support at Home U65 Physical Support,14/04/2023,5682,,3111410197,611.76,The Brandon Trust
http://statistics.data.gov.uk/id/local-authority/38,Oxfordshire County Council,Support at Home U65 Learning Disability,14/04/2023,5682,,3111410218,611.76,The Brandon Trust
http://statistics.data.gov.uk/id/local-authority/38,Oxfordshire County Council,Support at Home U65 Learning Disability,25/04/2023,5682,,3111414392,611.76,The Brandon Trust
http://statistics.data.gov.uk/id/local-authority/38,Oxfordshire County Council,Support at Home 65+ Physical Support,25/04/2023,5698,,3111414903,611.83,Oxfordshire Crossroads
http://statistics.data.gov.uk/id/local-authority/38,Oxfordshire County Council,LD Continuing Care - Sup at Home - U65,06/04/2023,5691,,3111401029,613.05,THORNBURY NURSING SERVICES
http://statistics.data.gov.uk/id/local-authority/38,Oxfordshire County Council,LD Continuing Care - Sup at Home - U65,06/04/2023,5691,,3111401034,613.05,THORNBURY NURSING SERVICES
http://statistics.data.gov.uk/id/local-authority/38,Oxfordshire County Council,LD Continuing Care - Sup at Home - U65,06/04/2023,5691,,3111401038,613.05,THORNBURY NURSING SERVICES
http://statistics.data.gov.uk/id/local-authority/38,Oxfordshire County Council,FAM GRP CONFERENCES,03/04/2023,4940,Other Services,2201099309,613.24,Andy Robinson
http://statistics.data.gov.uk/id/local-authority/38,Oxfordshire County Council,Support at Home U65 Other /Soc Isolation,12/04/2023,5690,,3111407185,613.29,ADVANCE HOUSING & SUPPORT LTD
http://statistics.data.gov.uk/id/local-authority/38,Oxfordshire County Council,LD Continuing Care - Sup at Home - U65,28/04/2023,5691,,3111417399,613.3,Paterson Recruitment
http://statistics.data.gov.uk/id/local-authority/38,Oxfordshire County Council,Support at Home U65 Physical Support,12/04/2023,5899,Social Care - Direct Payments,3111404339,613.64,Purple Conversation Com In Co (DP)
http://statistics.data.gov.uk/id/local-authority/38,Oxfordshire County Council,Support at Home U65 Physical Support,25/04/2023,5698,,3111414417,614.08,Acquire Care Ltd
http://statistics.data.gov.uk/id/local-authority/38,Oxfordshire County Council,Vegetation Mgmt,13/04/2023,5526,Payments to Private Contractors,3111409887,615.1,OCC One Time Vendor
http://statistics.data.gov.uk/id/local-authority/38,Oxfordshire County Council,Vegetation Mgmt,06/04/2023,5526,Payments to Private Contractors,3111400963,615.41,Arncott Parish Council
http://statistics.data.gov.uk/id/local-authority/38,Oxfordshire County Council,FOSTERING MAIN,04/04/2023,5227,Other Transport Arrangements,3111399533,615.52,Redacted Personal Data
http://statistics.data.gov.uk/id/local-authority/38,Oxfordshire County Council,Vegetation Mgmt,17/04/2023,5526,Payments to Private Contractors,3111410301,615.63,Charney Bassett Parish Council
http://statistics.data.gov.uk/id/local-authority/38,Oxfordshire County Council,SEN TRANSPORT,05/04/2023,4320,Pupil / Client Travel Reimbursement,3111400573,615.68,Redacted Personal Data
http://statistics.data.gov.uk/id/local-authority/38,Oxfordshire County Council,SHORT BREAK ACTIVITIES,25/04/2023,5526,Payments to Private Contractors,2201105008,616,The Gallery Trust
http://statistics.data.gov.uk/id/local-authority/38,Oxfordshire County Council,Support at Home 65+ Learning Disability,12/04/2023,5688,,3111406959,616.1,UNITED RESPONSE
http://statistics.data.gov.uk/id/local-authority/38,Oxfordshire County Council,Children in Care Non-staffing - Centrl 1,25/04/2023,5394,Other Expenses,3111414150,617.49,Redacted Personal Data
http://statistics.data.gov.uk/id/local-authority/38,Oxfordshire County Council,FOSTERING MAIN,04/04/2023,5227,Other Transport Arrangements,3111399557,618.05,Redacted Personal Data
http://statistics.data.gov.uk/id/local-authority/38,Oxfordshire County Council,Support at Home U65 Learning Disability,11/04/2023,5899,Social Care - Direct Payments,3111401529,618.35,Connection Support (Oxford)
http://statistics.data.gov.uk/id/local-authority/38,Oxfordshire County Council,Support at Home U65 MH OBC Contract,19/04/2023,5693,,3111411567,618.95,Home Instead (Deddington)
http://statistics.data.gov.uk/id/local-authority/38,Oxfordshire County Council,Support at Home U65 Physical Support,12/04/2023,5899,Social Care - Direct Payments,3111403914,619.28,Redacted Personal Data
http://statistics.data.gov.uk/id/local-authority/38,Oxfordshire County Council,Support at Home U65 Learning Disability,12/04/2023,5899,Social Care - Direct Payments,3111403968,619.28,Redacted Personal Data
http://statistics.data.gov.uk/id/local-authority/38,Oxfordshire County Council,Support at Home U65 Learning Disability,11/04/2023,5899,Social Care - Direct Payments,3111402220,619.55,Purple Conversation Com In Co (DP)
http://statistics.data.gov.uk/id/local-authority/38,Oxfordshire County Council,UASC 16&17,26/04/2023,5663,B*Birthday Allowance,9300059760,619.62,OCC SS Oxford City Div 1 Bank
http://statistics.data.gov.uk/id/local-authority/38,Oxfordshire County Council,UASC 16&17,26/04/2023,5663,B*Birthday Allowance,9300059762,619.62,OCC SS Oxford City Div 1 Cash
http://statistics.data.gov.uk/id/local-authority/38,Oxfordshire County Council,Support at Home 65+ Mental Health,25/04/2023,5698,,3111414864,619.96,Oxford Private Care
http://statistics.data.gov.uk/id/local-authority/38,Oxfordshire County Council,LAC PUPIL PREMIUM,20/04/2023,5537,Payments to Other Establishments,3111412052,620,COTSWOLD CHINE HOME SCHOOL
http://statistics.data.gov.uk/id/local-authority/38,Oxfordshire County Council,Support at Home 65+ Learning Disability,19/04/2023,5693,,3111411626,620.18,Pioneering Care Bicester Limited
http://statistics.data.gov.uk/id/local-authority/38,Oxfordshire County Council,Support at Home U65 Other /Soc Isolation,12/04/2023,5899,Social Care - Direct Payments,3111403703,620.88,Redacted Personal Data
http://statistics.data.gov.uk/id/local-authority/38,Oxfordshire County Council,Support at Home 65+ Physical Support,25/04/2023,5699,,3111415768,620.92,Home Helpers Care Ltd
http://statistics.data.gov.uk/id/local-authority/38,Oxfordshire County Council,ICT Operations & Maintenance,27/04/2023,5072,Telephone - Equipment,2201106030,621.73,Vodafone
http://statistics.data.gov.uk/id/local-authority/38,Oxfordshire County Council,Support at Home U65 MH OBC Contract,11/04/2023,5899,Social Care - Direct Payments,3111402713,621.9,Rosekel Resourcing Ltd
http://statistics.data.gov.uk/id/local-authority/38,Oxfordshire County Council,Delegated Health Tasks  - Over 65,04/04/2023,5691,,3111400468,622.1,Acquire Care Ltd
http://statistics.data.gov.uk/id/local-authority/38,Oxfordshire County Council,Reading Adoption Support Fund,25/04/2023,4861,Hired and Contracted Services,2201104738,622.4,Sue Jacobs
http://statistics.data.gov.uk/id/local-authority/38,Oxfordshire County Council,LEAVING CARE CITY 1,05/04/2023,5415,Residential Activities,3111400168,623,Redacted Personal Data
http://statistics.data.gov.uk/id/local-authority/38,Oxfordshire County Council,Support at Home 65+ Physical Support,03/04/2023,5696,,3111398519,623.23,Orders of St John Care Trust
http://statistics.data.gov.uk/id/local-authority/38,Oxfordshire County Council,Support at Home 65+ Memory & Cognition,03/04/2023,5696,,3111398529,623.23,Orders of St John Care Trust
http://statistics.data.gov.uk/id/local-authority/38,Oxfordshire County Council,Support at Home U65 Learning Disability,12/04/2023,5690,,3111405150,623.27,Guideposts Trust
http://statistics.data.gov.uk/id/local-authority/38,Oxfordshire County Council,LIBRARY COLLECTIONS,26/04/2023,4539,"Books, DVDs and CDs",2201105306,623.74,W F HOWES LTD
http://statistics.data.gov.uk/id/local-authority/38,Oxfordshire County Council,Support at Home 65+ Physical Support,25/04/2023,5696,,3111415232,623.78,Radis Community Care
http://statistics.data.gov.uk/id/local-authority/38,Oxfordshire County Council,Oxfordshire Adoption Support Fund,21/04/2023,4861,Hired and Contracted Services,2201103573,625,Graham Kennedy
http://statistics.data.gov.uk/id/local-authority/38,Oxfordshire County Council,ICT Operations & Maintenance,17/04/2023,8103,Payments to sub contractor,2201101251,625,Low Voltage UK Ltd
http://statistics.data.gov.uk/id/local-authority/38,Oxfordshire County Council,Vegetation Mgmt,12/04/2023,5526,Payments to Private Contractors,3111405115,625.25,OCC One Time Vendor
http://statistics.data.gov.uk/id/local-authority/38,Oxfordshire County Council,Support at Home 65+ Physical Support,25/04/2023,5689,,3111414707,625.61,Greigcare Home Service
http://statistics.data.gov.uk/id/local-authority/38,Oxfordshire County Council,FPT NORTH,04/04/2023,4525,Furniture,3111400098,625.84,Redacted Personal Data
http://statistics.data.gov.uk/id/local-authority/38,Oxfordshire County Council,Early Years SEN Funding,14/04/2023,5537,Payments to Other Establishments,3111410176,625.92,Grow Learn Play Project CIC
http://statistics.data.gov.uk/id/local-authority/38,Oxfordshire County Council,FLEET MAINTENANCE,03/04/2023,4220,Vehicle Workshop Spares and Consumables,2201099374,626,Terberg DTS (UK) Ltd
http://statistics.data.gov.uk/id/local-authority/38,Oxfordshire County Council,Support at Home U65 Learning Disability,28/04/2023,5696,,3111417207,626.63,Orders of St John Care Trust
http://statistics.data.gov.uk/id/local-authority/38,Oxfordshire County Council,Support at Home 65+ Physical Support,25/04/2023,5693,,3111414556,626.64,Day & Night Care Assistance
http://statistics.data.gov.uk/id/local-authority/38,Oxfordshire County Council,Support at Home U65 Learning Disability,12/04/2023,5899,Social Care - Direct Payments,3111404297,627.48,Purple Conversation Com In Co (DP)
http://statistics.data.gov.uk/id/local-authority/38,Oxfordshire County Council,Support at Home U65 Learning Disability,12/04/2023,5899,Social Care - Direct Payments,3111404782,627.48,Purple Conversation Com In Co (DP)
http://statistics.data.gov.uk/id/local-authority/38,Oxfordshire County Council,,20/04/2023,1448,Blackfield Inc & Exp A/c,3111412263,628.45,OCC One Time Vendor
http://statistics.data.gov.uk/id/local-authority/38,Oxfordshire County Council,Support at Home U65 Learning Disability,12/04/2023,5697,,3111404987,628.67,Stepping Stones
http://statistics.data.gov.uk/id/local-authority/38,Oxfordshire County Council,Support at Home U65 Physical Support,12/04/2023,5899,Social Care - Direct Payments,3111403746,628.84,Redacted Personal Data
http://statistics.data.gov.uk/id/local-authority/38,Oxfordshire County Council,Support at Home U65 MH OBC Contract,28/04/2023,5696,,3111417279,628.86,Orders of St John Care Trust
http://statistics.data.gov.uk/id/local-authority/38,Oxfordshire County Council,Support at Home U65 Learning Disability,28/04/2023,5696,,3111417280,628.86,Orders of St John Care Trust
http://statistics.data.gov.uk/id/local-authority/38,Oxfordshire County Council,CHC Fast Track - Sup at Homes - Over 65,18/04/2023,5691,,3111410690,630,Caremark (West Oxfordshire & Cherwe
http://statistics.data.gov.uk/id/local-authority/38,Oxfordshire County Council,MAINSTREAM-PRIMARY,21/04/2023,4330,Transport to School Activities,3111412806,630,Excelsior Taxis Ltd
http://statistics.data.gov.uk/id/local-authority/38,Oxfordshire County Council,Support at Home U65 Learning Disability,26/04/2023,5227,Other Transport Arrangements,3111416454,630,Her Ride Limited
http://statistics.data.gov.uk/id/local-authority/38,Oxfordshire County Council,CHC Fast Track - Sup at Homes - Over 65,17/04/2023,5691,,3111410318,630,OCC One Time Vendor
http://statistics.data.gov.uk/id/local-authority/38,Oxfordshire County Council,POST18 UASC DCSF FND,26/04/2023,5665,B*Fostering Project Care Fee,9300059764,630,OCC SS Oxford City Div 1 Cash
http://statistics.data.gov.uk/id/local-authority/38,Oxfordshire County Council,TRANSPORT COSTS,13/04/2023,5227,Other Transport Arrangements,3111409862,630,Oxon Transport Services Ltd
http://statistics.data.gov.uk/id/local-authority/38,Oxfordshire County Council,Reactive Maintenance,19/04/2023,3787,Premises Repairs,2201102509,630,SI Pumps Ltd
http://statistics.data.gov.uk/id/local-authority/38,Oxfordshire County Council,Swindon Adoption Support Fund,21/04/2023,4861,Hired and Contracted Services,2201103840,630,The Family Place
http://statistics.data.gov.uk/id/local-authority/38,Oxfordshire County Council,Vegetation Mgmt,13/04/2023,5526,Payments to Private Contractors,3111409888,630.36,OCC One Time Vendor
http://statistics.data.gov.uk/id/local-authority/38,Oxfordshire County Council,LEAVING CARE SOUTH,27/04/2023,4407,Equipment,9300059784,630.4,OCC SS Vale of White Horse Cash
http://statistics.data.gov.uk/id/local-authority/38,Oxfordshire County Council,SHARED LIVES,12/04/2023,5555,Payments to Carers,3111405812,631.3,Redacted Personal Data
http://statistics.data.gov.uk/id/local-authority/38,Oxfordshire County Council,POST 16 SEN,05/04/2023,4320,Pupil / Client Travel Reimbursement,3111400635,631.4,Redacted Personal Data
http://statistics.data.gov.uk/id/local-authority/38,Oxfordshire County Council,Vegetation Mgmt,12/04/2023,5526,Payments to Private Contractors,3111405114,631.91,OCC One Time Vendor
http://statistics.data.gov.uk/id/local-authority/38,Oxfordshire County Council,Support at Home U65 Learning Disability,21/04/2023,5693,,3111412546,632.04,A CARING HAND LTD
http://statistics.data.gov.uk/id/local-authority/38,Oxfordshire County Council,Support at Home U65 MH OBC Contract,19/04/2023,5693,,3111411677,632.04,We-Care-Recruitment Ltd
http://statistics.data.gov.uk/id/local-authority/38,Oxfordshire County Council,,04/04/2023,1446,Balances brought forward control a/c,3111400112,632.35,Bibby Financial Services
http://statistics.data.gov.uk/id/local-authority/38,Oxfordshire County Council,FLEET COSTS,27/04/2023,4270,HTM / Other Vehicle - Hire Charges,2201105925,632.7,Days Rental
http://statistics.data.gov.uk/id/local-authority/38,Oxfordshire County Council,FLEET COSTS,27/04/2023,4270,HTM / Other Vehicle - Hire Charges,2201105929,632.7,Days Rental
http://statistics.data.gov.uk/id/local-authority/38,Oxfordshire County Council,FLEET COSTS,27/04/2023,4270,HTM / Other Vehicle - Hire Charges,2201105930,632.7,Days Rental
http://statistics.data.gov.uk/id/local-authority/38,Oxfordshire County Council,FLEET COSTS,27/04/2023,4270,HTM / Other Vehicle - Hire Charges,2201105932,632.7,Days Rental
http://statistics.data.gov.uk/id/local-authority/38,Oxfordshire County Council,LANDLORD & TENANT,28/04/2023,4001,Uniform Business Rates,3500095249,633,West Oxfordshire District Council
http://statistics.data.gov.uk/id/local-authority/38,Oxfordshire County Council,LANDLORD & TENANT,01/04/2023,4001,Uniform Business Rates,3500094386,634.28,West Oxfordshire District Council
http://statistics.data.gov.uk/id/local-authority/38,Oxfordshire County Council,Support at Home U65 Learning Disability,12/04/2023,5899,Social Care - Direct Payments,3111404001,634.44,Redacted Personal Data
http://statistics.data.gov.uk/id/local-authority/38,Oxfordshire County Council,Support at Home U65 Mental Health,12/04/2023,5899,Social Care - Direct Payments,3111403636,634.8,Redacted Personal Data
http://statistics.data.gov.uk/id/local-authority/38,Oxfordshire County Council,COMMUNICATIONS,04/04/2023,5086,Other Communications,2201099638,635,Autopage Ltd.
http://statistics.data.gov.uk/id/local-authority/38,Oxfordshire County Council,COMMUNICATIONS,21/04/2023,4495,IT Software,2201103539,635,Autopage Ltd.
http://statistics.data.gov.uk/id/local-authority/38,Oxfordshire County Council,Mainstream Res,26/04/2023,5558,,3111416513,635.34,Your Chapter Limited
http://statistics.data.gov.uk/id/local-authority/38,Oxfordshire County Council,TRO TEAM,21/04/2023,4790,"Publicity, Promotions and Advertisement",2201104117,635.44,PEOPLESCOUT LIMITED
http://statistics.data.gov.uk/id/local-authority/38,Oxfordshire County Council,Support at Home U65 Learning Disability,12/04/2023,5899,Social Care - Direct Payments,3111404753,636,Purple Conversation Com In Co (DP)
http://statistics.data.gov.uk/id/local-authority/38,Oxfordshire County Council,Support at Home U65 Learning Disability,12/04/2023,5690,,3111405173,636.43,MacIntyre Care (Womaston)
http://statistics.data.gov.uk/id/local-authority/38,Oxfordshire County Council,Support at Home U65 Learning Disability,12/04/2023,5690,,3111405181,636.43,MacIntyre Care (Womaston)
http://statistics.data.gov.uk/id/local-authority/38,Oxfordshire County Council,Support at Home 65+ Learning Disability,12/04/2023,5690,,3111405186,636.43,MacIntyre Care (Womaston)
http://statistics.data.gov.uk/id/local-authority/38,Oxfordshire County Council,Support at Home U65 Learning Disability,12/04/2023,5690,,3111405188,636.43,MacIntyre Care (Womaston)
http://statistics.data.gov.uk/id/local-authority/38,Oxfordshire County Council,Support at Home U65 Learning Disability,21/04/2023,5697,,3111412633,636.58,The Care Workshop Limited
http://statistics.data.gov.uk/id/local-authority/38,Oxfordshire County Council,Support at Home U65 Learning Disability,12/04/2023,5690,,3111407237,636.6,Autism at Kingwood Limited
http://statistics.data.gov.uk/id/local-authority/38,Oxfordshire County Council,Support at Home U65 Learning Disability,12/04/2023,5690,,3111407248,636.6,Autism at Kingwood Limited
http://statistics.data.gov.uk/id/local-authority/38,Oxfordshire County Council,Support at Home U65 Memory & Cognition,12/04/2023,5690,,3111407250,636.6,Autism at Kingwood Limited
http://statistics.data.gov.uk/id/local-authority/38,Oxfordshire County Council,SPECIAL GUARDIANSHIP,06/04/2023,5661,B*Carriageway pre surf. dressing patchin,3111400769,636.64,Redacted Personal Data
http://statistics.data.gov.uk/id/local-authority/38,Oxfordshire County Council,Support at Home 65+ Mental Health,12/04/2023,5899,Social Care - Direct Payments,3111404400,636.72,Purple Conversation Com In Co (DP)
http://statistics.data.gov.uk/id/local-authority/38,Oxfordshire County Council,FOSTERING MAIN,11/04/2023,5549,B*Fostering Allowance - Regulation 38,3111403029,636.9,Redacted Personal Data
http://statistics.data.gov.uk/id/local-authority/38,Oxfordshire County Council,Support at Home U65 Physical Support,25/04/2023,5689,,3111414891,637.17,Oxfordshire Crossroads
http://statistics.data.gov.uk/id/local-authority/38,Oxfordshire County Council,LIBRARY SERV MANAGER,27/04/2023,3103,Other Training Courses and Qualification,2201105857,638,Libraries Connected
http://statistics.data.gov.uk/id/local-authority/38,Oxfordshire County Council,Interim Funding  - Care Homes - Over 65,12/04/2023,5687,,3111407425,639.43,Freeland House
http://statistics.data.gov.uk/id/local-authority/38,Oxfordshire County Council,Support at Home U65 Learning Disability,25/04/2023,5682,,3111414383,639.95,The Brandon Trust
http://statistics.data.gov.uk/id/local-authority/38,Oxfordshire County Council,Swindon Adoption Support Fund,01/04/2023,4861,Hired and Contracted Services,2201102821,640,Julie Lender-Swain
http://statistics.data.gov.uk/id/local-authority/38,Oxfordshire County Council,TRANSPORT COSTS,19/04/2023,5227,Other Transport Arrangements,3111411738,640,The Oxfordshire Taxi Company Ltd T/
http://statistics.data.gov.uk/id/local-authority/38,Oxfordshire County Council,Vegetation Mgmt,28/04/2023,5526,Payments to Private Contractors,3111417534,640.52,Stratton Audley Parish Council
http://statistics.data.gov.uk/id/local-authority/38,Oxfordshire County Council,Support at Home U65 HFA,12/04/2023,5899,Social Care - Direct Payments,3111404178,641.4,Redacted Personal Data
http://statistics.data.gov.uk/id/local-authority/38,Oxfordshire County Council,Support at Home U65 Learning Disability,19/04/2023,5227,Other Transport Arrangements,3111411748,642.26,The Oxfordshire Taxi Company Ltd T/
http://statistics.data.gov.uk/id/local-authority/38,Oxfordshire County Council,LEAVING CARE SOUTH,17/04/2023,5394,Other Expenses,9300059669,643.7,OCC SS Vale of White Horse Cash
http://statistics.data.gov.uk/id/local-authority/38,Oxfordshire County Council,Support at Home U65 Physical Support,25/04/2023,5699,,3111416098,643.9,We-Care-Recruitment Ltd
http://statistics.data.gov.uk/id/local-authority/38,Oxfordshire County Council,Support at Home U65 Learning Disability,19/04/2023,5227,Other Transport Arrangements,3111411801,644,Vine Community Services Ltd T/A
http://statistics.data.gov.uk/id/local-authority/38,Oxfordshire County Council,Support at Home 65+ Physical Support,25/04/2023,5699,,3111415808,644.69,KCARE NURSING AGENCY
http://statistics.data.gov.uk/id/local-authority/38,Oxfordshire County Council,LAC PUPIL PREMIUM,20/04/2023,5537,Payments to Other Establishments,3111412059,645,St Christopher's C of E Primary Sch
http://statistics.data.gov.uk/id/local-authority/38,Oxfordshire County Council,Support at Home 65+ Memory & Cognition,25/04/2023,5699,,3111416084,645.08,The Care Workshop Limited
http://statistics.data.gov.uk/id/local-authority/38,Oxfordshire County Council,Support at Home 65+ Physical Support,25/04/2023,5699,,3111415819,645.78,Mega Resources Ltd
http://statistics.data.gov.uk/id/local-authority/38,Oxfordshire County Council,Support at Home U65 Physical Support,25/04/2023,5699,,3111415821,645.78,Mega Resources Ltd
http://statistics.data.gov.uk/id/local-authority/38,Oxfordshire County Council,Support at Home U65 Mental Health,12/04/2023,5899,Social Care - Direct Payments,3111404257,645.96,Purple Conversation Com In Co (DP)
http://statistics.data.gov.uk/id/local-authority/38,Oxfordshire County Council,Support at Home 65+ Physical Support,12/04/2023,5899,Social Care - Direct Payments,3111403722,647.04,Redacted Personal Data
http://statistics.data.gov.uk/id/local-authority/38,Oxfordshire County Council,Support at Home 65+ Physical Support,03/04/2023,5696,,3111398544,647.58,Orders of St John Care Trust
http://statistics.data.gov.uk/id/local-authority/38,Oxfordshire County Council,Support at Home 65+ Learning Disability,03/04/2023,5696,,3111398599,647.58,Orders of St John Care Trust
http://statistics.data.gov.uk/id/local-authority/38,Oxfordshire County Council,Voice of Customer,19/04/2023,4861,Hired and Contracted Services,2201102610,648,Debra Johnson
http://statistics.data.gov.uk/id/local-authority/38,Oxfordshire County Council,Support at Home U65 Physical Support,21/04/2023,5693,,3111412617,648,Star Projections
http://statistics.data.gov.uk/id/local-authority/38,Oxfordshire County Council,Support at Home U65 Learning Disability,12/04/2023,5690,,3111407272,648,The Laurels (Witney)
http://statistics.data.gov.uk/id/local-authority/38,Oxfordshire County Council,Support at Home 65+ Physical Support,12/04/2023,5697,,3111404986,648.75,EMC Medical Services Limited
http://statistics.data.gov.uk/id/local-authority/38,Oxfordshire County Council,Delegated Health Tasks  - Over 65,18/04/2023,5691,,3111410658,649.32,Bluebird Care (Oxford South & West)
http://statistics.data.gov.uk/id/local-authority/38,Oxfordshire County Council,Support at Home U65 Learning Disability,12/04/2023,5690,,3111407289,649.5,SEEABILITY
http://statistics.data.gov.uk/id/local-authority/38,Oxfordshire County Council,Support at Home 65+ Learning Disability,12/04/2023,5688,,3111406675,649.5,The Brandon Trust
http://statistics.data.gov.uk/id/local-authority/38,Oxfordshire County Council,Support at Home U65 Physical Support,12/04/2023,5899,Social Care - Direct Payments,3111404314,649.64,Purple Conversation Com In Co (DP)
http://statistics.data.gov.uk/id/local-authority/38,Oxfordshire County Council,SEN Miscellaneous Expenditure,14/04/2023,5668,Technical and Professional Consultant F,3111410253,650,GLOBAL MEDIATION LTD
http://statistics.data.gov.uk/id/local-authority/38,Oxfordshire County Council,SEN Miscellaneous Expenditure,14/04/2023,5668,Technical and Professional Consultant F,3111410254,650,GLOBAL MEDIATION LTD
http://statistics.data.gov.uk/id/local-authority/38,Oxfordshire County Council,BSOG,10/04/2023,5781,Payments to Transport Operators,3500094653,650,Stagecoach Services Ltd
http://statistics.data.gov.uk/id/local-authority/38,Oxfordshire County Council,Reading Adoption Support Fund,24/04/2023,4861,Hired and Contracted Services,2201104503,650,The Cherrycroft Practice Limited
http://statistics.data.gov.uk/id/local-authority/38,Oxfordshire County Council,Support at Home 65+ Physical Support,26/04/2023,4070,Cleaning services,2201105376,650,The light General Services
http://statistics.data.gov.uk/id/local-authority/38,Oxfordshire County Council,Support at Home U65 Physical Support,27/04/2023,4070,Cleaning services,2201105874,650,The light General Services
http://statistics.data.gov.uk/id/local-authority/38,Oxfordshire County Council,SEN TRANSPORT,24/04/2023,4330,Transport to School Activities,3111412866,650,The Oxfordshire Taxi Company Ltd T/
http://statistics.data.gov.uk/id/local-authority/38,Oxfordshire County Council,CHC Fast Track - Sup at Homes - Over 65,18/04/2023,5691,,3111410648,650.18,Bluebird Care
http://statistics.data.gov.uk/id/local-authority/38,Oxfordshire County Council,Support at Home U65 Learning Disability,12/04/2023,5899,Social Care - Direct Payments,3111404540,651.36,Purple Conversation Com In Co (DP)
http://statistics.data.gov.uk/id/local-authority/38,Oxfordshire County Council,Support at Home 65+ Physical Support,25/04/2023,5699,,3111415677,651.45,CaringPlus Healthcare Services Ltd
http://statistics.data.gov.uk/id/local-authority/38,Oxfordshire County Council,ContrO ASC Payments Control Account,12/04/2023,7190,Other Recovered Costs,3111407124,651.63,DREAMS CARE HOMES (UK) LTD
http://statistics.data.gov.uk/id/local-authority/38,Oxfordshire County Council,Support at Home 65+ Mental Health,25/04/2023,5699,,3111415552,651.87,Care Outlook Ltd
http://statistics.data.gov.uk/id/local-authority/38,Oxfordshire County Council,Community Support Service Wallingford,13/04/2023,4232,Vehicle Fuel,2201100780,651.94,Allstar Business Solutions Ltd
http://statistics.data.gov.uk/id/local-authority/38,Oxfordshire County Council,Support at Home 65+ Physical Support,25/04/2023,5689,,3111414877,651.94,Oxfordshire Crossroads
http://statistics.data.gov.uk/id/local-authority/38,Oxfordshire County Council,COMM DRAWDOWN FUNDNG,26/04/2023,8511,Legal Fees & expenses,2201105085,652.5,Bevan Brittan LLP
http://statistics.data.gov.uk/id/local-authority/38,Oxfordshire County Council,NURSERY ED FUND,25/04/2023,5537,Payments to Other Establishments,3111413064,652.5,Steeple Aston Pre-School
http://statistics.data.gov.uk/id/local-authority/38,Oxfordshire County Council,Support at Home U65 Physical Support,25/04/2023,5696,,3111415066,653.03,All Care GB Ltd
http://statistics.data.gov.uk/id/local-authority/38,Oxfordshire County Council,BULLINGDON PRISON,12/04/2023,4539,"Books, DVDs and CDs",2201100498,653.75,Isubscribe Ltd
http://statistics.data.gov.uk/id/local-authority/38,Oxfordshire County Council,Support at Home U65 Learning Disability,12/04/2023,5899,Social Care - Direct Payments,3111404241,653.84,Redacted Personal Data
http://statistics.data.gov.uk/id/local-authority/38,Oxfordshire County Council,Support at Home 65+ Physical Support,12/04/2023,5899,Social Care - Direct Payments,3111403643,653.92,Redacted Personal Data
http://statistics.data.gov.uk/id/local-authority/38,Oxfordshire County Council,LANDLORD & TENANT,07/04/2023,4001,Uniform Business Rates,3500094605,654.25,West Oxfordshire District Council
http://statistics.data.gov.uk/id/local-authority/38,Oxfordshire County Council,LANDLORD & TENANT,28/04/2023,4001,Uniform Business Rates,3500095255,655,West Oxfordshire District Council
http://statistics.data.gov.uk/id/local-authority/38,Oxfordshire County Council,Reactive Maintenance,19/04/2023,3787,Premises Repairs,2201102260,655.86,Marlowe Fire & Security Ltd
http://statistics.data.gov.uk/id/local-authority/38,Oxfordshire County Council,Support at Home 65+ Memory & Cognition,12/04/2023,5899,Social Care - Direct Payments,3111404225,655.92,Redacted Personal Data
http://statistics.data.gov.uk/id/local-authority/38,Oxfordshire County Council,Support at Home U65 Physical Support,25/04/2023,5696,,3111415054,656.4,All Care GB Ltd
http://statistics.data.gov.uk/id/local-authority/38,Oxfordshire County Council,Support at Home 65+ Physical Support,25/04/2023,5699,,3111415845,656.45,Oxford Private Care
http://statistics.data.gov.uk/id/local-authority/38,Oxfordshire County Council,Support at Home 65+ Physical Support,25/04/2023,5689,,3111414715,656.57,Greigcare Home Service
http://statistics.data.gov.uk/id/local-authority/38,Oxfordshire County Council,UASC 16&17,04/04/2023,5549,B*Fostering Allowance - Regulation 38,3111399638,656.98,Redacted Personal Data
http://statistics.data.gov.uk/id/local-authority/38,Oxfordshire County Council,UASC 16&17,11/04/2023,5549,B*Fostering Allowance - Regulation 38,3111402876,656.98,Redacted Personal Data
http://statistics.data.gov.uk/id/local-authority/38,Oxfordshire County Council,UASC 16&17,04/04/2023,5549,B*Fostering Allowance - Regulation 38,3111399654,656.98,Redacted Personal Data
http://statistics.data.gov.uk/id/local-authority/38,Oxfordshire County Council,FOSTERING MAIN,04/04/2023,5549,B*Fostering Allowance - Regulation 38,3111400082,656.98,Redacted Personal Data
http://statistics.data.gov.uk/id/local-authority/38,Oxfordshire County Council,FOSTERING MAIN,04/04/2023,5549,B*Fostering Allowance - Regulation 38,3111399573,658,Redacted Personal Data
http://statistics.data.gov.uk/id/local-authority/38,Oxfordshire County Council,FOSTERING MAIN,11/04/2023,5549,B*Fostering Allowance - Regulation 38,3111402822,658,Redacted Personal Data
http://statistics.data.gov.uk/id/local-authority/38,Oxfordshire County Council,FOSTERING MAIN,18/04/2023,5549,B*Fostering Allowance - Regulation 38,3111410938,658,Redacted Personal Data
http://statistics.data.gov.uk/id/local-authority/38,Oxfordshire County Council,FOSTERING MAIN,25/04/2023,5549,B*Fostering Allowance - Regulation 38,3111413664,658,Redacted Personal Data
http://statistics.data.gov.uk/id/local-authority/38,Oxfordshire County Council,Support at Home 65+ Memory & Cognition,25/04/2023,5699,,3111415804,658.38,KCARE NURSING AGENCY
http://statistics.data.gov.uk/id/local-authority/38,Oxfordshire County Council,FOSTERING MAIN,18/04/2023,5532,B*Fostering - Loan Equipment,3111411093,658.41,Redacted Personal Data
http://statistics.data.gov.uk/id/local-authority/38,Oxfordshire County Council,Support at Home 65+ Physical Support,25/04/2023,5689,,3111414761,658.58,Kare Plus Oxford
http://statistics.data.gov.uk/id/local-authority/38,Oxfordshire County Council,Support at Home 65+ Memory & Cognition,25/04/2023,5699,,3111415648,659.28,CaringPlus Healthcare Services Ltd
http://statistics.data.gov.uk/id/local-authority/38,Oxfordshire County Council,Support at Home U65 Learning Disability,25/04/2023,5698,,3111414469,659.48,Bridges Home Care Ltd
http://statistics.data.gov.uk/id/local-authority/38,Oxfordshire County Council,Support at Home U65 Learning Disability,25/04/2023,5689,,3111414502,659.51,Care Outlook Ltd
http://statistics.data.gov.uk/id/local-authority/38,Oxfordshire County Council,NURSERY ED FUND,25/04/2023,5537,Payments to Other Establishments,3111413079,659.52,Amanda Sinclair
http://statistics.data.gov.uk/id/local-authority/38,Oxfordshire County Council,NURSERY ED FUND,25/04/2023,5537,Payments to Other Establishments,3111413412,659.52,Lisa Hamilton
http://statistics.data.gov.uk/id/local-authority/38,Oxfordshire County Council,Support at Home 65+ Memory & Cognition,25/04/2023,5699,,3111415806,659.63,KCARE NURSING AGENCY
http://statistics.data.gov.uk/id/local-authority/38,Oxfordshire County Council,Support at Home U65 Physical Support,12/04/2023,5899,Social Care - Direct Payments,3111404755,659.84,Purple Conversation Com In Co (DP)
http://statistics.data.gov.uk/id/local-authority/38,Oxfordshire County Council,Delegated Health Tasks  - Over 65,18/04/2023,5691,,3111410654,660,Joining Hands Healthcare Ltd
http://statistics.data.gov.uk/id/local-authority/38,Oxfordshire County Council,Family Solutions Plus Non-staff - North,12/04/2023,4940,Other Services,3111405103,660,OCC One Time Vendor
http://statistics.data.gov.uk/id/local-authority/38,Oxfordshire County Council,FOSTERING MAIN,04/04/2023,5394,Other Expenses,3111400095,661.41,Redacted Personal Data
http://statistics.data.gov.uk/id/local-authority/38,Oxfordshire County Council,,13/04/2023,1448,Blackfield Inc & Exp A/c,3111410074,662.34,OCC One Time Vendor
http://statistics.data.gov.uk/id/local-authority/38,Oxfordshire County Council,LEAVING CARE NORTH,13/04/2023,4685,Clothing and Uniforms,3111409962,662.65,Redacted Personal Data
http://statistics.data.gov.uk/id/local-authority/38,Oxfordshire County Council,SEN TRANSPORT,05/04/2023,4320,Pupil / Client Travel Reimbursement,3111400559,662.97,Redacted Personal Data
http://statistics.data.gov.uk/id/local-authority/38,Oxfordshire County Council,"Bicester CC, Launton Rd",14/04/2023,4477,Catering Equipment,2201100984,663,COOLERAID LTD
http://statistics.data.gov.uk/id/local-authority/38,Oxfordshire County Council,Planned Maintenance,01/04/2023,3787,Premises Repairs,2201106684,663.3,Trinity Protection Systems Ltd
http://statistics.data.gov.uk/id/local-authority/38,Oxfordshire County Council,TRO TEAM,04/04/2023,4790,"Publicity, Promotions and Advertisement",2201099478,664.05,PEOPLESCOUT LIMITED
http://statistics.data.gov.uk/id/local-authority/38,Oxfordshire County Council,Support at Home 65+ Memory & Cognition,25/04/2023,5699,,3111415263,664.33,BBC CARE SERVICE LIMITED
http://statistics.data.gov.uk/id/local-authority/38,Oxfordshire County Council,Swindon Adoption Support Fund,26/04/2023,4861,Hired and Contracted Services,2201105038,665,2PIP Theraputic Services
http://statistics.data.gov.uk/id/local-authority/38,Oxfordshire County Council,SAMUELSON HOUSE,06/04/2023,4122,Other premises related costs,2201100138,665,COOLERAID LTD
http://statistics.data.gov.uk/id/local-authority/38,Oxfordshire County Council,Support at Home U65 Learning Disability,19/04/2023,5227,Other Transport Arrangements,3111411757,665,The Oxfordshire Taxi Company Ltd T/
http://statistics.data.gov.uk/id/local-authority/38,Oxfordshire County Council,SEN Alternative Provision,25/04/2023,4861,Hired and Contracted Services,3111415547,665,The Vale Academy Trust
http://statistics.data.gov.uk/id/local-authority/38,Oxfordshire County Council,Support at Home 65+ Physical Support,25/04/2023,5699,,3111416035,665.02,Reable Health Ltd
http://statistics.data.gov.uk/id/local-authority/38,Oxfordshire County Council,SHARED LIVES,12/04/2023,5365,Non-Staff Subsistence and Expenses,3111405944,665.34,Redacted Personal Data
http://statistics.data.gov.uk/id/local-authority/38,Oxfordshire County Council,Delegated Health Tasks  - Over 65,18/04/2023,5691,,3111410615,666,SEABROOK SERVICES LTD
http://statistics.data.gov.uk/id/local-authority/38,Oxfordshire County Council,FOSTERING MAIN,04/04/2023,5549,B*Fostering Allowance - Regulation 38,3111399962,666.15,Redacted Personal Data
http://statistics.data.gov.uk/id/local-authority/38,Oxfordshire County Council,Support at Home 65+ Physical Support,12/04/2023,5899,Social Care - Direct Payments,3111404363,666.96,Purple Conversation Com In Co (DP)
http://statistics.data.gov.uk/id/local-authority/38,Oxfordshire County Council,Support at Home U65 MH OBC Contract,25/04/2023,5699,,3111415194,667.29,Adult Transition Services Ltd (ATrS
http://statistics.data.gov.uk/id/local-authority/38,Oxfordshire County Council,Support at Home U65 HFA,12/04/2023,5899,Social Care - Direct Payments,3111404341,667.36,Purple Conversation Com In Co (DP)
http://statistics.data.gov.uk/id/local-authority/38,Oxfordshire County Council,Support at Home U65 Learning Disability,12/04/2023,5690,,3111407366,667.8,The Camden Society
http://statistics.data.gov.uk/id/local-authority/38,Oxfordshire County Council,Support at Home 65+ Learning Disability,12/04/2023,5690,,3111407412,667.8,The Camden Society
http://statistics.data.gov.uk/id/local-authority/38,Oxfordshire County Council,Support at Home 65+ Learning Disability,12/04/2023,5690,,3111407422,667.8,The Camden Society
http://statistics.data.gov.uk/id/local-authority/38,Oxfordshire County Council,CORONER,06/04/2023,5202,Use of Mortuary Services,2201100116,668.75,Dr Lucinda Winter
http://statistics.data.gov.uk/id/local-authority/38,Oxfordshire County Council,Support at Home 65+ Physical Support,25/04/2023,5689,,3111414789,668.95,My Carer Ltd
http://statistics.data.gov.uk/id/local-authority/38,Oxfordshire County Council,Support at Home 65+ Physical Support,14/04/2023,5693,,3111410149,669.38,Enable Health Ltd
http://statistics.data.gov.uk/id/local-authority/38,Oxfordshire County Council,Support at Home 65+ Physical Support,28/04/2023,5696,,3111417287,669.56,Orders of St John Care Trust
http://statistics.data.gov.uk/id/local-authority/38,Oxfordshire County Council,Support at Home 65+ Physical Support,28/04/2023,5696,,3111417260,669.58,Orders of St John Care Trust
http://statistics.data.gov.uk/id/local-authority/38,Oxfordshire County Council,LAC PUPIL PREMIUM,20/04/2023,5537,Payments to Other Establishments,3111412055,670,The Propeller Academy Trust
http://statistics.data.gov.uk/id/local-authority/38,Oxfordshire County Council,Support at Home 65+ Learning Disability,28/04/2023,5696,,3111417297,670.44,Orders of St John Care Trust
http://statistics.data.gov.uk/id/local-authority/38,Oxfordshire County Council,2 YEAR OLD FUNDING,25/04/2023,5537,Payments to Other Establishments,3111413384,670.68,Amanda's Childcare
http://statistics.data.gov.uk/id/local-authority/38,Oxfordshire County Council,2 YEAR OLD FUNDING,25/04/2023,5537,Payments to Other Establishments,3111413542,670.68,Catriona McMenamin
http://statistics.data.gov.uk/id/local-authority/38,Oxfordshire County Council,2 YEAR OLD FUNDING,25/04/2023,5537,Payments to Other Establishments,3111413295,670.68,Deborah Barlow
http://statistics.data.gov.uk/id/local-authority/38,Oxfordshire County Council,2 YEAR OLD FUNDING,25/04/2023,5537,Payments to Other Establishments,3111413362,670.68,Donna Price
http://statistics.data.gov.uk/id/local-authority/38,Oxfordshire County Council,2 YEAR OLD FUNDING,28/04/2023,5537,Payments to Other Establishments,3111417310,670.68,Helen Dimmick
http://statistics.data.gov.uk/id/local-authority/38,Oxfordshire County Council,2 YEAR OLD FUNDING,25/04/2023,5537,Payments to Other Establishments,3111413385,670.68,Jacqueline Lawson
http://statistics.data.gov.uk/id/local-authority/38,Oxfordshire County Council,2 YEAR OLD FUNDING,25/04/2023,5537,Payments to Other Establishments,3111413350,670.68,Louise Duncan
http://statistics.data.gov.uk/id/local-authority/38,Oxfordshire County Council,2 YEAR OLD FUNDING,25/04/2023,5537,Payments to Other Establishments,3111413305,670.68,Maureen Sim
http://statistics.data.gov.uk/id/local-authority/38,Oxfordshire County Council,2 YEAR OLD FUNDING,25/04/2023,5537,Payments to Other Establishments,3111413389,670.68,Michelle Williams
http://statistics.data.gov.uk/id/local-authority/38,Oxfordshire County Council,2 YEAR OLD FUNDING,25/04/2023,5537,Payments to Other Establishments,3111413408,670.68,Nichola Bolt
http://statistics.data.gov.uk/id/local-authority/38,Oxfordshire County Council,2 YEAR OLD FUNDING,25/04/2023,5537,Payments to Other Establishments,3111413431,670.68,Sarah Rigby
http://statistics.data.gov.uk/id/local-authority/38,Oxfordshire County Council,2 YEAR OLD FUNDING,25/04/2023,5537,Payments to Other Establishments,3111413518,670.68,Sophie Cushing
http://statistics.data.gov.uk/id/local-authority/38,Oxfordshire County Council,Support at Home 65+ Physical Support,28/04/2023,5696,,3111417184,671.43,Orders of St John Care Trust
http://statistics.data.gov.uk/id/local-authority/38,Oxfordshire County Council,Support at Home U65 Physical Support,03/04/2023,5696,,3111398539,671.92,Orders of St John Care Trust
http://statistics.data.gov.uk/id/local-authority/38,Oxfordshire County Council,Support at Home U65 Learning Disability,05/04/2023,5227,Other Transport Arrangements,3111400361,672,Local Cars Kidlington
http://statistics.data.gov.uk/id/local-authority/38,Oxfordshire County Council,Care Packages & Placements- LD - OCC,12/04/2023,5227,Other Transport Arrangements,3111404881,672,Oxford Premier Cars Services Limite
http://statistics.data.gov.uk/id/local-authority/38,Oxfordshire County Council,Support at Home U65 Learning Disability,12/04/2023,5690,,3111405320,672,Style Acre
http://statistics.data.gov.uk/id/local-authority/38,Oxfordshire County Council,Support at Home U65 Learning Disability,12/04/2023,5690,,3111405350,672,Style Acre
http://statistics.data.gov.uk/id/local-authority/38,Oxfordshire County Council,Support at Home U65 Learning Disability,12/04/2023,5690,,3111405229,672,Turnstyle
http://statistics.data.gov.uk/id/local-authority/38,Oxfordshire County Council,LD Continuing Care - Sup at Home - U65,06/04/2023,5691,,3111401023,672.36,Paterson Recruitment
http://statistics.data.gov.uk/id/local-authority/38,Oxfordshire County Council,Delegated Health Tasks  - Over 65,18/04/2023,5691,,3111410584,674.25,Bluebird Care
http://statistics.data.gov.uk/id/local-authority/38,Oxfordshire County Council,Delegated Health Tasks  - Over 65,18/04/2023,5691,,3111410585,674.25,Bluebird Care
http://statistics.data.gov.uk/id/local-authority/38,Oxfordshire County Council,Delegated Health Tasks  - Under 65,18/04/2023,5691,,3111410588,674.25,Bluebird Care
http://statistics.data.gov.uk/id/local-authority/38,Oxfordshire County Council,Delegated Health Tasks  - Over 65,18/04/2023,5691,,3111410589,674.25,Bluebird Care
http://statistics.data.gov.uk/id/local-authority/38,Oxfordshire County Council,Delegated Health Tasks  - Over 65,18/04/2023,5691,,3111410649,674.25,Bluebird Care
http://statistics.data.gov.uk/id/local-authority/38,Oxfordshire County Council,Delegated Health Tasks  - Over 65,24/04/2023,5691,,3111412928,674.25,Bluebird Care
http://statistics.data.gov.uk/id/local-authority/38,Oxfordshire County Council,Support at Home 65+ Physical Support,12/04/2023,5899,Social Care - Direct Payments,3111404428,674.8,Purple Conversation Com In Co (DP)
http://statistics.data.gov.uk/id/local-authority/38,Oxfordshire County Council,FLEET COSTS,06/04/2023,4270,HTM / Other Vehicle - Hire Charges,2201099954,674.88,Days Rental
http://statistics.data.gov.uk/id/local-authority/38,Oxfordshire County Council,Support at Home U65 Memory & Cognition,05/04/2023,5697,,3111400366,675,Headway Oxford
http://statistics.data.gov.uk/id/local-authority/38,Oxfordshire County Council,Support at Home U65 Physical Support,05/04/2023,5697,,3111400367,675,Headway Oxford
http://statistics.data.gov.uk/id/local-authority/38,Oxfordshire County Council,Support at Home U65 Physical Support,05/04/2023,5697,,3111400368,675,Headway Oxford
http://statistics.data.gov.uk/id/local-authority/38,Oxfordshire County Council,Support at Home U65 Physical Support,05/04/2023,5697,,3111400370,675,Headway Oxford
http://statistics.data.gov.uk/id/local-authority/38,Oxfordshire County Council,Support at Home 65+ Physical Support,05/04/2023,5697,,3111400379,675,Headway Oxford
http://statistics.data.gov.uk/id/local-authority/38,Oxfordshire County Council,Support at Home U65 Physical Support,05/04/2023,5697,,3111400380,675,Headway Oxford
http://statistics.data.gov.uk/id/local-authority/38,Oxfordshire County Council,COMMUNITY & ROAD SAFETY,03/04/2023,3103,Other Training Courses and Qualification,2201099273,675,Windrush Bike Project CIC
http://statistics.data.gov.uk/id/local-authority/38,Oxfordshire County Council,,20/04/2023,1448,Blackfield Inc & Exp A/c,3111412265,676.7,OCC One Time Vendor
http://statistics.data.gov.uk/id/local-authority/38,Oxfordshire County Council,Support at Home 65+ Physical Support,25/04/2023,5699,,3111415728,677.39,FLEXI DIRECT LTD
http://statistics.data.gov.uk/id/local-authority/38,Oxfordshire County Council,Support at Home U65 Learning Disability,12/04/2023,5688,,3111406432,677.49,The Brandon Trust
http://statistics.data.gov.uk/id/local-authority/38,Oxfordshire County Council,POST 16 SEN,17/04/2023,4330,Transport to School Activities,3111410346,677.5,Cherwell Cars
http://statistics.data.gov.uk/id/local-authority/38,Oxfordshire County Council,Support at Home U65 Learning Disability,17/04/2023,5227,Other Transport Arrangements,3111410347,677.5,Cherwell Cars
http://statistics.data.gov.uk/id/local-authority/38,Oxfordshire County Council,Support at Home U65 Learning Disability,25/04/2023,5696,,3111415070,677.58,All Care GB Ltd
http://statistics.data.gov.uk/id/local-authority/38,Oxfordshire County Council,Support at Home 65+ Physical Support,25/04/2023,5696,,3111415091,677.58,All Care GB Ltd
http://statistics.data.gov.uk/id/local-authority/38,Oxfordshire County Council,COMM DRAWDOWN FUNDNG,27/04/2023,8004,Design Consultant,2201105540,678.04,Network Rail
http://statistics.data.gov.uk/id/local-authority/38,Oxfordshire County Council,OPERATIONS,05/04/2023,4498,Health and Safety Equipment,2201099852,678.36,TW ENGINEERING CO LTD
http://statistics.data.gov.uk/id/local-authority/38,Oxfordshire County Council,Support at Home U65 Physical Support,11/04/2023,5899,Social Care - Direct Payments,3111401903,678.67,Redacted Personal Data
http://statistics.data.gov.uk/id/local-authority/38,Oxfordshire County Council,Support at Home U65 Learning Disability,11/04/2023,5899,Social Care - Direct Payments,3111401876,679.59,Redacted Personal Data
http://statistics.data.gov.uk/id/local-authority/38,Oxfordshire County Council,Support at Home U65 Learning Disability,12/04/2023,5899,Social Care - Direct Payments,3111404502,679.64,Purple Conversation Com In Co (DP)
http://statistics.data.gov.uk/id/local-authority/38,Oxfordshire County Council,FOSTERING MAIN,18/04/2023,5549,B*Fostering Allowance - Regulation 38,3111410934,679.98,Redacted Personal Data
http://statistics.data.gov.uk/id/local-authority/38,Oxfordshire County Council,Support at Home U65 Learning Disability,06/04/2023,5227,Other Transport Arrangements,3111400838,680,007 Taxi Limited
